Workbook

Sheet Menu

Sheet Rep_Balance
B4: Balance | D4: PRIMER DERECHO: AL NOMBRE Y A LA IDENTIDAD
D6: =CONCATENATE("N° de compromisos: ",SUM(ListaIndicadores!$I$3001:$I$3003)) -> N° de compromisos: 0 | F6: =CONCATENATE("N° ListaIndicadores!de compromisos: ",SUM(ListaIndicadores!$I$3006:$I$3008)) -> N° ListaIndicadores!de compromisos: 45 | H6: =CONCATENATE("N° de compromisos: ",SUM(ListaIndicadores!$I$3011:$I$3013)) -> N° de compromisos: 57
B10: =CONCATENATE("N° de compromisos: ",SUM(ListaIndicadores!I3030:I3032)) -> N° de compromisos: 187 | D10: =CONCATENATE("N° de compromisos: ",SUM(ListaIndicadores!I3016:I3018)) -> N° de compromisos: 62 | F10: =CONCATENATE("N° de compromisos: ",SUM(ListaIndicadores!$I$3021:$I$3023)) -> N° de compromisos: 1 | H10: =CONCATENATE("N° de compromisos: ",SUM(ListaIndicadores!I3025:I3027)) -> N° de compromisos: 22
B13: Nota técnica
B15: Color del semaforo :
B16: Caso 1, con indicadores positivos (ejemplo cobertura de seguro de salud):
B17: Color verde: Cuando la meta proyectada al 2021/ valor de la meta al 2021 >=85%;
B18: Color ambar: Cuando la meta proyectada al 2021/ valor de la meta al 2021 se ecuentra entre >=50 y <85%;
B19: Color rojo: Cuando la meta proyectada al 2021/ valor de la meta al 2021 se ecuentra <50%
B20: Caso 2, con indicadores negativos (ejemplo: tasa de desnutrición crónica):
B21: Color verde: Cuando la meta proyectada al 2021/ valor de la meta al 2021 <=115%;
B22: Color ambar: Cuando la meta proyectada al 2021/ valor de la meta al 2021 se ecuentra entre <115% y =< 150%;
B23: Color rojo: Cuando la meta proyectada al 2021/ valor de la meta al 2021 >150%

Sheet Rep_Balance_Dpt
A8: 1. DESEMPEÑO GLOBAL POR DEPARTAMENTO
A51: Nota técnica
A53: Color del semaforo :
A54: Caso 1, con indicadores positivos (ejemplo cobertura de seguro de salud):
A55: Color verde: Cuando la meta proyectada al 2021/ valor de la meta al 2021 >=85%;
A56: Color ambar: Cuando la meta proyectada al 2021/ valor de la meta al 2021 se ecuentra entre >=50 y <85%;
A57: Color rojo: Cuando la meta proyectada al 2021/ valor de la meta al 2021 se ecuentra <50%
A58: Caso 2, con indicadores negativos (ejemplo: tasa de desnutrición crónica):
A59: Color verde: Cuando la meta proyectada al 2021/ valor de la meta al 2021 <=115%;
A60: Color ambar: Cuando la meta proyectada al 2021/ valor de la meta al 2021 se ecuentra entre <115% y =< 150%;
A61: Color rojo: Cuando la meta proyectada al 2021/ valor de la meta al 2021 >150%

Sheet ReporteIndicador
B4: Gráfico | Q4: Comando
Q6: Primer paso: Seleccionar el Derecho
Q7: Derecho
Q8: 5. QUINTO DERECHO: A UNA PROTECCIÓN ESPECIAL PARA POBLACIÓN VULNERABLE Y EN SITUACIÓN DE POBREZA
Q9: Segundo paso: Seleccionar el indicador
Q10: Indicador:
Q11: N° Hogares afiliados al programa Juntos
Q12: Tercer paso: Seleccionar el Sub Indicador
Q13: Sub indicador:
Q14: Departamental
B15: Información Histórica
B16: 2010 | C16: 2011 | D16: 2012 | E16: 2013 | F16: 2014 | G16: 2015 | H16: 2016 | I16: 2017 | J16: 2018 | K16: 2019 | L16: 2020 | M16: 2021 | N16: 2022 | O16: 2023 | Q16: Cuarto paso: Seleccionar la Región
B17: =IFERROR(IF(VLOOKUP($Q$11&$Q$14&$Q$18&"2010",BD_social!$S$2:$T$11237,2,FALSE)="","",VLOOKUP($Q$11&$Q$14&$Q$18&"2010",BD_social!$S$2:$T$11237,2,FALSE)),"") ->  | C17: =IFERROR(IF(VLOOKUP($Q$11&$Q$14&$Q$18&"2011",BD_social!$S$2:$T$11237,2,FALSE)="","",VLOOKUP($Q$11&$Q$14&$Q$18&"2011",BD_social!$S$2:$T$11237,2,FALSE)),"") -> 30187 | D17: =IFERROR(IF(VLOOKUP($Q$11&$Q$14&$Q$18&"2012",BD_social!$S$2:$T$11237,2,FALSE)="","",VLOOKUP($Q$11&$Q$14&$Q$18&"2012",BD_social!$S$2:$T$11237,2,FALSE)),"") -> 35534 | E17: =IFERROR(IF(VLOOKUP($Q$11&$Q$14&$Q$18&"2013",BD_social!$S$2:$T$11237,2,FALSE)="","",VLOOKUP($Q$11&$Q$14&$Q$18&"2013",BD_social!$S$2:$T$11237,2,FALSE)),"") -> 51469 | F17: =IFERROR(IF(VLOOKUP($Q$11&$Q$14&$Q$18&"2014",BD_social!$S$2:$T$11237,2,FALSE)="","",VLOOKUP($Q$11&$Q$14&$Q$18&"2014",BD_social!$S$2:$T$11237,2,FALSE)),"") -> 62177 | G17: =IFERROR(IF(VLOOKUP($Q$11&$Q$14&$Q$18&"2015",BD_social!$S$2:$T$11237,2,FALSE)="","",VLOOKUP($Q$11&$Q$14&$Q$18&"2015",BD_social!$S$2:$T$11237,2,FALSE)),"") -> 62367 | H17: =IFERROR(IF(VLOOKUP($Q$11&$Q$14&$Q$18&"2016",BD_social!$S$2:$T$11237,2,FALSE)="","",VLOOKUP($Q$11&$Q$14&$Q$18&"2016",BD_social!$S$2:$T$11237,2,FALSE)),"") -> 58885 | I17: =IFERROR(IF(VLOOKUP($Q$11&$Q$14&$Q$18&"2017",BD_social!$S$2:$T$11237,2,FALSE)="","",VLOOKUP($Q$11&$Q$14&$Q$18&"2017",BD_social!$S$2:$T$11237,2,FALSE)),"") -> 57081 | J17: =IFERROR(IF(VLOOKUP($Q$11&$Q$14&$Q$18&"2018",BD_social!$S$2:$T$11237,2,FALSE)="","",VLOOKUP($Q$11&$Q$14&$Q$18&"2018",BD_social!$S$2:$T$11237,2,FALSE)),"") -> 52192 | K17: =IFERROR(IF(VLOOKUP($Q$11&$Q$14&$Q$18&"2019",BD_social!$S$2:$T$11237,2,FALSE)="","",VLOOKUP($Q$11&$Q$14&$Q$18&"2019",BD_social!$S$2:$T$11237,2,FALSE)),"") -> 51216 | L17: =IFERROR(IF(VLOOKUP($Q$11&$Q$14&$Q$18&"2020",BD_social!$S$2:$T$11237,2,FALSE)="","",VLOOKUP($Q$11&$Q$14&$Q$18&"2020",BD_social!$S$2:$T$11237,2,FALSE)),"") -> 46133 | M17: =IFERROR(IF(VLOOKUP($Q$11&$Q$14&$Q$18&"2021",BD_social!$S$2:$T$11237,2,FALSE)="","",VLOOKUP($Q$11&$Q$14&$Q$18&"2021",BD_social!$S$2:$T$11237,2,FALSE)),"") -> 44219 | N17: =IFERROR(IF(VLOOKUP($Q$11&$Q$14&$Q$18&"2022",BD_social!$S$2:$T$11237,2,FALSE)="","",VLOOKUP($Q$11&$Q$14&$Q$18&"2022",BD_social!$S$2:$T$11237,2,FALSE)),"") ->  | O17: =IFERROR(IF(VLOOKUP($Q$11&$Q$14&$Q$18&"2023",BD_social!$S$2:$T$11237,2,FALSE)="","",VLOOKUP($Q$11&$Q$14&$Q$18&"2023",BD_social!$S$2:$T$11237,2,FALSE)),"") ->  | Q17: Región:
Q18: Puno
B19: Fuente | D19: =+TDValor!B6 -> INFOMIDIS
B20: Unidad de medida | D20: =+TDValor!A6 -> Hogares
B22: Desempeño
B24: Proyección 2026 | F24: Meta 2026 | I24: Semáforo
B25: =IFERROR(IF(VLOOKUP($Q$11&$Q$14&$Q$18,ListaIndicadores!$AC$7:$AF$1760,4,FALSE)="","",VLOOKUP($Q$11&$Q$14&$Q$18,ListaIndicadores!$AC$7:$AF$1760,4,FALSE)),"") -> 28638 | F25: =IFERROR(IF(VLOOKUP($Q$11&$Q$14&$Q$18,ListaIndicadores!$AC$7:$AF$1760,3,FALSE)="","",VLOOKUP($Q$11&$Q$14&$Q$18,ListaIndicadores!$AC$7:$AF$1760,3,FALSE)),"") ->  | I25: =+IFERROR(IF(VLOOKUP($Q$11&$Q$14&$Q$18,ListaIndicadores!$AC$7:$AG$1760,5,FALSE)="","",VLOOKUP($Q$11&$Q$14&$Q$18,ListaIndicadores!$AC$7:$AG$1760,5,FALSE)),"") -> ¡Faltan datos!

Sheet BD_social
A1: Num. | B1: Dimensión | C1: Segundo Nivel | D1: Matriz de Resultado | E1: Indicador | F1: Subindicador | G1: Region | H1: Año | I1: Valor | J1: Unidad | K1: Fuente web | L1: Fuente ficha tecnica | M1: Link | N1: Descripción del indicador | O1: Observaciones internas | P1: Tiene Meta 2022 | Q1: Proyección | R1: Semáforo | S1: concatenar
A2: 29358 | B2: Social | C2: 4. CUARTO DERECHO: A LA EDUCACIÓN DESDE LA PRIMERA INFANCIA | D2: AGS.18.4 | E2: Porcentaje de instituciones educativas y programas no escolarizados de Educación Inicial que brindan atención educativa, alimentación y salud (distritos mas pobres) | F2: Departamental | G2: Amazonas | H2: 2014 | I2: 60.6 | J2: Porcentaje | K2: Estadística de la Calidad Educativa (ESCALE) - Ministerio de Educación (MINEDU) | L2: Censo Escolar del Ministerio de Educación - Unidad de Estadística Educativa (UEE) | M2: http://escale.minedu.gob.pe/ueetendencias20002015 | Q2: =IFERROR(IF(VLOOKUP(CONCATENATE(E2,F2,G2),ListaIndicadores!$AC$7:$AG$1887,4,FALSE)="","",VLOOKUP(CONCATENATE(E2,F2,G2),ListaIndicadores!$AC$7:$AG$1887,4,FALSE)),"") -> 104 | R2: =VLOOKUP(CONCATENATE(E2,F2,G2),ListaIndicadores!$AC$7:$AG$1887,5,FALSE) -> ¡Faltan datos! | S2: =CONCATENATE(E2,F2,G2,H2) -> Porcentaje de instituciones educativas y programas no escolarizados de Educación Inicial que brindan atención educativa, alimentación y salud (distritos mas pobres)DepartamentalAmazonas2014 | T2: =I2 -> 60.6
A3: 29359 | B3: Social | C3: 4. CUARTO DERECHO: A LA EDUCACIÓN DESDE LA PRIMERA INFANCIA | D3: AGS.18.4 | E3: Porcentaje de instituciones educativas y programas no escolarizados de Educación Inicial que brindan atención educativa, alimentación y salud (distritos mas pobres) | F3: Departamental | G3: Amazonas | H3: 2015 | I3: 66.2 | J3: Porcentaje | K3: Estadística de la Calidad Educativa (ESCALE) - Ministerio de Educación (MINEDU) | L3: Censo Escolar del Ministerio de Educación - Unidad de Estadística Educativa (UEE) | M3: http://escale.minedu.gob.pe/ueetendencias20002015 | Q3: =IFERROR(IF(VLOOKUP(CONCATENATE(E3,F3,G3),ListaIndicadores!$AC$7:$AG$1887,4,FALSE)="","",VLOOKUP(CONCATENATE(E3,F3,G3),ListaIndicadores!$AC$7:$AG$1887,4,FALSE)),"") -> 104 | R3: =VLOOKUP(CONCATENATE(E3,F3,G3),ListaIndicadores!$AC$7:$AG$1887,5,FALSE) -> ¡Faltan datos! | S3: =CONCATENATE(E3,F3,G3,H3) -> Porcentaje de instituciones educativas y programas no escolarizados de Educación Inicial que brindan atención educativa, alimentación y salud (distritos mas pobres)DepartamentalAmazonas2015 | T3: =I3 -> 66.2
A4: 29360 | B4: Social | C4: 4. CUARTO DERECHO: A LA EDUCACIÓN DESDE LA PRIMERA INFANCIA | D4: AGS.18.4 | E4: Porcentaje de instituciones educativas y programas no escolarizados de Educación Inicial que brindan atención educativa, alimentación y salud (distritos mas pobres) | F4: Departamental | G4: Amazonas | H4: 2016 | I4: 71.8 | J4: Porcentaje | K4: Estadística de la Calidad Educativa (ESCALE) - Ministerio de Educación (MINEDU) | L4: Censo Escolar del Ministerio de Educación - Unidad de Estadística Educativa (UEE) | M4: http://escale.minedu.gob.pe/ueetendencias20002015 | Q4: =IFERROR(IF(VLOOKUP(CONCATENATE(E4,F4,G4),ListaIndicadores!$AC$7:$AG$1887,4,FALSE)="","",VLOOKUP(CONCATENATE(E4,F4,G4),ListaIndicadores!$AC$7:$AG$1887,4,FALSE)),"") -> 104 | R4: =VLOOKUP(CONCATENATE(E4,F4,G4),ListaIndicadores!$AC$7:$AG$1887,5,FALSE) -> ¡Faltan datos! | S4: Porcentaje de instituciones educativas y programas no escolarizados de Educación Inicial que brindan atención educativa, alimentación y salud (distritos mas pobres)DepartamentalAmazonas2016 | T4: 71.8
A5: 29361 | B5: Social | C5: 4. CUARTO DERECHO: A LA EDUCACIÓN DESDE LA PRIMERA INFANCIA | D5: AGS.18.4 | E5: Porcentaje de instituciones educativas y programas no escolarizados de Educación Inicial que brindan atención educativa, alimentación y salud (distritos mas pobres) | F5: Departamental | G5: Amazonas | H5: 2017 | I5: 82.7 | J5: Porcentaje | K5: Estadística de la Calidad Educativa (ESCALE) - Ministerio de Educación (MINEDU) | L5: Censo Escolar del Ministerio de Educación - Unidad de Estadística Educativa (UEE) | M5: http://escale.minedu.gob.pe/ueetendencias20002015 | Q5: =IFERROR(IF(VLOOKUP(CONCATENATE(E5,F5,G5),ListaIndicadores!$AC$7:$AG$1887,4,FALSE)="","",VLOOKUP(CONCATENATE(E5,F5,G5),ListaIndicadores!$AC$7:$AG$1887,4,FALSE)),"") -> 104 | R5: =VLOOKUP(CONCATENATE(E5,F5,G5),ListaIndicadores!$AC$7:$AG$1887,5,FALSE) -> ¡Faltan datos! | S5: Porcentaje de instituciones educativas y programas no escolarizados de Educación Inicial que brindan atención educativa, alimentación y salud (distritos mas pobres)DepartamentalAmazonas2017 | T5: 82.7
A6: 29362 | B6: Social | C6: 4. CUARTO DERECHO: A LA EDUCACIÓN DESDE LA PRIMERA INFANCIA | D6: AGS.18.4 | E6: Porcentaje de instituciones educativas y programas no escolarizados de Educación Inicial que brindan atención educativa, alimentación y salud (distritos mas pobres) | F6: Departamental | G6: Amazonas | H6: 2018 | I6: 86.7 | J6: Porcentaje | K6: Estadística de la Calidad Educativa (ESCALE) - Ministerio de Educación (MINEDU) | L6: Censo Escolar del Ministerio de Educación - Unidad de Estadística Educativa (UEE) | M6: http://escale.minedu.gob.pe/ueetendencias20002015 | Q6: =IFERROR(IF(VLOOKUP(CONCATENATE(E6,F6,G6),ListaIndicadores!$AC$7:$AG$1887,4,FALSE)="","",VLOOKUP(CONCATENATE(E6,F6,G6),ListaIndicadores!$AC$7:$AG$1887,4,FALSE)),"") -> 104 | R6: =VLOOKUP(CONCATENATE(E6,F6,G6),ListaIndicadores!$AC$7:$AG$1887,5,FALSE) -> ¡Faltan datos! | S6: Porcentaje de instituciones educativas y programas no escolarizados de Educación Inicial que brindan atención educativa, alimentación y salud (distritos mas pobres)DepartamentalAmazonas2018 | T6: 86.7
A7: 29363 | B7: Social | C7: 4. CUARTO DERECHO: A LA EDUCACIÓN DESDE LA PRIMERA INFANCIA | D7: AGS.18.4 | E7: Porcentaje de instituciones educativas y programas no escolarizados de Educación Inicial que brindan atención educativa, alimentación y salud (distritos mas pobres) | F7: Departamental | G7: Áncash | H7: 2014 | I7: 72.9 | J7: Porcentaje | K7: Estadística de la Calidad Educativa (ESCALE) - Ministerio de Educación (MINEDU) | L7: Censo Escolar del Ministerio de Educación - Unidad de Estadística Educativa (UEE) | M7: http://escale.minedu.gob.pe/ueetendencias20002015 | Q7: =IFERROR(IF(VLOOKUP(CONCATENATE(E7,F7,G7),ListaIndicadores!$AC$7:$AG$1887,4,FALSE)="","",VLOOKUP(CONCATENATE(E7,F7,G7),ListaIndicadores!$AC$7:$AG$1887,4,FALSE)),"") -> 109 | R7: =VLOOKUP(CONCATENATE(E7,F7,G7),ListaIndicadores!$AC$7:$AG$1887,5,FALSE) -> ¡Faltan datos! | S7: Porcentaje de instituciones educativas y programas no escolarizados de Educación Inicial que brindan atención educativa, alimentación y salud (distritos mas pobres)DepartamentalÁncash2014 | T7: 72.9
A8: 29364 | B8: Social | C8: 4. CUARTO DERECHO: A LA EDUCACIÓN DESDE LA PRIMERA INFANCIA | D8: AGS.18.4 | E8: Porcentaje de instituciones educativas y programas no escolarizados de Educación Inicial que brindan atención educativa, alimentación y salud (distritos mas pobres) | F8: Departamental | G8: Áncash | H8: 2015 | I8: 81.2 | J8: Porcentaje | K8: Estadística de la Calidad Educativa (ESCALE) - Ministerio de Educación (MINEDU) | L8: Censo Escolar del Ministerio de Educación - Unidad de Estadística Educativa (UEE) | M8: http://escale.minedu.gob.pe/ueetendencias20002015 | Q8: =IFERROR(IF(VLOOKUP(CONCATENATE(E8,F8,G8),ListaIndicadores!$AC$7:$AG$1887,4,FALSE)="","",VLOOKUP(CONCATENATE(E8,F8,G8),ListaIndicadores!$AC$7:$AG$1887,4,FALSE)),"") -> 109 | R8: =VLOOKUP(CONCATENATE(E8,F8,G8),ListaIndicadores!$AC$7:$AG$1887,5,FALSE) -> ¡Faltan datos! | S8: Porcentaje de instituciones educativas y programas no escolarizados de Educación Inicial que brindan atención educativa, alimentación y salud (distritos mas pobres)DepartamentalÁncash2015 | T8: 81.2
A9: 29365 | B9: Social | C9: 4. CUARTO DERECHO: A LA EDUCACIÓN DESDE LA PRIMERA INFANCIA | D9: AGS.18.4 | E9: Porcentaje de instituciones educativas y programas no escolarizados de Educación Inicial que brindan atención educativa, alimentación y salud (distritos mas pobres) | F9: Departamental | G9: Áncash | H9: 2016 | I9: 87.8 | J9: Porcentaje | K9: Estadística de la Calidad Educativa (ESCALE) - Ministerio de Educación (MINEDU) | L9: Censo Escolar del Ministerio de Educación - Unidad de Estadística Educativa (UEE) | M9: http://escale.minedu.gob.pe/ueetendencias20002015 | Q9: =IFERROR(IF(VLOOKUP(CONCATENATE(E9,F9,G9),ListaIndicadores!$AC$7:$AG$1887,4,FALSE)="","",VLOOKUP(CONCATENATE(E9,F9,G9),ListaIndicadores!$AC$7:$AG$1887,4,FALSE)),"") -> 109 | R9: =VLOOKUP(CONCATENATE(E9,F9,G9),ListaIndicadores!$AC$7:$AG$1887,5,FALSE) -> ¡Faltan datos! | S9: Porcentaje de instituciones educativas y programas no escolarizados de Educación Inicial que brindan atención educativa, alimentación y salud (distritos mas pobres)DepartamentalÁncash2016 | T9: 87.8
A10: 29366 | B10: Social | C10: 4. CUARTO DERECHO: A LA EDUCACIÓN DESDE LA PRIMERA INFANCIA | D10: AGS.18.4 | E10: Porcentaje de instituciones educativas y programas no escolarizados de Educación Inicial que brindan atención educativa, alimentación y salud (distritos mas pobres) | F10: Departamental | G10: Áncash | H10: 2017 | I10: 94.2 | J10: Porcentaje | K10: Estadística de la Calidad Educativa (ESCALE) - Ministerio de Educación (MINEDU) | L10: Censo Escolar del Ministerio de Educación - Unidad de Estadística Educativa (UEE) | M10: http://escale.minedu.gob.pe/ueetendencias20002015 | Q10: =IFERROR(IF(VLOOKUP(CONCATENATE(E10,F10,G10),ListaIndicadores!$AC$7:$AG$1887,4,FALSE)="","",VLOOKUP(CONCATENATE(E10,F10,G10),ListaIndicadores!$AC$7:$AG$1887,4,FALSE)),"") -> 109 | R10: =VLOOKUP(CONCATENATE(E10,F10,G10),ListaIndicadores!$AC$7:$AG$1887,5,FALSE) -> ¡Faltan datos! | S10: Porcentaje de instituciones educativas y programas no escolarizados de Educación Inicial que brindan atención educativa, alimentación y salud (distritos mas pobres)DepartamentalÁncash2017 | T10: 94.2
A11: 29367 | B11: Social | C11: 4. CUARTO DERECHO: A LA EDUCACIÓN DESDE LA PRIMERA INFANCIA | D11: AGS.18.4 | E11: Porcentaje de instituciones educativas y programas no escolarizados de Educación Inicial que brindan atención educativa, alimentación y salud (distritos mas pobres) | F11: Departamental | G11: Áncash | H11: 2018 | I11: 92.5 | J11: Porcentaje | K11: Estadística de la Calidad Educativa (ESCALE) - Ministerio de Educación (MINEDU) | L11: Censo Escolar del Ministerio de Educación - Unidad de Estadística Educativa (UEE) | M11: http://escale.minedu.gob.pe/ueetendencias20002015 | Q11: =IFERROR(IF(VLOOKUP(CONCATENATE(E11,F11,G11),ListaIndicadores!$AC$7:$AG$1887,4,FALSE)="","",VLOOKUP(CONCATENATE(E11,F11,G11),ListaIndicadores!$AC$7:$AG$1887,4,FALSE)),"") -> 109 | R11: =VLOOKUP(CONCATENATE(E11,F11,G11),ListaIndicadores!$AC$7:$AG$1887,5,FALSE) -> ¡Faltan datos! | S11: Porcentaje de instituciones educativas y programas no escolarizados de Educación Inicial que brindan atención educativa, alimentación y salud (distritos mas pobres)DepartamentalÁncash2018 | T11: 92.5
A12: 29368 | B12: Social | C12: 4. CUARTO DERECHO: A LA EDUCACIÓN DESDE LA PRIMERA INFANCIA | D12: AGS.18.4 | E12: Porcentaje de instituciones educativas y programas no escolarizados de Educación Inicial que brindan atención educativa, alimentación y salud (distritos mas pobres) | F12: Departamental | G12: Apurímac | H12: 2014 | I12: 65.6 | J12: Porcentaje | K12: Estadística de la Calidad Educativa (ESCALE) - Ministerio de Educación (MINEDU) | L12: Censo Escolar del Ministerio de Educación - Unidad de Estadística Educativa (UEE) | M12: http://escale.minedu.gob.pe/ueetendencias20002015 | Q12: =IFERROR(IF(VLOOKUP(CONCATENATE(E12,F12,G12),ListaIndicadores!$AC$7:$AG$1887,4,FALSE)="","",VLOOKUP(CONCATENATE(E12,F12,G12),ListaIndicadores!$AC$7:$AG$1887,4,FALSE)),"") -> 82 | R12: =VLOOKUP(CONCATENATE(E12,F12,G12),ListaIndicadores!$AC$7:$AG$1887,5,FALSE) -> ¡Faltan datos! | S12: Porcentaje de instituciones educativas y programas no escolarizados de Educación Inicial que brindan atención educativa, alimentación y salud (distritos mas pobres)DepartamentalApurímac2014 | T12: 65.6
A13: 29369 | B13: Social | C13: 4. CUARTO DERECHO: A LA EDUCACIÓN DESDE LA PRIMERA INFANCIA | D13: AGS.18.4 | E13: Porcentaje de instituciones educativas y programas no escolarizados de Educación Inicial que brindan atención educativa, alimentación y salud (distritos mas pobres) | F13: Departamental | G13: Apurímac | H13: 2015 | I13: 78 | J13: Porcentaje | K13: Estadística de la Calidad Educativa (ESCALE) - Ministerio de Educación (MINEDU) | L13: Censo Escolar del Ministerio de Educación - Unidad de Estadística Educativa (UEE) | M13: http://escale.minedu.gob.pe/ueetendencias20002015 | Q13: =IFERROR(IF(VLOOKUP(CONCATENATE(E13,F13,G13),ListaIndicadores!$AC$7:$AG$1887,4,FALSE)="","",VLOOKUP(CONCATENATE(E13,F13,G13),ListaIndicadores!$AC$7:$AG$1887,4,FALSE)),"") -> 82 | R13: =VLOOKUP(CONCATENATE(E13,F13,G13),ListaIndicadores!$AC$7:$AG$1887,5,FALSE) -> ¡Faltan datos! | S13: Porcentaje de instituciones educativas y programas no escolarizados de Educación Inicial que brindan atención educativa, alimentación y salud (distritos mas pobres)DepartamentalApurímac2015 | T13: 78
A14: 29370 | B14: Social | C14: 4. CUARTO DERECHO: A LA EDUCACIÓN DESDE LA PRIMERA INFANCIA | D14: AGS.18.4 | E14: Porcentaje de instituciones educativas y programas no escolarizados de Educación Inicial que brindan atención educativa, alimentación y salud (distritos mas pobres) | F14: Departamental | G14: Apurímac | H14: 2016 | I14: 81.5 | J14: Porcentaje | K14: Estadística de la Calidad Educativa (ESCALE) - Ministerio de Educación (MINEDU) | L14: Censo Escolar del Ministerio de Educación - Unidad de Estadística Educativa (UEE) | M14: http://escale.minedu.gob.pe/ueetendencias20002015 | Q14: =IFERROR(IF(VLOOKUP(CONCATENATE(E14,F14,G14),ListaIndicadores!$AC$7:$AG$1887,4,FALSE)="","",VLOOKUP(CONCATENATE(E14,F14,G14),ListaIndicadores!$AC$7:$AG$1887,4,FALSE)),"") -> 82 | R14: =VLOOKUP(CONCATENATE(E14,F14,G14),ListaIndicadores!$AC$7:$AG$1887,5,FALSE) -> ¡Faltan datos! | S14: Porcentaje de instituciones educativas y programas no escolarizados de Educación Inicial que brindan atención educativa, alimentación y salud (distritos mas pobres)DepartamentalApurímac2016 | T14: 81.5
A15: 29371 | B15: Social | C15: 4. CUARTO DERECHO: A LA EDUCACIÓN DESDE LA PRIMERA INFANCIA | D15: AGS.18.4 | E15: Porcentaje de instituciones educativas y programas no escolarizados de Educación Inicial que brindan atención educativa, alimentación y salud (distritos mas pobres) | F15: Departamental | G15: Apurímac | H15: 2017 | I15: 79.1 | J15: Porcentaje | K15: Estadística de la Calidad Educativa (ESCALE) - Ministerio de Educación (MINEDU) | L15: Censo Escolar del Ministerio de Educación - Unidad de Estadística Educativa (UEE) | M15: http://escale.minedu.gob.pe/ueetendencias20002015 | Q15: =IFERROR(IF(VLOOKUP(CONCATENATE(E15,F15,G15),ListaIndicadores!$AC$7:$AG$1887,4,FALSE)="","",VLOOKUP(CONCATENATE(E15,F15,G15),ListaIndicadores!$AC$7:$AG$1887,4,FALSE)),"") -> 82 | R15: =VLOOKUP(CONCATENATE(E15,F15,G15),ListaIndicadores!$AC$7:$AG$1887,5,FALSE) -> ¡Faltan datos! | S15: Porcentaje de instituciones educativas y programas no escolarizados de Educación Inicial que brindan atención educativa, alimentación y salud (distritos mas pobres)DepartamentalApurímac2017 | T15: 79.1
A16: 29372 | B16: Social | C16: 4. CUARTO DERECHO: A LA EDUCACIÓN DESDE LA PRIMERA INFANCIA | D16: AGS.18.4 | E16: Porcentaje de instituciones educativas y programas no escolarizados de Educación Inicial que brindan atención educativa, alimentación y salud (distritos mas pobres) | F16: Departamental | G16: Apurímac | H16: 2018 | I16: 79.7 | J16: Porcentaje | K16: Estadística de la Calidad Educativa (ESCALE) - Ministerio de Educación (MINEDU) | L16: Censo Escolar del Ministerio de Educación - Unidad de Estadística Educativa (UEE) | M16: http://escale.minedu.gob.pe/ueetendencias20002015 | Q16: =IFERROR(IF(VLOOKUP(CONCATENATE(E16,F16,G16),ListaIndicadores!$AC$7:$AG$1887,4,FALSE)="","",VLOOKUP(CONCATENATE(E16,F16,G16),ListaIndicadores!$AC$7:$AG$1887,4,FALSE)),"") -> 82 | R16: =VLOOKUP(CONCATENATE(E16,F16,G16),ListaIndicadores!$AC$7:$AG$1887,5,FALSE) -> ¡Faltan datos! | S16: Porcentaje de instituciones educativas y programas no escolarizados de Educación Inicial que brindan atención educativa, alimentación y salud (distritos mas pobres)DepartamentalApurímac2018 | T16: 79.7
A17: 29373 | B17: Social | C17: 4. CUARTO DERECHO: A LA EDUCACIÓN DESDE LA PRIMERA INFANCIA | D17: AGS.18.4 | E17: Porcentaje de instituciones educativas y programas no escolarizados de Educación Inicial que brindan atención educativa, alimentación y salud (distritos mas pobres) | F17: Departamental | G17: Arequipa | H17: 2014 | I17: 48.9 | J17: Porcentaje | K17: Estadística de la Calidad Educativa (ESCALE) - Ministerio de Educación (MINEDU) | L17: Censo Escolar del Ministerio de Educación - Unidad de Estadística Educativa (UEE) | M17: http://escale.minedu.gob.pe/ueetendencias20002015 | Q17: =IFERROR(IF(VLOOKUP(CONCATENATE(E17,F17,G17),ListaIndicadores!$AC$7:$AG$1887,4,FALSE)="","",VLOOKUP(CONCATENATE(E17,F17,G17),ListaIndicadores!$AC$7:$AG$1887,4,FALSE)),"") -> 70 | R17: =VLOOKUP(CONCATENATE(E17,F17,G17),ListaIndicadores!$AC$7:$AG$1887,5,FALSE) -> ¡Faltan datos! | S17: Porcentaje de instituciones educativas y programas no escolarizados de Educación Inicial que brindan atención educativa, alimentación y salud (distritos mas pobres)DepartamentalArequipa2014 | T17: 48.9
A18: 29374 | B18: Social | C18: 4. CUARTO DERECHO: A LA EDUCACIÓN DESDE LA PRIMERA INFANCIA | D18: AGS.18.4 | E18: Porcentaje de instituciones educativas y programas no escolarizados de Educación Inicial que brindan atención educativa, alimentación y salud (distritos mas pobres) | F18: Departamental | G18: Arequipa | H18: 2015 | I18: 72 | J18: Porcentaje | K18: Estadística de la Calidad Educativa (ESCALE) - Ministerio de Educación (MINEDU) | L18: Censo Escolar del Ministerio de Educación - Unidad de Estadística Educativa (UEE) | M18: http://escale.minedu.gob.pe/ueetendencias20002015 | Q18: =IFERROR(IF(VLOOKUP(CONCATENATE(E18,F18,G18),ListaIndicadores!$AC$7:$AG$1887,4,FALSE)="","",VLOOKUP(CONCATENATE(E18,F18,G18),ListaIndicadores!$AC$7:$AG$1887,4,FALSE)),"") -> 70 | R18: =VLOOKUP(CONCATENATE(E18,F18,G18),ListaIndicadores!$AC$7:$AG$1887,5,FALSE) -> ¡Faltan datos! | S18: Porcentaje de instituciones educativas y programas no escolarizados de Educación Inicial que brindan atención educativa, alimentación y salud (distritos mas pobres)DepartamentalArequipa2015 | T18: 72
A19: 29375 | B19: Social | C19: 4. CUARTO DERECHO: A LA EDUCACIÓN DESDE LA PRIMERA INFANCIA | D19: AGS.18.4 | E19: Porcentaje de instituciones educativas y programas no escolarizados de Educación Inicial que brindan atención educativa, alimentación y salud (distritos mas pobres) | F19: Departamental | G19: Arequipa | H19: 2016 | I19: 70.3 | J19: Porcentaje | K19: Estadística de la Calidad Educativa (ESCALE) - Ministerio de Educación (MINEDU) | L19: Censo Escolar del Ministerio de Educación - Unidad de Estadística Educativa (UEE) | M19: http://escale.minedu.gob.pe/ueetendencias20002015 | Q19: =IFERROR(IF(VLOOKUP(CONCATENATE(E19,F19,G19),ListaIndicadores!$AC$7:$AG$1887,4,FALSE)="","",VLOOKUP(CONCATENATE(E19,F19,G19),ListaIndicadores!$AC$7:$AG$1887,4,FALSE)),"") -> 70 | R19: =VLOOKUP(CONCATENATE(E19,F19,G19),ListaIndicadores!$AC$7:$AG$1887,5,FALSE) -> ¡Faltan datos! | S19: Porcentaje de instituciones educativas y programas no escolarizados de Educación Inicial que brindan atención educativa, alimentación y salud (distritos mas pobres)DepartamentalArequipa2016 | T19: 70.3
A20: 29376 | B20: Social | C20: 4. CUARTO DERECHO: A LA EDUCACIÓN DESDE LA PRIMERA INFANCIA | D20: AGS.18.4 | E20: Porcentaje de instituciones educativas y programas no escolarizados de Educación Inicial que brindan atención educativa, alimentación y salud (distritos mas pobres) | F20: Departamental | G20: Arequipa | H20: 2017 | I20: 75.7 | J20: Porcentaje | K20: Estadística de la Calidad Educativa (ESCALE) - Ministerio de Educación (MINEDU) | L20: Censo Escolar del Ministerio de Educación - Unidad de Estadística Educativa (UEE) | M20: http://escale.minedu.gob.pe/ueetendencias20002015 | Q20: =IFERROR(IF(VLOOKUP(CONCATENATE(E20,F20,G20),ListaIndicadores!$AC$7:$AG$1887,4,FALSE)="","",VLOOKUP(CONCATENATE(E20,F20,G20),ListaIndicadores!$AC$7:$AG$1887,4,FALSE)),"") -> 70 | R20: =VLOOKUP(CONCATENATE(E20,F20,G20),ListaIndicadores!$AC$7:$AG$1887,5,FALSE) -> ¡Faltan datos! | S20: Porcentaje de instituciones educativas y programas no escolarizados de Educación Inicial que brindan atención educativa, alimentación y salud (distritos mas pobres)DepartamentalArequipa2017 | T20: 75.7
A21: 29377 | B21: Social | C21: 4. CUARTO DERECHO: A LA EDUCACIÓN DESDE LA PRIMERA INFANCIA | D21: AGS.18.4 | E21: Porcentaje de instituciones educativas y programas no escolarizados de Educación Inicial que brindan atención educativa, alimentación y salud (distritos mas pobres) | F21: Departamental | G21: Arequipa | H21: 2018 | I21: 74.2 | J21: Porcentaje | K21: Estadística de la Calidad Educativa (ESCALE) - Ministerio de Educación (MINEDU) | L21: Censo Escolar del Ministerio de Educación - Unidad de Estadística Educativa (UEE) | M21: http://escale.minedu.gob.pe/ueetendencias20002015 | Q21: =IFERROR(IF(VLOOKUP(CONCATENATE(E21,F21,G21),ListaIndicadores!$AC$7:$AG$1887,4,FALSE)="","",VLOOKUP(CONCATENATE(E21,F21,G21),ListaIndicadores!$AC$7:$AG$1887,4,FALSE)),"") -> 70 | R21: =VLOOKUP(CONCATENATE(E21,F21,G21),ListaIndicadores!$AC$7:$AG$1887,5,FALSE) -> ¡Faltan datos! | S21: Porcentaje de instituciones educativas y programas no escolarizados de Educación Inicial que brindan atención educativa, alimentación y salud (distritos mas pobres)DepartamentalArequipa2018 | T21: 74.2
A22: 29378 | B22: Social | C22: 4. CUARTO DERECHO: A LA EDUCACIÓN DESDE LA PRIMERA INFANCIA | D22: AGS.18.4 | E22: Porcentaje de instituciones educativas y programas no escolarizados de Educación Inicial que brindan atención educativa, alimentación y salud (distritos mas pobres) | F22: Departamental | G22: Ayacucho | H22: 2014 | I22: 91.3 | J22: Porcentaje | K22: Estadística de la Calidad Educativa (ESCALE) - Ministerio de Educación (MINEDU) | L22: Censo Escolar del Ministerio de Educación - Unidad de Estadística Educativa (UEE) | M22: http://escale.minedu.gob.pe/ueetendencias20002015 | Q22: =IFERROR(IF(VLOOKUP(CONCATENATE(E22,F22,G22),ListaIndicadores!$AC$7:$AG$1887,4,FALSE)="","",VLOOKUP(CONCATENATE(E22,F22,G22),ListaIndicadores!$AC$7:$AG$1887,4,FALSE)),"") -> 85 | R22: =VLOOKUP(CONCATENATE(E22,F22,G22),ListaIndicadores!$AC$7:$AG$1887,5,FALSE) -> ¡Faltan datos! | S22: Porcentaje de instituciones educativas y programas no escolarizados de Educación Inicial que brindan atención educativa, alimentación y salud (distritos mas pobres)DepartamentalAyacucho2014 | T22: 91.3
A23: 29379 | B23: Social | C23: 4. CUARTO DERECHO: A LA EDUCACIÓN DESDE LA PRIMERA INFANCIA | D23: AGS.18.4 | E23: Porcentaje de instituciones educativas y programas no escolarizados de Educación Inicial que brindan atención educativa, alimentación y salud (distritos mas pobres) | F23: Departamental | G23: Ayacucho | H23: 2015 | I23: 94.8 | J23: Porcentaje | K23: Estadística de la Calidad Educativa (ESCALE) - Ministerio de Educación (MINEDU) | L23: Censo Escolar del Ministerio de Educación - Unidad de Estadística Educativa (UEE) | M23: http://escale.minedu.gob.pe/ueetendencias20002015 | Q23: =IFERROR(IF(VLOOKUP(CONCATENATE(E23,F23,G23),ListaIndicadores!$AC$7:$AG$1887,4,FALSE)="","",VLOOKUP(CONCATENATE(E23,F23,G23),ListaIndicadores!$AC$7:$AG$1887,4,FALSE)),"") -> 85 | R23: =VLOOKUP(CONCATENATE(E23,F23,G23),ListaIndicadores!$AC$7:$AG$1887,5,FALSE) -> ¡Faltan datos! | S23: Porcentaje de instituciones educativas y programas no escolarizados de Educación Inicial que brindan atención educativa, alimentación y salud (distritos mas pobres)DepartamentalAyacucho2015 | T23: 94.8
A24: 29380 | B24: Social | C24: 4. CUARTO DERECHO: A LA EDUCACIÓN DESDE LA PRIMERA INFANCIA | D24: AGS.18.4 | E24: Porcentaje de instituciones educativas y programas no escolarizados de Educación Inicial que brindan atención educativa, alimentación y salud (distritos mas pobres) | F24: Departamental | G24: Ayacucho | H24: 2016 | I24: 85.8 | J24: Porcentaje | K24: Estadística de la Calidad Educativa (ESCALE) - Ministerio de Educación (MINEDU) | L24: Censo Escolar del Ministerio de Educación - Unidad de Estadística Educativa (UEE) | M24: http://escale.minedu.gob.pe/ueetendencias20002015 | Q24: =IFERROR(IF(VLOOKUP(CONCATENATE(E24,F24,G24),ListaIndicadores!$AC$7:$AG$1887,4,FALSE)="","",VLOOKUP(CONCATENATE(E24,F24,G24),ListaIndicadores!$AC$7:$AG$1887,4,FALSE)),"") -> 85 | R24: =VLOOKUP(CONCATENATE(E24,F24,G24),ListaIndicadores!$AC$7:$AG$1887,5,FALSE) -> ¡Faltan datos! | S24: Porcentaje de instituciones educativas y programas no escolarizados de Educación Inicial que brindan atención educativa, alimentación y salud (distritos mas pobres)DepartamentalAyacucho2016 | T24: 85.8
A25: 29381 | B25: Social | C25: 4. CUARTO DERECHO: A LA EDUCACIÓN DESDE LA PRIMERA INFANCIA | D25: AGS.18.4 | E25: Porcentaje de instituciones educativas y programas no escolarizados de Educación Inicial que brindan atención educativa, alimentación y salud (distritos mas pobres) | F25: Departamental | G25: Ayacucho | H25: 2017 | I25: 87.4 | J25: Porcentaje | K25: Estadística de la Calidad Educativa (ESCALE) - Ministerio de Educación (MINEDU) | L25: Censo Escolar del Ministerio de Educación - Unidad de Estadística Educativa (UEE) | M25: http://escale.minedu.gob.pe/ueetendencias20002015 | Q25: =IFERROR(IF(VLOOKUP(CONCATENATE(E25,F25,G25),ListaIndicadores!$AC$7:$AG$1887,4,FALSE)="","",VLOOKUP(CONCATENATE(E25,F25,G25),ListaIndicadores!$AC$7:$AG$1887,4,FALSE)),"") -> 85 | R25: =VLOOKUP(CONCATENATE(E25,F25,G25),ListaIndicadores!$AC$7:$AG$1887,5,FALSE) -> ¡Faltan datos! | S25: Porcentaje de instituciones educativas y programas no escolarizados de Educación Inicial que brindan atención educativa, alimentación y salud (distritos mas pobres)DepartamentalAyacucho2017 | T25: 87.4
A26: 29382 | B26: Social | C26: 4. CUARTO DERECHO: A LA EDUCACIÓN DESDE LA PRIMERA INFANCIA | D26: AGS.18.4 | E26: Porcentaje de instituciones educativas y programas no escolarizados de Educación Inicial que brindan atención educativa, alimentación y salud (distritos mas pobres) | F26: Departamental | G26: Ayacucho | H26: 2018 | I26: 86.6 | J26: Porcentaje | K26: Estadística de la Calidad Educativa (ESCALE) - Ministerio de Educación (MINEDU) | L26: Censo Escolar del Ministerio de Educación - Unidad de Estadística Educativa (UEE) | M26: http://escale.minedu.gob.pe/ueetendencias20002015 | Q26: =IFERROR(IF(VLOOKUP(CONCATENATE(E26,F26,G26),ListaIndicadores!$AC$7:$AG$1887,4,FALSE)="","",VLOOKUP(CONCATENATE(E26,F26,G26),ListaIndicadores!$AC$7:$AG$1887,4,FALSE)),"") -> 85 | R26: =VLOOKUP(CONCATENATE(E26,F26,G26),ListaIndicadores!$AC$7:$AG$1887,5,FALSE) -> ¡Faltan datos! | S26: Porcentaje de instituciones educativas y programas no escolarizados de Educación Inicial que brindan atención educativa, alimentación y salud (distritos mas pobres)DepartamentalAyacucho2018 | T26: 86.6
A27: 29383 | B27: Social | C27: 4. CUARTO DERECHO: A LA EDUCACIÓN DESDE LA PRIMERA INFANCIA | D27: AGS.18.4 | E27: Porcentaje de instituciones educativas y programas no escolarizados de Educación Inicial que brindan atención educativa, alimentación y salud (distritos mas pobres) | F27: Departamental | G27: Cajamarca | H27: 2014 | I27: 55.6 | J27: Porcentaje | K27: Estadística de la Calidad Educativa (ESCALE) - Ministerio de Educación (MINEDU) | L27: Censo Escolar del Ministerio de Educación - Unidad de Estadística Educativa (UEE) | M27: http://escale.minedu.gob.pe/ueetendencias20002015 | Q27: =IFERROR(IF(VLOOKUP(CONCATENATE(E27,F27,G27),ListaIndicadores!$AC$7:$AG$1887,4,FALSE)="","",VLOOKUP(CONCATENATE(E27,F27,G27),ListaIndicadores!$AC$7:$AG$1887,4,FALSE)),"") -> 101 | R27: =VLOOKUP(CONCATENATE(E27,F27,G27),ListaIndicadores!$AC$7:$AG$1887,5,FALSE) -> ¡Faltan datos! | S27: Porcentaje de instituciones educativas y programas no escolarizados de Educación Inicial que brindan atención educativa, alimentación y salud (distritos mas pobres)DepartamentalCajamarca2014 | T27: 55.6
A28: 29384 | B28: Social | C28: 4. CUARTO DERECHO: A LA EDUCACIÓN DESDE LA PRIMERA INFANCIA | D28: AGS.18.4 | E28: Porcentaje de instituciones educativas y programas no escolarizados de Educación Inicial que brindan atención educativa, alimentación y salud (distritos mas pobres) | F28: Departamental | G28: Cajamarca | H28: 2015 | I28: 82.5 | J28: Porcentaje | K28: Estadística de la Calidad Educativa (ESCALE) - Ministerio de Educación (MINEDU) | L28: Censo Escolar del Ministerio de Educación - Unidad de Estadística Educativa (UEE) | M28: http://escale.minedu.gob.pe/ueetendencias20002015 | Q28: =IFERROR(IF(VLOOKUP(CONCATENATE(E28,F28,G28),ListaIndicadores!$AC$7:$AG$1887,4,FALSE)="","",VLOOKUP(CONCATENATE(E28,F28,G28),ListaIndicadores!$AC$7:$AG$1887,4,FALSE)),"") -> 101 | R28: =VLOOKUP(CONCATENATE(E28,F28,G28),ListaIndicadores!$AC$7:$AG$1887,5,FALSE) -> ¡Faltan datos! | S28: Porcentaje de instituciones educativas y programas no escolarizados de Educación Inicial que brindan atención educativa, alimentación y salud (distritos mas pobres)DepartamentalCajamarca2015 | T28: 82.5
A29: 29385 | B29: Social | C29: 4. CUARTO DERECHO: A LA EDUCACIÓN DESDE LA PRIMERA INFANCIA | D29: AGS.18.4 | E29: Porcentaje de instituciones educativas y programas no escolarizados de Educación Inicial que brindan atención educativa, alimentación y salud (distritos mas pobres) | F29: Departamental | G29: Cajamarca | H29: 2016 | I29: 83.3 | J29: Porcentaje | K29: Estadística de la Calidad Educativa (ESCALE) - Ministerio de Educación (MINEDU) | L29: Censo Escolar del Ministerio de Educación - Unidad de Estadística Educativa (UEE) | M29: http://escale.minedu.gob.pe/ueetendencias20002015 | Q29: =IFERROR(IF(VLOOKUP(CONCATENATE(E29,F29,G29),ListaIndicadores!$AC$7:$AG$1887,4,FALSE)="","",VLOOKUP(CONCATENATE(E29,F29,G29),ListaIndicadores!$AC$7:$AG$1887,4,FALSE)),"") -> 101 | R29: =VLOOKUP(CONCATENATE(E29,F29,G29),ListaIndicadores!$AC$7:$AG$1887,5,FALSE) -> ¡Faltan datos! | S29: Porcentaje de instituciones educativas y programas no escolarizados de Educación Inicial que brindan atención educativa, alimentación y salud (distritos mas pobres)DepartamentalCajamarca2016 | T29: 83.3
A30: 29386 | B30: Social | C30: 4. CUARTO DERECHO: A LA EDUCACIÓN DESDE LA PRIMERA INFANCIA | D30: AGS.18.4 | E30: Porcentaje de instituciones educativas y programas no escolarizados de Educación Inicial que brindan atención educativa, alimentación y salud (distritos mas pobres) | F30: Departamental | G30: Cajamarca | H30: 2017 | I30: 87.5 | J30: Porcentaje | K30: Estadística de la Calidad Educativa (ESCALE) - Ministerio de Educación (MINEDU) | L30: Censo Escolar del Ministerio de Educación - Unidad de Estadística Educativa (UEE) | M30: http://escale.minedu.gob.pe/ueetendencias20002015 | Q30: =IFERROR(IF(VLOOKUP(CONCATENATE(E30,F30,G30),ListaIndicadores!$AC$7:$AG$1887,4,FALSE)="","",VLOOKUP(CONCATENATE(E30,F30,G30),ListaIndicadores!$AC$7:$AG$1887,4,FALSE)),"") -> 101 | R30: =VLOOKUP(CONCATENATE(E30,F30,G30),ListaIndicadores!$AC$7:$AG$1887,5,FALSE) -> ¡Faltan datos! | S30: Porcentaje de instituciones educativas y programas no escolarizados de Educación Inicial que brindan atención educativa, alimentación y salud (distritos mas pobres)DepartamentalCajamarca2017 | T30: 87.5
A31: 29387 | B31: Social | C31: 4. CUARTO DERECHO: A LA EDUCACIÓN DESDE LA PRIMERA INFANCIA | D31: AGS.18.4 | E31: Porcentaje de instituciones educativas y programas no escolarizados de Educación Inicial que brindan atención educativa, alimentación y salud (distritos mas pobres) | F31: Departamental | G31: Cajamarca | H31: 2018 | I31: 91.7 | J31: Porcentaje | K31: Estadística de la Calidad Educativa (ESCALE) - Ministerio de Educación (MINEDU) | L31: Censo Escolar del Ministerio de Educación - Unidad de Estadística Educativa (UEE) | M31: http://escale.minedu.gob.pe/ueetendencias20002015 | Q31: =IFERROR(IF(VLOOKUP(CONCATENATE(E31,F31,G31),ListaIndicadores!$AC$7:$AG$1887,4,FALSE)="","",VLOOKUP(CONCATENATE(E31,F31,G31),ListaIndicadores!$AC$7:$AG$1887,4,FALSE)),"") -> 101 | R31: =VLOOKUP(CONCATENATE(E31,F31,G31),ListaIndicadores!$AC$7:$AG$1887,5,FALSE) -> ¡Faltan datos! | S31: Porcentaje de instituciones educativas y programas no escolarizados de Educación Inicial que brindan atención educativa, alimentación y salud (distritos mas pobres)DepartamentalCajamarca2018 | T31: 91.7
A32: 29388 | B32: Social | C32: 4. CUARTO DERECHO: A LA EDUCACIÓN DESDE LA PRIMERA INFANCIA | D32: AGS.18.4 | E32: Porcentaje de instituciones educativas y programas no escolarizados de Educación Inicial que brindan atención educativa, alimentación y salud (distritos mas pobres) | F32: Departamental | G32: Prov. Const. del Callao | H32: 2014 | I32: Sin datos | J32: Porcentaje | K32: Estadística de la Calidad Educativa (ESCALE) - Ministerio de Educación (MINEDU) | L32: Censo Escolar del Ministerio de Educación - Unidad de Estadística Educativa (UEE) | M32: http://escale.minedu.gob.pe/ueetendencias20002015 | O32: Datos no existentes | Q32: =IFERROR(IF(VLOOKUP(CONCATENATE(E32,F32,G32),ListaIndicadores!$AC$7:$AG$1887,4,FALSE)="","",VLOOKUP(CONCATENATE(E32,F32,G32),ListaIndicadores!$AC$7:$AG$1887,4,FALSE)),"") ->  | R32: =VLOOKUP(CONCATENATE(E32,F32,G32),ListaIndicadores!$AC$7:$AG$1887,5,FALSE) ->  | S32: Porcentaje de instituciones educativas y programas no escolarizados de Educación Inicial que brindan atención educativa, alimentación y salud (distritos mas pobres)DepartamentalProv. Const. del Callao2014 | T32: Sin datos
A33: 29389 | B33: Social | C33: 4. CUARTO DERECHO: A LA EDUCACIÓN DESDE LA PRIMERA INFANCIA | D33: AGS.18.4 | E33: Porcentaje de instituciones educativas y programas no escolarizados de Educación Inicial que brindan atención educativa, alimentación y salud (distritos mas pobres) | F33: Departamental | G33: Prov. Const. del Callao | H33: 2015 | I33: Sin datos | J33: Porcentaje | K33: Estadística de la Calidad Educativa (ESCALE) - Ministerio de Educación (MINEDU) | L33: Censo Escolar del Ministerio de Educación - Unidad de Estadística Educativa (UEE) | M33: http://escale.minedu.gob.pe/ueetendencias20002015 | N33: - | O33: Datos no existentes | Q33: =IFERROR(IF(VLOOKUP(CONCATENATE(E33,F33,G33),ListaIndicadores!$AC$7:$AG$1887,4,FALSE)="","",VLOOKUP(CONCATENATE(E33,F33,G33),ListaIndicadores!$AC$7:$AG$1887,4,FALSE)),"") ->  | R33: =VLOOKUP(CONCATENATE(E33,F33,G33),ListaIndicadores!$AC$7:$AG$1887,5,FALSE) ->  | S33: Porcentaje de instituciones educativas y programas no escolarizados de Educación Inicial que brindan atención educativa, alimentación y salud (distritos mas pobres)DepartamentalProv. Const. del Callao2015 | T33: Sin datos
A34: 29390 | B34: Social | C34: 4. CUARTO DERECHO: A LA EDUCACIÓN DESDE LA PRIMERA INFANCIA | D34: AGS.18.4 | E34: Porcentaje de instituciones educativas y programas no escolarizados de Educación Inicial que brindan atención educativa, alimentación y salud (distritos mas pobres) | F34: Departamental | G34: Prov. Const. del Callao | H34: 2016 | I34: Sin datos | J34: Porcentaje | K34: Estadística de la Calidad Educativa (ESCALE) - Ministerio de Educación (MINEDU) | L34: Censo Escolar del Ministerio de Educación - Unidad de Estadística Educativa (UEE) | M34: http://escale.minedu.gob.pe/ueetendencias20002015 | O34: Datos no existentes | Q34: =IFERROR(IF(VLOOKUP(CONCATENATE(E34,F34,G34),ListaIndicadores!$AC$7:$AG$1887,4,FALSE)="","",VLOOKUP(CONCATENATE(E34,F34,G34),ListaIndicadores!$AC$7:$AG$1887,4,FALSE)),"") ->  | R34: =VLOOKUP(CONCATENATE(E34,F34,G34),ListaIndicadores!$AC$7:$AG$1887,5,FALSE) ->  | S34: Porcentaje de instituciones educativas y programas no escolarizados de Educación Inicial que brindan atención educativa, alimentación y salud (distritos mas pobres)DepartamentalProv. Const. del Callao2016 | T34: Sin datos
A35: 29391 | B35: Social | C35: 4. CUARTO DERECHO: A LA EDUCACIÓN DESDE LA PRIMERA INFANCIA | D35: AGS.18.4 | E35: Porcentaje de instituciones educativas y programas no escolarizados de Educación Inicial que brindan atención educativa, alimentación y salud (distritos mas pobres) | F35: Departamental | G35: Prov. Const. del Callao | H35: 2017 | I35: Sin datos | J35: Porcentaje | K35: Estadística de la Calidad Educativa (ESCALE) - Ministerio de Educación (MINEDU) | L35: Censo Escolar del Ministerio de Educación - Unidad de Estadística Educativa (UEE) | M35: http://escale.minedu.gob.pe/ueetendencias20002015 | N35: - | O35: Datos no existentes | Q35: =IFERROR(IF(VLOOKUP(CONCATENATE(E35,F35,G35),ListaIndicadores!$AC$7:$AG$1887,4,FALSE)="","",VLOOKUP(CONCATENATE(E35,F35,G35),ListaIndicadores!$AC$7:$AG$1887,4,FALSE)),"") ->  | R35: =VLOOKUP(CONCATENATE(E35,F35,G35),ListaIndicadores!$AC$7:$AG$1887,5,FALSE) ->  | S35: Porcentaje de instituciones educativas y programas no escolarizados de Educación Inicial que brindan atención educativa, alimentación y salud (distritos mas pobres)DepartamentalProv. Const. del Callao2017 | T35: Sin datos
A36: 29392 | B36: Social | C36: 4. CUARTO DERECHO: A LA EDUCACIÓN DESDE LA PRIMERA INFANCIA | D36: AGS.18.4 | E36: Porcentaje de instituciones educativas y programas no escolarizados de Educación Inicial que brindan atención educativa, alimentación y salud (distritos mas pobres) | F36: Departamental | G36: Prov. Const. del Callao | H36: 2018 | I36: Sin datos | J36: Porcentaje | K36: Estadística de la Calidad Educativa (ESCALE) - Ministerio de Educación (MINEDU) | L36: Censo Escolar del Ministerio de Educación - Unidad de Estadística Educativa (UEE) | M36: http://escale.minedu.gob.pe/ueetendencias20002015 | N36: - | O36: Datos no existentes | Q36: =IFERROR(IF(VLOOKUP(CONCATENATE(E36,F36,G36),ListaIndicadores!$AC$7:$AG$1887,4,FALSE)="","",VLOOKUP(CONCATENATE(E36,F36,G36),ListaIndicadores!$AC$7:$AG$1887,4,FALSE)),"") ->  | R36: =VLOOKUP(CONCATENATE(E36,F36,G36),ListaIndicadores!$AC$7:$AG$1887,5,FALSE) ->  | S36: Porcentaje de instituciones educativas y programas no escolarizados de Educación Inicial que brindan atención educativa, alimentación y salud (distritos mas pobres)DepartamentalProv. Const. del Callao2018 | T36: Sin datos
A37: 29393 | B37: Social | C37: 4. CUARTO DERECHO: A LA EDUCACIÓN DESDE LA PRIMERA INFANCIA | D37: AGS.18.4 | E37: Porcentaje de instituciones educativas y programas no escolarizados de Educación Inicial que brindan atención educativa, alimentación y salud (distritos mas pobres) | F37: Departamental | G37: Cusco | H37: 2014 | I37: 73.6 | J37: Porcentaje | K37: Estadística de la Calidad Educativa (ESCALE) - Ministerio de Educación (MINEDU) | L37: Censo Escolar del Ministerio de Educación - Unidad de Estadística Educativa (UEE) | M37: http://escale.minedu.gob.pe/ueetendencias20002015 | Q37: =IFERROR(IF(VLOOKUP(CONCATENATE(E37,F37,G37),ListaIndicadores!$AC$7:$AG$1887,4,FALSE)="","",VLOOKUP(CONCATENATE(E37,F37,G37),ListaIndicadores!$AC$7:$AG$1887,4,FALSE)),"") -> 82 | R37: =VLOOKUP(CONCATENATE(E37,F37,G37),ListaIndicadores!$AC$7:$AG$1887,5,FALSE) -> ¡Faltan datos! | S37: Porcentaje de instituciones educativas y programas no escolarizados de Educación Inicial que brindan atención educativa, alimentación y salud (distritos mas pobres)DepartamentalCusco2014 | T37: 73.6
A38: 29394 | B38: Social | C38: 4. CUARTO DERECHO: A LA EDUCACIÓN DESDE LA PRIMERA INFANCIA | D38: AGS.18.4 | E38: Porcentaje de instituciones educativas y programas no escolarizados de Educación Inicial que brindan atención educativa, alimentación y salud (distritos mas pobres) | F38: Departamental | G38: Cusco | H38: 2015 | I38: 82.5 | J38: Porcentaje | K38: Estadística de la Calidad Educativa (ESCALE) - Ministerio de Educación (MINEDU) | L38: Censo Escolar del Ministerio de Educación - Unidad de Estadística Educativa (UEE) | M38: http://escale.minedu.gob.pe/ueetendencias20002015 | Q38: =IFERROR(IF(VLOOKUP(CONCATENATE(E38,F38,G38),ListaIndicadores!$AC$7:$AG$1887,4,FALSE)="","",VLOOKUP(CONCATENATE(E38,F38,G38),ListaIndicadores!$AC$7:$AG$1887,4,FALSE)),"") -> 82 | R38: =VLOOKUP(CONCATENATE(E38,F38,G38),ListaIndicadores!$AC$7:$AG$1887,5,FALSE) -> ¡Faltan datos! | S38: Porcentaje de instituciones educativas y programas no escolarizados de Educación Inicial que brindan atención educativa, alimentación y salud (distritos mas pobres)DepartamentalCusco2015 | T38: 82.5
A39: 29395 | B39: Social | C39: 4. CUARTO DERECHO: A LA EDUCACIÓN DESDE LA PRIMERA INFANCIA | D39: AGS.18.4 | E39: Porcentaje de instituciones educativas y programas no escolarizados de Educación Inicial que brindan atención educativa, alimentación y salud (distritos mas pobres) | F39: Departamental | G39: Cusco | H39: 2016 | I39: 86.7 | J39: Porcentaje | K39: Estadística de la Calidad Educativa (ESCALE) - Ministerio de Educación (MINEDU) | L39: Censo Escolar del Ministerio de Educación - Unidad de Estadística Educativa (UEE) | M39: http://escale.minedu.gob.pe/ueetendencias20002015 | Q39: =IFERROR(IF(VLOOKUP(CONCATENATE(E39,F39,G39),ListaIndicadores!$AC$7:$AG$1887,4,FALSE)="","",VLOOKUP(CONCATENATE(E39,F39,G39),ListaIndicadores!$AC$7:$AG$1887,4,FALSE)),"") -> 82 | R39: =VLOOKUP(CONCATENATE(E39,F39,G39),ListaIndicadores!$AC$7:$AG$1887,5,FALSE) -> ¡Faltan datos! | S39: Porcentaje de instituciones educativas y programas no escolarizados de Educación Inicial que brindan atención educativa, alimentación y salud (distritos mas pobres)DepartamentalCusco2016 | T39: 86.7
A40: 29396 | B40: Social | C40: 4. CUARTO DERECHO: A LA EDUCACIÓN DESDE LA PRIMERA INFANCIA | D40: AGS.18.4 | E40: Porcentaje de instituciones educativas y programas no escolarizados de Educación Inicial que brindan atención educativa, alimentación y salud (distritos mas pobres) | F40: Departamental | G40: Cusco | H40: 2017 | I40: 84.1 | J40: Porcentaje | K40: Estadística de la Calidad Educativa (ESCALE) - Ministerio de Educación (MINEDU) | L40: Censo Escolar del Ministerio de Educación - Unidad de Estadística Educativa (UEE) | M40: http://escale.minedu.gob.pe/ueetendencias20002015 | Q40: =IFERROR(IF(VLOOKUP(CONCATENATE(E40,F40,G40),ListaIndicadores!$AC$7:$AG$1887,4,FALSE)="","",VLOOKUP(CONCATENATE(E40,F40,G40),ListaIndicadores!$AC$7:$AG$1887,4,FALSE)),"") -> 82 | R40: =VLOOKUP(CONCATENATE(E40,F40,G40),ListaIndicadores!$AC$7:$AG$1887,5,FALSE) -> ¡Faltan datos! | S40: Porcentaje de instituciones educativas y programas no escolarizados de Educación Inicial que brindan atención educativa, alimentación y salud (distritos mas pobres)DepartamentalCusco2017 | T40: 84.1
A41: 29397 | B41: Social | C41: 4. CUARTO DERECHO: A LA EDUCACIÓN DESDE LA PRIMERA INFANCIA | D41: AGS.18.4 | E41: Porcentaje de instituciones educativas y programas no escolarizados de Educación Inicial que brindan atención educativa, alimentación y salud (distritos mas pobres) | F41: Departamental | G41: Cusco | H41: 2018 | I41: 83.4 | J41: Porcentaje | K41: Estadística de la Calidad Educativa (ESCALE) - Ministerio de Educación (MINEDU) | L41: Censo Escolar del Ministerio de Educación - Unidad de Estadística Educativa (UEE) | M41: http://escale.minedu.gob.pe/ueetendencias20002015 | Q41: =IFERROR(IF(VLOOKUP(CONCATENATE(E41,F41,G41),ListaIndicadores!$AC$7:$AG$1887,4,FALSE)="","",VLOOKUP(CONCATENATE(E41,F41,G41),ListaIndicadores!$AC$7:$AG$1887,4,FALSE)),"") -> 82 | R41: =VLOOKUP(CONCATENATE(E41,F41,G41),ListaIndicadores!$AC$7:$AG$1887,5,FALSE) -> ¡Faltan datos! | S41: Porcentaje de instituciones educativas y programas no escolarizados de Educación Inicial que brindan atención educativa, alimentación y salud (distritos mas pobres)DepartamentalCusco2018 | T41: 83.4
A42: 29398 | B42: Social | C42: 4. CUARTO DERECHO: A LA EDUCACIÓN DESDE LA PRIMERA INFANCIA | D42: AGS.18.4 | E42: Porcentaje de instituciones educativas y programas no escolarizados de Educación Inicial que brindan atención educativa, alimentación y salud (distritos mas pobres) | F42: Departamental | G42: Huancavelica | H42: 2014 | I42: 72.9 | J42: Porcentaje | K42: Estadística de la Calidad Educativa (ESCALE) - Ministerio de Educación (MINEDU) | L42: Censo Escolar del Ministerio de Educación - Unidad de Estadística Educativa (UEE) | M42: http://escale.minedu.gob.pe/ueetendencias20002015 | Q42: =IFERROR(IF(VLOOKUP(CONCATENATE(E42,F42,G42),ListaIndicadores!$AC$7:$AG$1887,4,FALSE)="","",VLOOKUP(CONCATENATE(E42,F42,G42),ListaIndicadores!$AC$7:$AG$1887,4,FALSE)),"") -> 87 | R42: =VLOOKUP(CONCATENATE(E42,F42,G42),ListaIndicadores!$AC$7:$AG$1887,5,FALSE) -> ¡Faltan datos! | S42: Porcentaje de instituciones educativas y programas no escolarizados de Educación Inicial que brindan atención educativa, alimentación y salud (distritos mas pobres)DepartamentalHuancavelica2014 | T42: 72.9
A43: 29399 | B43: Social | C43: 4. CUARTO DERECHO: A LA EDUCACIÓN DESDE LA PRIMERA INFANCIA | D43: AGS.18.4 | E43: Porcentaje de instituciones educativas y programas no escolarizados de Educación Inicial que brindan atención educativa, alimentación y salud (distritos mas pobres) | F43: Departamental | G43: Huancavelica | H43: 2015 | I43: 80.8 | J43: Porcentaje | K43: Estadística de la Calidad Educativa (ESCALE) - Ministerio de Educación (MINEDU) | L43: Censo Escolar del Ministerio de Educación - Unidad de Estadística Educativa (UEE) | M43: http://escale.minedu.gob.pe/ueetendencias20002015 | Q43: =IFERROR(IF(VLOOKUP(CONCATENATE(E43,F43,G43),ListaIndicadores!$AC$7:$AG$1887,4,FALSE)="","",VLOOKUP(CONCATENATE(E43,F43,G43),ListaIndicadores!$AC$7:$AG$1887,4,FALSE)),"") -> 87 | R43: =VLOOKUP(CONCATENATE(E43,F43,G43),ListaIndicadores!$AC$7:$AG$1887,5,FALSE) -> ¡Faltan datos! | S43: Porcentaje de instituciones educativas y programas no escolarizados de Educación Inicial que brindan atención educativa, alimentación y salud (distritos mas pobres)DepartamentalHuancavelica2015 | T43: 80.8
A44: 29400 | B44: Social | C44: 4. CUARTO DERECHO: A LA EDUCACIÓN DESDE LA PRIMERA INFANCIA | D44: AGS.18.4 | E44: Porcentaje de instituciones educativas y programas no escolarizados de Educación Inicial que brindan atención educativa, alimentación y salud (distritos mas pobres) | F44: Departamental | G44: Huancavelica | H44: 2016 | I44: 84 | J44: Porcentaje | K44: Estadística de la Calidad Educativa (ESCALE) - Ministerio de Educación (MINEDU) | L44: Censo Escolar del Ministerio de Educación - Unidad de Estadística Educativa (UEE) | M44: http://escale.minedu.gob.pe/ueetendencias20002015 | Q44: =IFERROR(IF(VLOOKUP(CONCATENATE(E44,F44,G44),ListaIndicadores!$AC$7:$AG$1887,4,FALSE)="","",VLOOKUP(CONCATENATE(E44,F44,G44),ListaIndicadores!$AC$7:$AG$1887,4,FALSE)),"") -> 87 | R44: =VLOOKUP(CONCATENATE(E44,F44,G44),ListaIndicadores!$AC$7:$AG$1887,5,FALSE) -> ¡Faltan datos! | S44: Porcentaje de instituciones educativas y programas no escolarizados de Educación Inicial que brindan atención educativa, alimentación y salud (distritos mas pobres)DepartamentalHuancavelica2016 | T44: 84
A45: 29401 | B45: Social | C45: 4. CUARTO DERECHO: A LA EDUCACIÓN DESDE LA PRIMERA INFANCIA | D45: AGS.18.4 | E45: Porcentaje de instituciones educativas y programas no escolarizados de Educación Inicial que brindan atención educativa, alimentación y salud (distritos mas pobres) | F45: Departamental | G45: Huancavelica | H45: 2017 | I45: 86.3 | J45: Porcentaje | K45: Estadística de la Calidad Educativa (ESCALE) - Ministerio de Educación (MINEDU) | L45: Censo Escolar del Ministerio de Educación - Unidad de Estadística Educativa (UEE) | M45: http://escale.minedu.gob.pe/ueetendencias20002015 | Q45: =IFERROR(IF(VLOOKUP(CONCATENATE(E45,F45,G45),ListaIndicadores!$AC$7:$AG$1887,4,FALSE)="","",VLOOKUP(CONCATENATE(E45,F45,G45),ListaIndicadores!$AC$7:$AG$1887,4,FALSE)),"") -> 87 | R45: =VLOOKUP(CONCATENATE(E45,F45,G45),ListaIndicadores!$AC$7:$AG$1887,5,FALSE) -> ¡Faltan datos! | S45: Porcentaje de instituciones educativas y programas no escolarizados de Educación Inicial que brindan atención educativa, alimentación y salud (distritos mas pobres)DepartamentalHuancavelica2017 | T45: 86.3
A46: 29402 | B46: Social | C46: 4. CUARTO DERECHO: A LA EDUCACIÓN DESDE LA PRIMERA INFANCIA | D46: AGS.18.4 | E46: Porcentaje de instituciones educativas y programas no escolarizados de Educación Inicial que brindan atención educativa, alimentación y salud (distritos mas pobres) | F46: Departamental | G46: Huancavelica | H46: 2018 | I46: 86.2 | J46: Porcentaje | K46: Estadística de la Calidad Educativa (ESCALE) - Ministerio de Educación (MINEDU) | L46: Censo Escolar del Ministerio de Educación - Unidad de Estadística Educativa (UEE) | M46: http://escale.minedu.gob.pe/ueetendencias20002015 | Q46: =IFERROR(IF(VLOOKUP(CONCATENATE(E46,F46,G46),ListaIndicadores!$AC$7:$AG$1887,4,FALSE)="","",VLOOKUP(CONCATENATE(E46,F46,G46),ListaIndicadores!$AC$7:$AG$1887,4,FALSE)),"") -> 87 | R46: =VLOOKUP(CONCATENATE(E46,F46,G46),ListaIndicadores!$AC$7:$AG$1887,5,FALSE) -> ¡Faltan datos! | S46: Porcentaje de instituciones educativas y programas no escolarizados de Educación Inicial que brindan atención educativa, alimentación y salud (distritos mas pobres)DepartamentalHuancavelica2018 | T46: 86.2
A47: 29403 | B47: Social | C47: 4. CUARTO DERECHO: A LA EDUCACIÓN DESDE LA PRIMERA INFANCIA | D47: AGS.18.4 | E47: Porcentaje de instituciones educativas y programas no escolarizados de Educación Inicial que brindan atención educativa, alimentación y salud (distritos mas pobres) | F47: Departamental | G47: Huánuco | H47: 2014 | I47: 94.4 | J47: Porcentaje | K47: Estadística de la Calidad Educativa (ESCALE) - Ministerio de Educación (MINEDU) | L47: Censo Escolar del Ministerio de Educación - Unidad de Estadística Educativa (UEE) | M47: http://escale.minedu.gob.pe/ueetendencias20002015 | Q47: =IFERROR(IF(VLOOKUP(CONCATENATE(E47,F47,G47),ListaIndicadores!$AC$7:$AG$1887,4,FALSE)="","",VLOOKUP(CONCATENATE(E47,F47,G47),ListaIndicadores!$AC$7:$AG$1887,4,FALSE)),"") -> 91 | R47: =VLOOKUP(CONCATENATE(E47,F47,G47),ListaIndicadores!$AC$7:$AG$1887,5,FALSE) -> ¡Faltan datos! | S47: Porcentaje de instituciones educativas y programas no escolarizados de Educación Inicial que brindan atención educativa, alimentación y salud (distritos mas pobres)DepartamentalHuánuco2014 | T47: 94.4
A48: 29404 | B48: Social | C48: 4. CUARTO DERECHO: A LA EDUCACIÓN DESDE LA PRIMERA INFANCIA | D48: AGS.18.4 | E48: Porcentaje de instituciones educativas y programas no escolarizados de Educación Inicial que brindan atención educativa, alimentación y salud (distritos mas pobres) | F48: Departamental | G48: Huánuco | H48: 2015 | I48: 93.9 | J48: Porcentaje | K48: Estadística de la Calidad Educativa (ESCALE) - Ministerio de Educación (MINEDU) | L48: Censo Escolar del Ministerio de Educación - Unidad de Estadística Educativa (UEE) | M48: http://escale.minedu.gob.pe/ueetendencias20002015 | Q48: =IFERROR(IF(VLOOKUP(CONCATENATE(E48,F48,G48),ListaIndicadores!$AC$7:$AG$1887,4,FALSE)="","",VLOOKUP(CONCATENATE(E48,F48,G48),ListaIndicadores!$AC$7:$AG$1887,4,FALSE)),"") -> 91 | R48: =VLOOKUP(CONCATENATE(E48,F48,G48),ListaIndicadores!$AC$7:$AG$1887,5,FALSE) -> ¡Faltan datos! | S48: Porcentaje de instituciones educativas y programas no escolarizados de Educación Inicial que brindan atención educativa, alimentación y salud (distritos mas pobres)DepartamentalHuánuco2015 | T48: 93.9
A49: 29405 | B49: Social | C49: 4. CUARTO DERECHO: A LA EDUCACIÓN DESDE LA PRIMERA INFANCIA | D49: AGS.18.4 | E49: Porcentaje de instituciones educativas y programas no escolarizados de Educación Inicial que brindan atención educativa, alimentación y salud (distritos mas pobres) | F49: Departamental | G49: Huánuco | H49: 2016 | I49: 84.6 | J49: Porcentaje | K49: Estadística de la Calidad Educativa (ESCALE) - Ministerio de Educación (MINEDU) | L49: Censo Escolar del Ministerio de Educación - Unidad de Estadística Educativa (UEE) | M49: http://escale.minedu.gob.pe/ueetendencias20002015 | Q49: =IFERROR(IF(VLOOKUP(CONCATENATE(E49,F49,G49),ListaIndicadores!$AC$7:$AG$1887,4,FALSE)="","",VLOOKUP(CONCATENATE(E49,F49,G49),ListaIndicadores!$AC$7:$AG$1887,4,FALSE)),"") -> 91 | R49: =VLOOKUP(CONCATENATE(E49,F49,G49),ListaIndicadores!$AC$7:$AG$1887,5,FALSE) -> ¡Faltan datos! | S49: Porcentaje de instituciones educativas y programas no escolarizados de Educación Inicial que brindan atención educativa, alimentación y salud (distritos mas pobres)DepartamentalHuánuco2016 | T49: 84.6
A50: 29406 | B50: Social | C50: 4. CUARTO DERECHO: A LA EDUCACIÓN DESDE LA PRIMERA INFANCIA | D50: AGS.18.4 | E50: Porcentaje de instituciones educativas y programas no escolarizados de Educación Inicial que brindan atención educativa, alimentación y salud (distritos mas pobres) | F50: Departamental | G50: Huánuco | H50: 2017 | I50: 87.6 | J50: Porcentaje | K50: Estadística de la Calidad Educativa (ESCALE) - Ministerio de Educación (MINEDU) | L50: Censo Escolar del Ministerio de Educación - Unidad de Estadística Educativa (UEE) | M50: http://escale.minedu.gob.pe/ueetendencias20002015 | Q50: =IFERROR(IF(VLOOKUP(CONCATENATE(E50,F50,G50),ListaIndicadores!$AC$7:$AG$1887,4,FALSE)="","",VLOOKUP(CONCATENATE(E50,F50,G50),ListaIndicadores!$AC$7:$AG$1887,4,FALSE)),"") -> 91 | R50: =VLOOKUP(CONCATENATE(E50,F50,G50),ListaIndicadores!$AC$7:$AG$1887,5,FALSE) -> ¡Faltan datos! | S50: Porcentaje de instituciones educativas y programas no escolarizados de Educación Inicial que brindan atención educativa, alimentación y salud (distritos mas pobres)DepartamentalHuánuco2017 | T50: 87.6
A51: 29407 | B51: Social | C51: 4. CUARTO DERECHO: A LA EDUCACIÓN DESDE LA PRIMERA INFANCIA | D51: AGS.18.4 | E51: Porcentaje de instituciones educativas y programas no escolarizados de Educación Inicial que brindan atención educativa, alimentación y salud (distritos mas pobres) | F51: Departamental | G51: Huánuco | H51: 2018 | I51: 89.9 | J51: Porcentaje | K51: Estadística de la Calidad Educativa (ESCALE) - Ministerio de Educación (MINEDU) | L51: Censo Escolar del Ministerio de Educación - Unidad de Estadística Educativa (UEE) | M51: http://escale.minedu.gob.pe/ueetendencias20002015 | Q51: =IFERROR(IF(VLOOKUP(CONCATENATE(E51,F51,G51),ListaIndicadores!$AC$7:$AG$1887,4,FALSE)="","",VLOOKUP(CONCATENATE(E51,F51,G51),ListaIndicadores!$AC$7:$AG$1887,4,FALSE)),"") -> 91 | R51: =VLOOKUP(CONCATENATE(E51,F51,G51),ListaIndicadores!$AC$7:$AG$1887,5,FALSE) -> ¡Faltan datos! | S51: Porcentaje de instituciones educativas y programas no escolarizados de Educación Inicial que brindan atención educativa, alimentación y salud (distritos mas pobres)DepartamentalHuánuco2018 | T51: 89.9
A52: 29408 | B52: Social | C52: 4. CUARTO DERECHO: A LA EDUCACIÓN DESDE LA PRIMERA INFANCIA | D52: AGS.18.4 | E52: Porcentaje de instituciones educativas y programas no escolarizados de Educación Inicial que brindan atención educativa, alimentación y salud (distritos mas pobres) | F52: Departamental | G52: Ica | H52: 2014 | I52: 95.7 | J52: Porcentaje | K52: Estadística de la Calidad Educativa (ESCALE) - Ministerio de Educación (MINEDU) | L52: Censo Escolar del Ministerio de Educación - Unidad de Estadística Educativa (UEE) | M52: http://escale.minedu.gob.pe/ueetendencias20002015 | Q52: =IFERROR(IF(VLOOKUP(CONCATENATE(E52,F52,G52),ListaIndicadores!$AC$7:$AG$1887,4,FALSE)="","",VLOOKUP(CONCATENATE(E52,F52,G52),ListaIndicadores!$AC$7:$AG$1887,4,FALSE)),"") -> 19 | R52: =VLOOKUP(CONCATENATE(E52,F52,G52),ListaIndicadores!$AC$7:$AG$1887,5,FALSE) -> ¡Faltan datos! | S52: Porcentaje de instituciones educativas y programas no escolarizados de Educación Inicial que brindan atención educativa, alimentación y salud (distritos mas pobres)DepartamentalIca2014 | T52: 95.7
A53: 29409 | B53: Social | C53: 4. CUARTO DERECHO: A LA EDUCACIÓN DESDE LA PRIMERA INFANCIA | D53: AGS.18.4 | E53: Porcentaje de instituciones educativas y programas no escolarizados de Educación Inicial que brindan atención educativa, alimentación y salud (distritos mas pobres) | F53: Departamental | G53: Ica | H53: 2015 | I53: 92.9 | J53: Porcentaje | K53: Estadística de la Calidad Educativa (ESCALE) - Ministerio de Educación (MINEDU) | L53: Censo Escolar del Ministerio de Educación - Unidad de Estadística Educativa (UEE) | M53: http://escale.minedu.gob.pe/ueetendencias20002015 | Q53: =IFERROR(IF(VLOOKUP(CONCATENATE(E53,F53,G53),ListaIndicadores!$AC$7:$AG$1887,4,FALSE)="","",VLOOKUP(CONCATENATE(E53,F53,G53),ListaIndicadores!$AC$7:$AG$1887,4,FALSE)),"") -> 19 | R53: =VLOOKUP(CONCATENATE(E53,F53,G53),ListaIndicadores!$AC$7:$AG$1887,5,FALSE) -> ¡Faltan datos! | S53: Porcentaje de instituciones educativas y programas no escolarizados de Educación Inicial que brindan atención educativa, alimentación y salud (distritos mas pobres)DepartamentalIca2015 | T53: 92.9
A54: 29410 | B54: Social | C54: 4. CUARTO DERECHO: A LA EDUCACIÓN DESDE LA PRIMERA INFANCIA | D54: AGS.18.4 | E54: Porcentaje de instituciones educativas y programas no escolarizados de Educación Inicial que brindan atención educativa, alimentación y salud (distritos mas pobres) | F54: Departamental | G54: Ica | H54: 2016 | I54: 59 | J54: Porcentaje | K54: Estadística de la Calidad Educativa (ESCALE) - Ministerio de Educación (MINEDU) | L54: Censo Escolar del Ministerio de Educación - Unidad de Estadística Educativa (UEE) | M54: http://escale.minedu.gob.pe/ueetendencias20002015 | Q54: =IFERROR(IF(VLOOKUP(CONCATENATE(E54,F54,G54),ListaIndicadores!$AC$7:$AG$1887,4,FALSE)="","",VLOOKUP(CONCATENATE(E54,F54,G54),ListaIndicadores!$AC$7:$AG$1887,4,FALSE)),"") -> 19 | R54: =VLOOKUP(CONCATENATE(E54,F54,G54),ListaIndicadores!$AC$7:$AG$1887,5,FALSE) -> ¡Faltan datos! | S54: Porcentaje de instituciones educativas y programas no escolarizados de Educación Inicial que brindan atención educativa, alimentación y salud (distritos mas pobres)DepartamentalIca2016 | T54: 59
A55: 29411 | B55: Social | C55: 4. CUARTO DERECHO: A LA EDUCACIÓN DESDE LA PRIMERA INFANCIA | D55: AGS.18.4 | E55: Porcentaje de instituciones educativas y programas no escolarizados de Educación Inicial que brindan atención educativa, alimentación y salud (distritos mas pobres) | F55: Departamental | G55: Ica | H55: 2017 | I55: 61.3 | J55: Porcentaje | K55: Estadística de la Calidad Educativa (ESCALE) - Ministerio de Educación (MINEDU) | L55: Censo Escolar del Ministerio de Educación - Unidad de Estadística Educativa (UEE) | M55: http://escale.minedu.gob.pe/ueetendencias20002015 | Q55: =IFERROR(IF(VLOOKUP(CONCATENATE(E55,F55,G55),ListaIndicadores!$AC$7:$AG$1887,4,FALSE)="","",VLOOKUP(CONCATENATE(E55,F55,G55),ListaIndicadores!$AC$7:$AG$1887,4,FALSE)),"") -> 19 | R55: =VLOOKUP(CONCATENATE(E55,F55,G55),ListaIndicadores!$AC$7:$AG$1887,5,FALSE) -> ¡Faltan datos! | S55: Porcentaje de instituciones educativas y programas no escolarizados de Educación Inicial que brindan atención educativa, alimentación y salud (distritos mas pobres)DepartamentalIca2017 | T55: 61.3
A56: 29412 | B56: Social | C56: 4. CUARTO DERECHO: A LA EDUCACIÓN DESDE LA PRIMERA INFANCIA | D56: AGS.18.4 | E56: Porcentaje de instituciones educativas y programas no escolarizados de Educación Inicial que brindan atención educativa, alimentación y salud (distritos mas pobres) | F56: Departamental | G56: Ica | H56: 2018 | I56: 65.4 | J56: Porcentaje | K56: Estadística de la Calidad Educativa (ESCALE) - Ministerio de Educación (MINEDU) | L56: Censo Escolar del Ministerio de Educación - Unidad de Estadística Educativa (UEE) | M56: http://escale.minedu.gob.pe/ueetendencias20002015 | Q56: =IFERROR(IF(VLOOKUP(CONCATENATE(E56,F56,G56),ListaIndicadores!$AC$7:$AG$1887,4,FALSE)="","",VLOOKUP(CONCATENATE(E56,F56,G56),ListaIndicadores!$AC$7:$AG$1887,4,FALSE)),"") -> 19 | R56: =VLOOKUP(CONCATENATE(E56,F56,G56),ListaIndicadores!$AC$7:$AG$1887,5,FALSE) -> ¡Faltan datos! | S56: Porcentaje de instituciones educativas y programas no escolarizados de Educación Inicial que brindan atención educativa, alimentación y salud (distritos mas pobres)DepartamentalIca2018 | T56: 65.4
A57: 29413 | B57: Social | C57: 4. CUARTO DERECHO: A LA EDUCACIÓN DESDE LA PRIMERA INFANCIA | D57: AGS.18.4 | E57: Porcentaje de instituciones educativas y programas no escolarizados de Educación Inicial que brindan atención educativa, alimentación y salud (distritos mas pobres) | F57: Departamental | G57: Junín | H57: 2014 | I57: 92.1 | J57: Porcentaje | K57: Estadística de la Calidad Educativa (ESCALE) - Ministerio de Educación (MINEDU) | L57: Censo Escolar del Ministerio de Educación - Unidad de Estadística Educativa (UEE) | M57: http://escale.minedu.gob.pe/ueetendencias20002015 | Q57: =IFERROR(IF(VLOOKUP(CONCATENATE(E57,F57,G57),ListaIndicadores!$AC$7:$AG$1887,4,FALSE)="","",VLOOKUP(CONCATENATE(E57,F57,G57),ListaIndicadores!$AC$7:$AG$1887,4,FALSE)),"") -> 96 | R57: =VLOOKUP(CONCATENATE(E57,F57,G57),ListaIndicadores!$AC$7:$AG$1887,5,FALSE) -> ¡Faltan datos! | S57: Porcentaje de instituciones educativas y programas no escolarizados de Educación Inicial que brindan atención educativa, alimentación y salud (distritos mas pobres)DepartamentalJunín2014 | T57: 92.1
A58: 29414 | B58: Social | C58: 4. CUARTO DERECHO: A LA EDUCACIÓN DESDE LA PRIMERA INFANCIA | D58: AGS.18.4 | E58: Porcentaje de instituciones educativas y programas no escolarizados de Educación Inicial que brindan atención educativa, alimentación y salud (distritos mas pobres) | F58: Departamental | G58: Junín | H58: 2015 | I58: 93.3 | J58: Porcentaje | K58: Estadística de la Calidad Educativa (ESCALE) - Ministerio de Educación (MINEDU) | L58: Censo Escolar del Ministerio de Educación - Unidad de Estadística Educativa (UEE) | M58: http://escale.minedu.gob.pe/ueetendencias20002015 | Q58: =IFERROR(IF(VLOOKUP(CONCATENATE(E58,F58,G58),ListaIndicadores!$AC$7:$AG$1887,4,FALSE)="","",VLOOKUP(CONCATENATE(E58,F58,G58),ListaIndicadores!$AC$7:$AG$1887,4,FALSE)),"") -> 96 | R58: =VLOOKUP(CONCATENATE(E58,F58,G58),ListaIndicadores!$AC$7:$AG$1887,5,FALSE) -> ¡Faltan datos! | S58: Porcentaje de instituciones educativas y programas no escolarizados de Educación Inicial que brindan atención educativa, alimentación y salud (distritos mas pobres)DepartamentalJunín2015 | T58: 93.3
A59: 29415 | B59: Social | C59: 4. CUARTO DERECHO: A LA EDUCACIÓN DESDE LA PRIMERA INFANCIA | D59: AGS.18.4 | E59: Porcentaje de instituciones educativas y programas no escolarizados de Educación Inicial que brindan atención educativa, alimentación y salud (distritos mas pobres) | F59: Departamental | G59: Junín | H59: 2016 | I59: 71.3 | J59: Porcentaje | K59: Estadística de la Calidad Educativa (ESCALE) - Ministerio de Educación (MINEDU) | L59: Censo Escolar del Ministerio de Educación - Unidad de Estadística Educativa (UEE) | M59: http://escale.minedu.gob.pe/ueetendencias20002015 | Q59: =IFERROR(IF(VLOOKUP(CONCATENATE(E59,F59,G59),ListaIndicadores!$AC$7:$AG$1887,4,FALSE)="","",VLOOKUP(CONCATENATE(E59,F59,G59),ListaIndicadores!$AC$7:$AG$1887,4,FALSE)),"") -> 96 | R59: =VLOOKUP(CONCATENATE(E59,F59,G59),ListaIndicadores!$AC$7:$AG$1887,5,FALSE) -> ¡Faltan datos! | S59: Porcentaje de instituciones educativas y programas no escolarizados de Educación Inicial que brindan atención educativa, alimentación y salud (distritos mas pobres)DepartamentalJunín2016 | T59: 71.3
A60: 29416 | B60: Social | C60: 4. CUARTO DERECHO: A LA EDUCACIÓN DESDE LA PRIMERA INFANCIA | D60: AGS.18.4 | E60: Porcentaje de instituciones educativas y programas no escolarizados de Educación Inicial que brindan atención educativa, alimentación y salud (distritos mas pobres) | F60: Departamental | G60: Junín | H60: 2017 | I60: 76.6 | J60: Porcentaje | K60: Estadística de la Calidad Educativa (ESCALE) - Ministerio de Educación (MINEDU) | L60: Censo Escolar del Ministerio de Educación - Unidad de Estadística Educativa (UEE) | M60: http://escale.minedu.gob.pe/ueetendencias20002015 | Q60: =IFERROR(IF(VLOOKUP(CONCATENATE(E60,F60,G60),ListaIndicadores!$AC$7:$AG$1887,4,FALSE)="","",VLOOKUP(CONCATENATE(E60,F60,G60),ListaIndicadores!$AC$7:$AG$1887,4,FALSE)),"") -> 96 | R60: =VLOOKUP(CONCATENATE(E60,F60,G60),ListaIndicadores!$AC$7:$AG$1887,5,FALSE) -> ¡Faltan datos! | S60: Porcentaje de instituciones educativas y programas no escolarizados de Educación Inicial que brindan atención educativa, alimentación y salud (distritos mas pobres)DepartamentalJunín2017 | T60: 76.6
A61: 29417 | B61: Social | C61: 4. CUARTO DERECHO: A LA EDUCACIÓN DESDE LA PRIMERA INFANCIA | D61: AGS.18.4 | E61: Porcentaje de instituciones educativas y programas no escolarizados de Educación Inicial que brindan atención educativa, alimentación y salud (distritos mas pobres) | F61: Departamental | G61: Junín | H61: 2018 | I61: 79.5 | J61: Porcentaje | K61: Estadística de la Calidad Educativa (ESCALE) - Ministerio de Educación (MINEDU) | L61: Censo Escolar del Ministerio de Educación - Unidad de Estadística Educativa (UEE) | M61: http://escale.minedu.gob.pe/ueetendencias20002015 | Q61: =IFERROR(IF(VLOOKUP(CONCATENATE(E61,F61,G61),ListaIndicadores!$AC$7:$AG$1887,4,FALSE)="","",VLOOKUP(CONCATENATE(E61,F61,G61),ListaIndicadores!$AC$7:$AG$1887,4,FALSE)),"") -> 96 | R61: =VLOOKUP(CONCATENATE(E61,F61,G61),ListaIndicadores!$AC$7:$AG$1887,5,FALSE) -> ¡Faltan datos! | S61: Porcentaje de instituciones educativas y programas no escolarizados de Educación Inicial que brindan atención educativa, alimentación y salud (distritos mas pobres)DepartamentalJunín2018 | T61: 79.5
A62: 29418 | B62: Social | C62: 4. CUARTO DERECHO: A LA EDUCACIÓN DESDE LA PRIMERA INFANCIA | D62: AGS.18.4 | E62: Porcentaje de instituciones educativas y programas no escolarizados de Educación Inicial que brindan atención educativa, alimentación y salud (distritos mas pobres) | F62: Departamental | G62: La Libertad | H62: 2014 | I62: 96.2 | J62: Porcentaje | K62: Estadística de la Calidad Educativa (ESCALE) - Ministerio de Educación (MINEDU) | L62: Censo Escolar del Ministerio de Educación - Unidad de Estadística Educativa (UEE) | M62: http://escale.minedu.gob.pe/ueetendencias20002015 | Q62: =IFERROR(IF(VLOOKUP(CONCATENATE(E62,F62,G62),ListaIndicadores!$AC$7:$AG$1887,4,FALSE)="","",VLOOKUP(CONCATENATE(E62,F62,G62),ListaIndicadores!$AC$7:$AG$1887,4,FALSE)),"") -> 101 | R62: =VLOOKUP(CONCATENATE(E62,F62,G62),ListaIndicadores!$AC$7:$AG$1887,5,FALSE) -> ¡Faltan datos! | S62: Porcentaje de instituciones educativas y programas no escolarizados de Educación Inicial que brindan atención educativa, alimentación y salud (distritos mas pobres)DepartamentalLa Libertad2014 | T62: 96.2
A63: 29419 | B63: Social | C63: 4. CUARTO DERECHO: A LA EDUCACIÓN DESDE LA PRIMERA INFANCIA | D63: AGS.18.4 | E63: Porcentaje de instituciones educativas y programas no escolarizados de Educación Inicial que brindan atención educativa, alimentación y salud (distritos mas pobres) | F63: Departamental | G63: La Libertad | H63: 2015 | I63: 91.6 | J63: Porcentaje | K63: Estadística de la Calidad Educativa (ESCALE) - Ministerio de Educación (MINEDU) | L63: Censo Escolar del Ministerio de Educación - Unidad de Estadística Educativa (UEE) | M63: http://escale.minedu.gob.pe/ueetendencias20002015 | Q63: =IFERROR(IF(VLOOKUP(CONCATENATE(E63,F63,G63),ListaIndicadores!$AC$7:$AG$1887,4,FALSE)="","",VLOOKUP(CONCATENATE(E63,F63,G63),ListaIndicadores!$AC$7:$AG$1887,4,FALSE)),"") -> 101 | R63: =VLOOKUP(CONCATENATE(E63,F63,G63),ListaIndicadores!$AC$7:$AG$1887,5,FALSE) -> ¡Faltan datos! | S63: Porcentaje de instituciones educativas y programas no escolarizados de Educación Inicial que brindan atención educativa, alimentación y salud (distritos mas pobres)DepartamentalLa Libertad2015 | T63: 91.6
A64: 29420 | B64: Social | C64: 4. CUARTO DERECHO: A LA EDUCACIÓN DESDE LA PRIMERA INFANCIA | D64: AGS.18.4 | E64: Porcentaje de instituciones educativas y programas no escolarizados de Educación Inicial que brindan atención educativa, alimentación y salud (distritos mas pobres) | F64: Departamental | G64: La Libertad | H64: 2016 | I64: 90.5 | J64: Porcentaje | K64: Estadística de la Calidad Educativa (ESCALE) - Ministerio de Educación (MINEDU) | L64: Censo Escolar del Ministerio de Educación - Unidad de Estadística Educativa (UEE) | M64: http://escale.minedu.gob.pe/ueetendencias20002015 | Q64: =IFERROR(IF(VLOOKUP(CONCATENATE(E64,F64,G64),ListaIndicadores!$AC$7:$AG$1887,4,FALSE)="","",VLOOKUP(CONCATENATE(E64,F64,G64),ListaIndicadores!$AC$7:$AG$1887,4,FALSE)),"") -> 101 | R64: =VLOOKUP(CONCATENATE(E64,F64,G64),ListaIndicadores!$AC$7:$AG$1887,5,FALSE) -> ¡Faltan datos! | S64: Porcentaje de instituciones educativas y programas no escolarizados de Educación Inicial que brindan atención educativa, alimentación y salud (distritos mas pobres)DepartamentalLa Libertad2016 | T64: 90.5
A65: 29421 | B65: Social | C65: 4. CUARTO DERECHO: A LA EDUCACIÓN DESDE LA PRIMERA INFANCIA | D65: AGS.18.4 | E65: Porcentaje de instituciones educativas y programas no escolarizados de Educación Inicial que brindan atención educativa, alimentación y salud (distritos mas pobres) | F65: Departamental | G65: La Libertad | H65: 2017 | I65: 93.7 | J65: Porcentaje | K65: Estadística de la Calidad Educativa (ESCALE) - Ministerio de Educación (MINEDU) | L65: Censo Escolar del Ministerio de Educación - Unidad de Estadística Educativa (UEE) | M65: http://escale.minedu.gob.pe/ueetendencias20002015 | Q65: =IFERROR(IF(VLOOKUP(CONCATENATE(E65,F65,G65),ListaIndicadores!$AC$7:$AG$1887,4,FALSE)="","",VLOOKUP(CONCATENATE(E65,F65,G65),ListaIndicadores!$AC$7:$AG$1887,4,FALSE)),"") -> 101 | R65: =VLOOKUP(CONCATENATE(E65,F65,G65),ListaIndicadores!$AC$7:$AG$1887,5,FALSE) -> ¡Faltan datos! | S65: Porcentaje de instituciones educativas y programas no escolarizados de Educación Inicial que brindan atención educativa, alimentación y salud (distritos mas pobres)DepartamentalLa Libertad2017 | T65: 93.7
A66: 29422 | B66: Social | C66: 4. CUARTO DERECHO: A LA EDUCACIÓN DESDE LA PRIMERA INFANCIA | D66: AGS.18.4 | E66: Porcentaje de instituciones educativas y programas no escolarizados de Educación Inicial que brindan atención educativa, alimentación y salud (distritos mas pobres) | F66: Departamental | G66: La Libertad | H66: 2018 | I66: 95.9 | J66: Porcentaje | K66: Estadística de la Calidad Educativa (ESCALE) - Ministerio de Educación (MINEDU) | L66: Censo Escolar del Ministerio de Educación - Unidad de Estadística Educativa (UEE) | M66: http://escale.minedu.gob.pe/ueetendencias20002015 | Q66: =IFERROR(IF(VLOOKUP(CONCATENATE(E66,F66,G66),ListaIndicadores!$AC$7:$AG$1887,4,FALSE)="","",VLOOKUP(CONCATENATE(E66,F66,G66),ListaIndicadores!$AC$7:$AG$1887,4,FALSE)),"") -> 101 | R66: =VLOOKUP(CONCATENATE(E66,F66,G66),ListaIndicadores!$AC$7:$AG$1887,5,FALSE) -> ¡Faltan datos! | S66: Porcentaje de instituciones educativas y programas no escolarizados de Educación Inicial que brindan atención educativa, alimentación y salud (distritos mas pobres)DepartamentalLa Libertad2018 | T66: 95.9
A67: 29423 | B67: Social | C67: 4. CUARTO DERECHO: A LA EDUCACIÓN DESDE LA PRIMERA INFANCIA | D67: AGS.18.4 | E67: Porcentaje de instituciones educativas y programas no escolarizados de Educación Inicial que brindan atención educativa, alimentación y salud (distritos mas pobres) | F67: Departamental | G67: Lambayeque | H67: 2014 | I67: 53.2 | J67: Porcentaje | K67: Estadística de la Calidad Educativa (ESCALE) - Ministerio de Educación (MINEDU) | L67: Censo Escolar del Ministerio de Educación - Unidad de Estadística Educativa (UEE) | M67: http://escale.minedu.gob.pe/ueetendencias20002015 | Q67: =IFERROR(IF(VLOOKUP(CONCATENATE(E67,F67,G67),ListaIndicadores!$AC$7:$AG$1887,4,FALSE)="","",VLOOKUP(CONCATENATE(E67,F67,G67),ListaIndicadores!$AC$7:$AG$1887,4,FALSE)),"") -> 92 | R67: =VLOOKUP(CONCATENATE(E67,F67,G67),ListaIndicadores!$AC$7:$AG$1887,5,FALSE) -> ¡Faltan datos! | S67: =CONCATENATE(E67,F67,G67,H67) -> Porcentaje de instituciones educativas y programas no escolarizados de Educación Inicial que brindan atención educativa, alimentación y salud (distritos mas pobres)DepartamentalLambayeque2014 | T67: =I67 -> 53.2
A68: 29424 | B68: Social | C68: 4. CUARTO DERECHO: A LA EDUCACIÓN DESDE LA PRIMERA INFANCIA | D68: AGS.18.4 | E68: Porcentaje de instituciones educativas y programas no escolarizados de Educación Inicial que brindan atención educativa, alimentación y salud (distritos mas pobres) | F68: Departamental | G68: Lambayeque | H68: 2015 | I68: 81.7 | J68: Porcentaje | K68: Estadística de la Calidad Educativa (ESCALE) - Ministerio de Educación (MINEDU) | L68: Censo Escolar del Ministerio de Educación - Unidad de Estadística Educativa (UEE) | M68: http://escale.minedu.gob.pe/ueetendencias20002015 | Q68: =IFERROR(IF(VLOOKUP(CONCATENATE(E68,F68,G68),ListaIndicadores!$AC$7:$AG$1887,4,FALSE)="","",VLOOKUP(CONCATENATE(E68,F68,G68),ListaIndicadores!$AC$7:$AG$1887,4,FALSE)),"") -> 92 | R68: =VLOOKUP(CONCATENATE(E68,F68,G68),ListaIndicadores!$AC$7:$AG$1887,5,FALSE) -> ¡Faltan datos! | S68: Porcentaje de instituciones educativas y programas no escolarizados de Educación Inicial que brindan atención educativa, alimentación y salud (distritos mas pobres)DepartamentalLambayeque2015 | T68: 81.7
A69: 29425 | B69: Social | C69: 4. CUARTO DERECHO: A LA EDUCACIÓN DESDE LA PRIMERA INFANCIA | D69: AGS.18.4 | E69: Porcentaje de instituciones educativas y programas no escolarizados de Educación Inicial que brindan atención educativa, alimentación y salud (distritos mas pobres) | F69: Departamental | G69: Lambayeque | H69: 2016 | I69: 73.5 | J69: Porcentaje | K69: Estadística de la Calidad Educativa (ESCALE) - Ministerio de Educación (MINEDU) | L69: Censo Escolar del Ministerio de Educación - Unidad de Estadística Educativa (UEE) | M69: http://escale.minedu.gob.pe/ueetendencias20002015 | Q69: =IFERROR(IF(VLOOKUP(CONCATENATE(E69,F69,G69),ListaIndicadores!$AC$7:$AG$1887,4,FALSE)="","",VLOOKUP(CONCATENATE(E69,F69,G69),ListaIndicadores!$AC$7:$AG$1887,4,FALSE)),"") -> 92 | R69: =VLOOKUP(CONCATENATE(E69,F69,G69),ListaIndicadores!$AC$7:$AG$1887,5,FALSE) -> ¡Faltan datos! | S69: Porcentaje de instituciones educativas y programas no escolarizados de Educación Inicial que brindan atención educativa, alimentación y salud (distritos mas pobres)DepartamentalLambayeque2016 | T69: 73.5
A70: 29426 | B70: Social | C70: 4. CUARTO DERECHO: A LA EDUCACIÓN DESDE LA PRIMERA INFANCIA | D70: AGS.18.4 | E70: Porcentaje de instituciones educativas y programas no escolarizados de Educación Inicial que brindan atención educativa, alimentación y salud (distritos mas pobres) | F70: Departamental | G70: Lambayeque | H70: 2017 | I70: 72.6 | J70: Porcentaje | K70: Estadística de la Calidad Educativa (ESCALE) - Ministerio de Educación (MINEDU) | L70: Censo Escolar del Ministerio de Educación - Unidad de Estadística Educativa (UEE) | M70: http://escale.minedu.gob.pe/ueetendencias20002015 | Q70: =IFERROR(IF(VLOOKUP(CONCATENATE(E70,F70,G70),ListaIndicadores!$AC$7:$AG$1887,4,FALSE)="","",VLOOKUP(CONCATENATE(E70,F70,G70),ListaIndicadores!$AC$7:$AG$1887,4,FALSE)),"") -> 92 | R70: =VLOOKUP(CONCATENATE(E70,F70,G70),ListaIndicadores!$AC$7:$AG$1887,5,FALSE) -> ¡Faltan datos! | S70: Porcentaje de instituciones educativas y programas no escolarizados de Educación Inicial que brindan atención educativa, alimentación y salud (distritos mas pobres)DepartamentalLambayeque2017 | T70: 72.6
A71: 29427 | B71: Social | C71: 4. CUARTO DERECHO: A LA EDUCACIÓN DESDE LA PRIMERA INFANCIA | D71: AGS.18.4 | E71: Porcentaje de instituciones educativas y programas no escolarizados de Educación Inicial que brindan atención educativa, alimentación y salud (distritos mas pobres) | F71: Departamental | G71: Lambayeque | H71: 2018 | I71: 82.4 | J71: Porcentaje | K71: Estadística de la Calidad Educativa (ESCALE) - Ministerio de Educación (MINEDU) | L71: Censo Escolar del Ministerio de Educación - Unidad de Estadística Educativa (UEE) | M71: http://escale.minedu.gob.pe/ueetendencias20002015 | Q71: =IFERROR(IF(VLOOKUP(CONCATENATE(E71,F71,G71),ListaIndicadores!$AC$7:$AG$1887,4,FALSE)="","",VLOOKUP(CONCATENATE(E71,F71,G71),ListaIndicadores!$AC$7:$AG$1887,4,FALSE)),"") -> 92 | R71: =VLOOKUP(CONCATENATE(E71,F71,G71),ListaIndicadores!$AC$7:$AG$1887,5,FALSE) -> ¡Faltan datos! | S71: Porcentaje de instituciones educativas y programas no escolarizados de Educación Inicial que brindan atención educativa, alimentación y salud (distritos mas pobres)DepartamentalLambayeque2018 | T71: 82.4
A72: 29428 | B72: Social | C72: 4. CUARTO DERECHO: A LA EDUCACIÓN DESDE LA PRIMERA INFANCIA | D72: AGS.18.4 | E72: Porcentaje de instituciones educativas y programas no escolarizados de Educación Inicial que brindan atención educativa, alimentación y salud (distritos mas pobres) | F72: Departamental | G72: Lima Metropolitana | H72: 2014 | I72: 10.9 | J72: Porcentaje | K72: Estadística de la Calidad Educativa (ESCALE) - Ministerio de Educación (MINEDU) | L72: Censo Escolar del Ministerio de Educación - Unidad de Estadística Educativa (UEE) | M72: http://escale.minedu.gob.pe/ueetendencias20002015 | Q72: =IFERROR(IF(VLOOKUP(CONCATENATE(E72,F72,G72),ListaIndicadores!$AC$7:$AG$1887,4,FALSE)="","",VLOOKUP(CONCATENATE(E72,F72,G72),ListaIndicadores!$AC$7:$AG$1887,4,FALSE)),"") -> 26 | R72: =VLOOKUP(CONCATENATE(E72,F72,G72),ListaIndicadores!$AC$7:$AG$1887,5,FALSE) -> ¡Faltan datos! | S72: Porcentaje de instituciones educativas y programas no escolarizados de Educación Inicial que brindan atención educativa, alimentación y salud (distritos mas pobres)DepartamentalLima Metropolitana2014 | T72: 10.9
A73: 29429 | B73: Social | C73: 4. CUARTO DERECHO: A LA EDUCACIÓN DESDE LA PRIMERA INFANCIA | D73: AGS.18.4 | E73: Porcentaje de instituciones educativas y programas no escolarizados de Educación Inicial que brindan atención educativa, alimentación y salud (distritos mas pobres) | F73: Departamental | G73: Lima Metropolitana | H73: 2015 | I73: 58.3 | J73: Porcentaje | K73: Estadística de la Calidad Educativa (ESCALE) - Ministerio de Educación (MINEDU) | L73: Censo Escolar del Ministerio de Educación - Unidad de Estadística Educativa (UEE) | M73: http://escale.minedu.gob.pe/ueetendencias20002015 | Q73: =IFERROR(IF(VLOOKUP(CONCATENATE(E73,F73,G73),ListaIndicadores!$AC$7:$AG$1887,4,FALSE)="","",VLOOKUP(CONCATENATE(E73,F73,G73),ListaIndicadores!$AC$7:$AG$1887,4,FALSE)),"") -> 26 | R73: =VLOOKUP(CONCATENATE(E73,F73,G73),ListaIndicadores!$AC$7:$AG$1887,5,FALSE) -> ¡Faltan datos! | S73: Porcentaje de instituciones educativas y programas no escolarizados de Educación Inicial que brindan atención educativa, alimentación y salud (distritos mas pobres)DepartamentalLima Metropolitana2015 | T73: 58.3
A74: 29430 | B74: Social | C74: 4. CUARTO DERECHO: A LA EDUCACIÓN DESDE LA PRIMERA INFANCIA | D74: AGS.18.4 | E74: Porcentaje de instituciones educativas y programas no escolarizados de Educación Inicial que brindan atención educativa, alimentación y salud (distritos mas pobres) | F74: Departamental | G74: Lima Metropolitana | H74: 2016 | I74: 46.4 | J74: Porcentaje | K74: Estadística de la Calidad Educativa (ESCALE) - Ministerio de Educación (MINEDU) | L74: Censo Escolar del Ministerio de Educación - Unidad de Estadística Educativa (UEE) | M74: http://escale.minedu.gob.pe/ueetendencias20002015 | Q74: =IFERROR(IF(VLOOKUP(CONCATENATE(E74,F74,G74),ListaIndicadores!$AC$7:$AG$1887,4,FALSE)="","",VLOOKUP(CONCATENATE(E74,F74,G74),ListaIndicadores!$AC$7:$AG$1887,4,FALSE)),"") -> 26 | R74: =VLOOKUP(CONCATENATE(E74,F74,G74),ListaIndicadores!$AC$7:$AG$1887,5,FALSE) -> ¡Faltan datos! | S74: Porcentaje de instituciones educativas y programas no escolarizados de Educación Inicial que brindan atención educativa, alimentación y salud (distritos mas pobres)DepartamentalLima Metropolitana2016 | T74: 46.4
A75: 29431 | B75: Social | C75: 4. CUARTO DERECHO: A LA EDUCACIÓN DESDE LA PRIMERA INFANCIA | D75: AGS.18.4 | E75: Porcentaje de instituciones educativas y programas no escolarizados de Educación Inicial que brindan atención educativa, alimentación y salud (distritos mas pobres) | F75: Departamental | G75: Lima Metropolitana | H75: 2017 | I75: 45.5 | J75: Porcentaje | K75: Estadística de la Calidad Educativa (ESCALE) - Ministerio de Educación (MINEDU) | L75: Censo Escolar del Ministerio de Educación - Unidad de Estadística Educativa (UEE) | M75: http://escale.minedu.gob.pe/ueetendencias20002015 | Q75: =IFERROR(IF(VLOOKUP(CONCATENATE(E75,F75,G75),ListaIndicadores!$AC$7:$AG$1887,4,FALSE)="","",VLOOKUP(CONCATENATE(E75,F75,G75),ListaIndicadores!$AC$7:$AG$1887,4,FALSE)),"") -> 26 | R75: =VLOOKUP(CONCATENATE(E75,F75,G75),ListaIndicadores!$AC$7:$AG$1887,5,FALSE) -> ¡Faltan datos! | S75: Porcentaje de instituciones educativas y programas no escolarizados de Educación Inicial que brindan atención educativa, alimentación y salud (distritos mas pobres)DepartamentalLima Metropolitana2017 | T75: 45.5
A76: 29432 | B76: Social | C76: 4. CUARTO DERECHO: A LA EDUCACIÓN DESDE LA PRIMERA INFANCIA | D76: AGS.18.4 | E76: Porcentaje de instituciones educativas y programas no escolarizados de Educación Inicial que brindan atención educativa, alimentación y salud (distritos mas pobres) | F76: Departamental | G76: Lima Metropolitana | H76: 2018 | I76: 46.9 | J76: Porcentaje | K76: Estadística de la Calidad Educativa (ESCALE) - Ministerio de Educación (MINEDU) | L76: Censo Escolar del Ministerio de Educación - Unidad de Estadística Educativa (UEE) | M76: http://escale.minedu.gob.pe/ueetendencias20002015 | Q76: =IFERROR(IF(VLOOKUP(CONCATENATE(E76,F76,G76),ListaIndicadores!$AC$7:$AG$1887,4,FALSE)="","",VLOOKUP(CONCATENATE(E76,F76,G76),ListaIndicadores!$AC$7:$AG$1887,4,FALSE)),"") -> 26 | R76: =VLOOKUP(CONCATENATE(E76,F76,G76),ListaIndicadores!$AC$7:$AG$1887,5,FALSE) -> ¡Faltan datos! | S76: Porcentaje de instituciones educativas y programas no escolarizados de Educación Inicial que brindan atención educativa, alimentación y salud (distritos mas pobres)DepartamentalLima Metropolitana2018 | T76: 46.9
A77: 29433 | B77: Social | C77: 4. CUARTO DERECHO: A LA EDUCACIÓN DESDE LA PRIMERA INFANCIA | D77: AGS.18.4 | E77: Porcentaje de instituciones educativas y programas no escolarizados de Educación Inicial que brindan atención educativa, alimentación y salud (distritos mas pobres) | F77: Departamental | G77: Loreto | H77: 2014 | I77: 60 | J77: Porcentaje | K77: Estadística de la Calidad Educativa (ESCALE) - Ministerio de Educación (MINEDU) | L77: Censo Escolar del Ministerio de Educación - Unidad de Estadística Educativa (UEE) | M77: http://escale.minedu.gob.pe/ueetendencias20002015 | Q77: =IFERROR(IF(VLOOKUP(CONCATENATE(E77,F77,G77),ListaIndicadores!$AC$7:$AG$1887,4,FALSE)="","",VLOOKUP(CONCATENATE(E77,F77,G77),ListaIndicadores!$AC$7:$AG$1887,4,FALSE)),"") -> 115 | R77: =VLOOKUP(CONCATENATE(E77,F77,G77),ListaIndicadores!$AC$7:$AG$1887,5,FALSE) -> ¡Faltan datos! | S77: Porcentaje de instituciones educativas y programas no escolarizados de Educación Inicial que brindan atención educativa, alimentación y salud (distritos mas pobres)DepartamentalLoreto2014 | T77: 60
A78: 29434 | B78: Social | C78: 4. CUARTO DERECHO: A LA EDUCACIÓN DESDE LA PRIMERA INFANCIA | D78: AGS.18.4 | E78: Porcentaje de instituciones educativas y programas no escolarizados de Educación Inicial que brindan atención educativa, alimentación y salud (distritos mas pobres) | F78: Departamental | G78: Loreto | H78: 2015 | I78: 63 | J78: Porcentaje | K78: Estadística de la Calidad Educativa (ESCALE) - Ministerio de Educación (MINEDU) | L78: Censo Escolar del Ministerio de Educación - Unidad de Estadística Educativa (UEE) | M78: http://escale.minedu.gob.pe/ueetendencias20002015 | Q78: =IFERROR(IF(VLOOKUP(CONCATENATE(E78,F78,G78),ListaIndicadores!$AC$7:$AG$1887,4,FALSE)="","",VLOOKUP(CONCATENATE(E78,F78,G78),ListaIndicadores!$AC$7:$AG$1887,4,FALSE)),"") -> 115 | R78: =VLOOKUP(CONCATENATE(E78,F78,G78),ListaIndicadores!$AC$7:$AG$1887,5,FALSE) -> ¡Faltan datos! | S78: Porcentaje de instituciones educativas y programas no escolarizados de Educación Inicial que brindan atención educativa, alimentación y salud (distritos mas pobres)DepartamentalLoreto2015 | T78: 63
A79: 29435 | B79: Social | C79: 4. CUARTO DERECHO: A LA EDUCACIÓN DESDE LA PRIMERA INFANCIA | D79: AGS.18.4 | E79: Porcentaje de instituciones educativas y programas no escolarizados de Educación Inicial que brindan atención educativa, alimentación y salud (distritos mas pobres) | F79: Departamental | G79: Loreto | H79: 2016 | I79: 79.6 | J79: Porcentaje | K79: Estadística de la Calidad Educativa (ESCALE) - Ministerio de Educación (MINEDU) | L79: Censo Escolar del Ministerio de Educación - Unidad de Estadística Educativa (UEE) | M79: http://escale.minedu.gob.pe/ueetendencias20002015 | Q79: =IFERROR(IF(VLOOKUP(CONCATENATE(E79,F79,G79),ListaIndicadores!$AC$7:$AG$1887,4,FALSE)="","",VLOOKUP(CONCATENATE(E79,F79,G79),ListaIndicadores!$AC$7:$AG$1887,4,FALSE)),"") -> 115 | R79: =VLOOKUP(CONCATENATE(E79,F79,G79),ListaIndicadores!$AC$7:$AG$1887,5,FALSE) -> ¡Faltan datos! | S79: Porcentaje de instituciones educativas y programas no escolarizados de Educación Inicial que brindan atención educativa, alimentación y salud (distritos mas pobres)DepartamentalLoreto2016 | T79: 79.6
A80: 29436 | B80: Social | C80: 4. CUARTO DERECHO: A LA EDUCACIÓN DESDE LA PRIMERA INFANCIA | D80: AGS.18.4 | E80: Porcentaje de instituciones educativas y programas no escolarizados de Educación Inicial que brindan atención educativa, alimentación y salud (distritos mas pobres) | F80: Departamental | G80: Loreto | H80: 2017 | I80: 78.2 | J80: Porcentaje | K80: Estadística de la Calidad Educativa (ESCALE) - Ministerio de Educación (MINEDU) | L80: Censo Escolar del Ministerio de Educación - Unidad de Estadística Educativa (UEE) | M80: http://escale.minedu.gob.pe/ueetendencias20002015 | Q80: =IFERROR(IF(VLOOKUP(CONCATENATE(E80,F80,G80),ListaIndicadores!$AC$7:$AG$1887,4,FALSE)="","",VLOOKUP(CONCATENATE(E80,F80,G80),ListaIndicadores!$AC$7:$AG$1887,4,FALSE)),"") -> 115 | R80: =VLOOKUP(CONCATENATE(E80,F80,G80),ListaIndicadores!$AC$7:$AG$1887,5,FALSE) -> ¡Faltan datos! | S80: Porcentaje de instituciones educativas y programas no escolarizados de Educación Inicial que brindan atención educativa, alimentación y salud (distritos mas pobres)DepartamentalLoreto2017 | T80: 78.2
A81: 29437 | B81: Social | C81: 4. CUARTO DERECHO: A LA EDUCACIÓN DESDE LA PRIMERA INFANCIA | D81: AGS.18.4 | E81: Porcentaje de instituciones educativas y programas no escolarizados de Educación Inicial que brindan atención educativa, alimentación y salud (distritos mas pobres) | F81: Departamental | G81: Loreto | H81: 2018 | I81: 85.6 | J81: Porcentaje | K81: Estadística de la Calidad Educativa (ESCALE) - Ministerio de Educación (MINEDU) | L81: Censo Escolar del Ministerio de Educación - Unidad de Estadística Educativa (UEE) | M81: http://escale.minedu.gob.pe/ueetendencias20002015 | Q81: =IFERROR(IF(VLOOKUP(CONCATENATE(E81,F81,G81),ListaIndicadores!$AC$7:$AG$1887,4,FALSE)="","",VLOOKUP(CONCATENATE(E81,F81,G81),ListaIndicadores!$AC$7:$AG$1887,4,FALSE)),"") -> 115 | R81: =VLOOKUP(CONCATENATE(E81,F81,G81),ListaIndicadores!$AC$7:$AG$1887,5,FALSE) -> ¡Faltan datos! | S81: Porcentaje de instituciones educativas y programas no escolarizados de Educación Inicial que brindan atención educativa, alimentación y salud (distritos mas pobres)DepartamentalLoreto2018 | T81: 85.6
A82: 29438 | B82: Social | C82: 4. CUARTO DERECHO: A LA EDUCACIÓN DESDE LA PRIMERA INFANCIA | D82: AGS.18.4 | E82: Porcentaje de instituciones educativas y programas no escolarizados de Educación Inicial que brindan atención educativa, alimentación y salud (distritos mas pobres) | F82: Departamental | G82: Madre de Dios | H82: 2014 | I82: 58.3 | J82: Porcentaje | K82: Estadística de la Calidad Educativa (ESCALE) - Ministerio de Educación (MINEDU) | L82: Censo Escolar del Ministerio de Educación - Unidad de Estadística Educativa (UEE) | M82: http://escale.minedu.gob.pe/ueetendencias20002015 | Q82: =IFERROR(IF(VLOOKUP(CONCATENATE(E82,F82,G82),ListaIndicadores!$AC$7:$AG$1887,4,FALSE)="","",VLOOKUP(CONCATENATE(E82,F82,G82),ListaIndicadores!$AC$7:$AG$1887,4,FALSE)),"") -> 98 | R82: =VLOOKUP(CONCATENATE(E82,F82,G82),ListaIndicadores!$AC$7:$AG$1887,5,FALSE) -> ¡Faltan datos! | S82: Porcentaje de instituciones educativas y programas no escolarizados de Educación Inicial que brindan atención educativa, alimentación y salud (distritos mas pobres)DepartamentalMadre de Dios2014 | T82: 58.3
A83: 29439 | B83: Social | C83: 4. CUARTO DERECHO: A LA EDUCACIÓN DESDE LA PRIMERA INFANCIA | D83: AGS.18.4 | E83: Porcentaje de instituciones educativas y programas no escolarizados de Educación Inicial que brindan atención educativa, alimentación y salud (distritos mas pobres) | F83: Departamental | G83: Madre de Dios | H83: 2015 | I83: 74.6 | J83: Porcentaje | K83: Estadística de la Calidad Educativa (ESCALE) - Ministerio de Educación (MINEDU) | L83: Censo Escolar del Ministerio de Educación - Unidad de Estadística Educativa (UEE) | M83: http://escale.minedu.gob.pe/ueetendencias20002015 | Q83: =IFERROR(IF(VLOOKUP(CONCATENATE(E83,F83,G83),ListaIndicadores!$AC$7:$AG$1887,4,FALSE)="","",VLOOKUP(CONCATENATE(E83,F83,G83),ListaIndicadores!$AC$7:$AG$1887,4,FALSE)),"") -> 98 | R83: =VLOOKUP(CONCATENATE(E83,F83,G83),ListaIndicadores!$AC$7:$AG$1887,5,FALSE) -> ¡Faltan datos! | S83: Porcentaje de instituciones educativas y programas no escolarizados de Educación Inicial que brindan atención educativa, alimentación y salud (distritos mas pobres)DepartamentalMadre de Dios2015 | T83: 74.6
A84: 29440 | B84: Social | C84: 4. CUARTO DERECHO: A LA EDUCACIÓN DESDE LA PRIMERA INFANCIA | D84: AGS.18.4 | E84: Porcentaje de instituciones educativas y programas no escolarizados de Educación Inicial que brindan atención educativa, alimentación y salud (distritos mas pobres) | F84: Departamental | G84: Madre de Dios | H84: 2016 | I84: 69.8 | J84: Porcentaje | K84: Estadística de la Calidad Educativa (ESCALE) - Ministerio de Educación (MINEDU) | L84: Censo Escolar del Ministerio de Educación - Unidad de Estadística Educativa (UEE) | M84: http://escale.minedu.gob.pe/ueetendencias20002015 | Q84: =IFERROR(IF(VLOOKUP(CONCATENATE(E84,F84,G84),ListaIndicadores!$AC$7:$AG$1887,4,FALSE)="","",VLOOKUP(CONCATENATE(E84,F84,G84),ListaIndicadores!$AC$7:$AG$1887,4,FALSE)),"") -> 98 | R84: =VLOOKUP(CONCATENATE(E84,F84,G84),ListaIndicadores!$AC$7:$AG$1887,5,FALSE) -> ¡Faltan datos! | S84: Porcentaje de instituciones educativas y programas no escolarizados de Educación Inicial que brindan atención educativa, alimentación y salud (distritos mas pobres)DepartamentalMadre de Dios2016 | T84: 69.8
A85: 29441 | B85: Social | C85: 4. CUARTO DERECHO: A LA EDUCACIÓN DESDE LA PRIMERA INFANCIA | D85: AGS.18.4 | E85: Porcentaje de instituciones educativas y programas no escolarizados de Educación Inicial que brindan atención educativa, alimentación y salud (distritos mas pobres) | F85: Departamental | G85: Madre de Dios | H85: 2017 | I85: 84.6 | J85: Porcentaje | K85: Estadística de la Calidad Educativa (ESCALE) - Ministerio de Educación (MINEDU) | L85: Censo Escolar del Ministerio de Educación - Unidad de Estadística Educativa (UEE) | M85: http://escale.minedu.gob.pe/ueetendencias20002015 | Q85: =IFERROR(IF(VLOOKUP(CONCATENATE(E85,F85,G85),ListaIndicadores!$AC$7:$AG$1887,4,FALSE)="","",VLOOKUP(CONCATENATE(E85,F85,G85),ListaIndicadores!$AC$7:$AG$1887,4,FALSE)),"") -> 98 | R85: =VLOOKUP(CONCATENATE(E85,F85,G85),ListaIndicadores!$AC$7:$AG$1887,5,FALSE) -> ¡Faltan datos! | S85: Porcentaje de instituciones educativas y programas no escolarizados de Educación Inicial que brindan atención educativa, alimentación y salud (distritos mas pobres)DepartamentalMadre de Dios2017 | T85: 84.6
A86: 29442 | B86: Social | C86: 4. CUARTO DERECHO: A LA EDUCACIÓN DESDE LA PRIMERA INFANCIA | D86: AGS.18.4 | E86: Porcentaje de instituciones educativas y programas no escolarizados de Educación Inicial que brindan atención educativa, alimentación y salud (distritos mas pobres) | F86: Departamental | G86: Madre de Dios | H86: 2018 | I86: 83.9 | J86: Porcentaje | K86: Estadística de la Calidad Educativa (ESCALE) - Ministerio de Educación (MINEDU) | L86: Censo Escolar del Ministerio de Educación - Unidad de Estadística Educativa (UEE) | M86: http://escale.minedu.gob.pe/ueetendencias20002015 | Q86: =IFERROR(IF(VLOOKUP(CONCATENATE(E86,F86,G86),ListaIndicadores!$AC$7:$AG$1887,4,FALSE)="","",VLOOKUP(CONCATENATE(E86,F86,G86),ListaIndicadores!$AC$7:$AG$1887,4,FALSE)),"") -> 98 | R86: =VLOOKUP(CONCATENATE(E86,F86,G86),ListaIndicadores!$AC$7:$AG$1887,5,FALSE) -> ¡Faltan datos! | S86: Porcentaje de instituciones educativas y programas no escolarizados de Educación Inicial que brindan atención educativa, alimentación y salud (distritos mas pobres)DepartamentalMadre de Dios2018 | T86: 83.9
A87: 29443 | B87: Social | C87: 4. CUARTO DERECHO: A LA EDUCACIÓN DESDE LA PRIMERA INFANCIA | D87: AGS.18.4 | E87: Porcentaje de instituciones educativas y programas no escolarizados de Educación Inicial que brindan atención educativa, alimentación y salud (distritos mas pobres) | F87: Departamental | G87: Moquegua | H87: 2014 | I87: 21 | J87: Porcentaje | K87: Estadística de la Calidad Educativa (ESCALE) - Ministerio de Educación (MINEDU) | L87: Censo Escolar del Ministerio de Educación - Unidad de Estadística Educativa (UEE) | M87: http://escale.minedu.gob.pe/ueetendencias20002015 | Q87: =IFERROR(IF(VLOOKUP(CONCATENATE(E87,F87,G87),ListaIndicadores!$AC$7:$AG$1887,4,FALSE)="","",VLOOKUP(CONCATENATE(E87,F87,G87),ListaIndicadores!$AC$7:$AG$1887,4,FALSE)),"") -> 62 | R87: =VLOOKUP(CONCATENATE(E87,F87,G87),ListaIndicadores!$AC$7:$AG$1887,5,FALSE) -> ¡Faltan datos! | S87: Porcentaje de instituciones educativas y programas no escolarizados de Educación Inicial que brindan atención educativa, alimentación y salud (distritos mas pobres)DepartamentalMoquegua2014 | T87: 21
A88: 29444 | B88: Social | C88: 4. CUARTO DERECHO: A LA EDUCACIÓN DESDE LA PRIMERA INFANCIA | D88: AGS.18.4 | E88: Porcentaje de instituciones educativas y programas no escolarizados de Educación Inicial que brindan atención educativa, alimentación y salud (distritos mas pobres) | F88: Departamental | G88: Moquegua | H88: 2015 | I88: 73.7 | J88: Porcentaje | K88: Estadística de la Calidad Educativa (ESCALE) - Ministerio de Educación (MINEDU) | L88: Censo Escolar del Ministerio de Educación - Unidad de Estadística Educativa (UEE) | M88: http://escale.minedu.gob.pe/ueetendencias20002015 | Q88: =IFERROR(IF(VLOOKUP(CONCATENATE(E88,F88,G88),ListaIndicadores!$AC$7:$AG$1887,4,FALSE)="","",VLOOKUP(CONCATENATE(E88,F88,G88),ListaIndicadores!$AC$7:$AG$1887,4,FALSE)),"") -> 62 | R88: =VLOOKUP(CONCATENATE(E88,F88,G88),ListaIndicadores!$AC$7:$AG$1887,5,FALSE) -> ¡Faltan datos! | S88: Porcentaje de instituciones educativas y programas no escolarizados de Educación Inicial que brindan atención educativa, alimentación y salud (distritos mas pobres)DepartamentalMoquegua2015 | T88: 73.7
A89: 29445 | B89: Social | C89: 4. CUARTO DERECHO: A LA EDUCACIÓN DESDE LA PRIMERA INFANCIA | D89: AGS.18.4 | E89: Porcentaje de instituciones educativas y programas no escolarizados de Educación Inicial que brindan atención educativa, alimentación y salud (distritos mas pobres) | F89: Departamental | G89: Moquegua | H89: 2016 | I89: 48.1 | J89: Porcentaje | K89: Estadística de la Calidad Educativa (ESCALE) - Ministerio de Educación (MINEDU) | L89: Censo Escolar del Ministerio de Educación - Unidad de Estadística Educativa (UEE) | M89: http://escale.minedu.gob.pe/ueetendencias20002015 | Q89: =IFERROR(IF(VLOOKUP(CONCATENATE(E89,F89,G89),ListaIndicadores!$AC$7:$AG$1887,4,FALSE)="","",VLOOKUP(CONCATENATE(E89,F89,G89),ListaIndicadores!$AC$7:$AG$1887,4,FALSE)),"") -> 62 | R89: =VLOOKUP(CONCATENATE(E89,F89,G89),ListaIndicadores!$AC$7:$AG$1887,5,FALSE) -> ¡Faltan datos! | S89: Porcentaje de instituciones educativas y programas no escolarizados de Educación Inicial que brindan atención educativa, alimentación y salud (distritos mas pobres)DepartamentalMoquegua2016 | T89: 48.1
A90: 29446 | B90: Social | C90: 4. CUARTO DERECHO: A LA EDUCACIÓN DESDE LA PRIMERA INFANCIA | D90: AGS.18.4 | E90: Porcentaje de instituciones educativas y programas no escolarizados de Educación Inicial que brindan atención educativa, alimentación y salud (distritos mas pobres) | F90: Departamental | G90: Moquegua | H90: 2017 | I90: 56.3 | J90: Porcentaje | K90: Estadística de la Calidad Educativa (ESCALE) - Ministerio de Educación (MINEDU) | L90: Censo Escolar del Ministerio de Educación - Unidad de Estadística Educativa (UEE) | M90: http://escale.minedu.gob.pe/ueetendencias20002015 | Q90: =IFERROR(IF(VLOOKUP(CONCATENATE(E90,F90,G90),ListaIndicadores!$AC$7:$AG$1887,4,FALSE)="","",VLOOKUP(CONCATENATE(E90,F90,G90),ListaIndicadores!$AC$7:$AG$1887,4,FALSE)),"") -> 62 | R90: =VLOOKUP(CONCATENATE(E90,F90,G90),ListaIndicadores!$AC$7:$AG$1887,5,FALSE) -> ¡Faltan datos! | S90: Porcentaje de instituciones educativas y programas no escolarizados de Educación Inicial que brindan atención educativa, alimentación y salud (distritos mas pobres)DepartamentalMoquegua2017 | T90: 56.3
A91: 29447 | B91: Social | C91: 4. CUARTO DERECHO: A LA EDUCACIÓN DESDE LA PRIMERA INFANCIA | D91: AGS.18.4 | E91: Porcentaje de instituciones educativas y programas no escolarizados de Educación Inicial que brindan atención educativa, alimentación y salud (distritos mas pobres) | F91: Departamental | G91: Moquegua | H91: 2018 | I91: 54.3 | J91: Porcentaje | K91: Estadística de la Calidad Educativa (ESCALE) - Ministerio de Educación (MINEDU) | L91: Censo Escolar del Ministerio de Educación - Unidad de Estadística Educativa (UEE) | M91: http://escale.minedu.gob.pe/ueetendencias20002015 | Q91: =IFERROR(IF(VLOOKUP(CONCATENATE(E91,F91,G91),ListaIndicadores!$AC$7:$AG$1887,4,FALSE)="","",VLOOKUP(CONCATENATE(E91,F91,G91),ListaIndicadores!$AC$7:$AG$1887,4,FALSE)),"") -> 62 | R91: =VLOOKUP(CONCATENATE(E91,F91,G91),ListaIndicadores!$AC$7:$AG$1887,5,FALSE) -> ¡Faltan datos! | S91: Porcentaje de instituciones educativas y programas no escolarizados de Educación Inicial que brindan atención educativa, alimentación y salud (distritos mas pobres)DepartamentalMoquegua2018 | T91: 54.3
A92: 29448 | B92: Social | C92: 4. CUARTO DERECHO: A LA EDUCACIÓN DESDE LA PRIMERA INFANCIA | D92: AGS.18.4 | E92: Porcentaje de instituciones educativas y programas no escolarizados de Educación Inicial que brindan atención educativa, alimentación y salud (distritos mas pobres) | F92: Departamental | G92: Pasco | H92: 2014 | I92: 72.3 | J92: Porcentaje | K92: Estadística de la Calidad Educativa (ESCALE) - Ministerio de Educación (MINEDU) | L92: Censo Escolar del Ministerio de Educación - Unidad de Estadística Educativa (UEE) | M92: http://escale.minedu.gob.pe/ueetendencias20002015 | Q92: =IFERROR(IF(VLOOKUP(CONCATENATE(E92,F92,G92),ListaIndicadores!$AC$7:$AG$1887,4,FALSE)="","",VLOOKUP(CONCATENATE(E92,F92,G92),ListaIndicadores!$AC$7:$AG$1887,4,FALSE)),"") -> 112 | R92: =VLOOKUP(CONCATENATE(E92,F92,G92),ListaIndicadores!$AC$7:$AG$1887,5,FALSE) -> ¡Faltan datos! | S92: Porcentaje de instituciones educativas y programas no escolarizados de Educación Inicial que brindan atención educativa, alimentación y salud (distritos mas pobres)DepartamentalPasco2014 | T92: 72.3
A93: 29449 | B93: Social | C93: 4. CUARTO DERECHO: A LA EDUCACIÓN DESDE LA PRIMERA INFANCIA | D93: AGS.18.4 | E93: Porcentaje de instituciones educativas y programas no escolarizados de Educación Inicial que brindan atención educativa, alimentación y salud (distritos mas pobres) | F93: Departamental | G93: Pasco | H93: 2015 | I93: 46.8 | J93: Porcentaje | K93: Estadística de la Calidad Educativa (ESCALE) - Ministerio de Educación (MINEDU) | L93: Censo Escolar del Ministerio de Educación - Unidad de Estadística Educativa (UEE) | M93: http://escale.minedu.gob.pe/ueetendencias20002015 | Q93: =IFERROR(IF(VLOOKUP(CONCATENATE(E93,F93,G93),ListaIndicadores!$AC$7:$AG$1887,4,FALSE)="","",VLOOKUP(CONCATENATE(E93,F93,G93),ListaIndicadores!$AC$7:$AG$1887,4,FALSE)),"") -> 112 | R93: =VLOOKUP(CONCATENATE(E93,F93,G93),ListaIndicadores!$AC$7:$AG$1887,5,FALSE) -> ¡Faltan datos! | S93: Porcentaje de instituciones educativas y programas no escolarizados de Educación Inicial que brindan atención educativa, alimentación y salud (distritos mas pobres)DepartamentalPasco2015 | T93: 46.8
A94: 29450 | B94: Social | C94: 4. CUARTO DERECHO: A LA EDUCACIÓN DESDE LA PRIMERA INFANCIA | D94: AGS.18.4 | E94: Porcentaje de instituciones educativas y programas no escolarizados de Educación Inicial que brindan atención educativa, alimentación y salud (distritos mas pobres) | F94: Departamental | G94: Pasco | H94: 2016 | I94: 70.9 | J94: Porcentaje | K94: Estadística de la Calidad Educativa (ESCALE) - Ministerio de Educación (MINEDU) | L94: Censo Escolar del Ministerio de Educación - Unidad de Estadística Educativa (UEE) | M94: http://escale.minedu.gob.pe/ueetendencias20002015 | Q94: =IFERROR(IF(VLOOKUP(CONCATENATE(E94,F94,G94),ListaIndicadores!$AC$7:$AG$1887,4,FALSE)="","",VLOOKUP(CONCATENATE(E94,F94,G94),ListaIndicadores!$AC$7:$AG$1887,4,FALSE)),"") -> 112 | R94: =VLOOKUP(CONCATENATE(E94,F94,G94),ListaIndicadores!$AC$7:$AG$1887,5,FALSE) -> ¡Faltan datos! | S94: Porcentaje de instituciones educativas y programas no escolarizados de Educación Inicial que brindan atención educativa, alimentación y salud (distritos mas pobres)DepartamentalPasco2016 | T94: 70.9
A95: 29451 | B95: Social | C95: 4. CUARTO DERECHO: A LA EDUCACIÓN DESDE LA PRIMERA INFANCIA | D95: AGS.18.4 | E95: Porcentaje de instituciones educativas y programas no escolarizados de Educación Inicial que brindan atención educativa, alimentación y salud (distritos mas pobres) | F95: Departamental | G95: Pasco | H95: 2017 | I95: 80.4 | J95: Porcentaje | K95: Estadística de la Calidad Educativa (ESCALE) - Ministerio de Educación (MINEDU) | L95: Censo Escolar del Ministerio de Educación - Unidad de Estadística Educativa (UEE) | M95: http://escale.minedu.gob.pe/ueetendencias20002015 | Q95: =IFERROR(IF(VLOOKUP(CONCATENATE(E95,F95,G95),ListaIndicadores!$AC$7:$AG$1887,4,FALSE)="","",VLOOKUP(CONCATENATE(E95,F95,G95),ListaIndicadores!$AC$7:$AG$1887,4,FALSE)),"") -> 112 | R95: =VLOOKUP(CONCATENATE(E95,F95,G95),ListaIndicadores!$AC$7:$AG$1887,5,FALSE) -> ¡Faltan datos! | S95: Porcentaje de instituciones educativas y programas no escolarizados de Educación Inicial que brindan atención educativa, alimentación y salud (distritos mas pobres)DepartamentalPasco2017 | T95: 80.4
A96: 29452 | B96: Social | C96: 4. CUARTO DERECHO: A LA EDUCACIÓN DESDE LA PRIMERA INFANCIA | D96: AGS.18.4 | E96: Porcentaje de instituciones educativas y programas no escolarizados de Educación Inicial que brindan atención educativa, alimentación y salud (distritos mas pobres) | F96: Departamental | G96: Pasco | H96: 2018 | I96: 80 | J96: Porcentaje | K96: Estadística de la Calidad Educativa (ESCALE) - Ministerio de Educación (MINEDU) | L96: Censo Escolar del Ministerio de Educación - Unidad de Estadística Educativa (UEE) | M96: http://escale.minedu.gob.pe/ueetendencias20002015 | Q96: =IFERROR(IF(VLOOKUP(CONCATENATE(E96,F96,G96),ListaIndicadores!$AC$7:$AG$1887,4,FALSE)="","",VLOOKUP(CONCATENATE(E96,F96,G96),ListaIndicadores!$AC$7:$AG$1887,4,FALSE)),"") -> 112 | R96: =VLOOKUP(CONCATENATE(E96,F96,G96),ListaIndicadores!$AC$7:$AG$1887,5,FALSE) -> ¡Faltan datos! | S96: Porcentaje de instituciones educativas y programas no escolarizados de Educación Inicial que brindan atención educativa, alimentación y salud (distritos mas pobres)DepartamentalPasco2018 | T96: 80
A97: 29453 | B97: Social | C97: 4. CUARTO DERECHO: A LA EDUCACIÓN DESDE LA PRIMERA INFANCIA | D97: AGS.18.4 | E97: Porcentaje de instituciones educativas y programas no escolarizados de Educación Inicial que brindan atención educativa, alimentación y salud (distritos mas pobres) | F97: Departamental | G97: Piura | H97: 2014 | I97: 36 | J97: Porcentaje | K97: Estadística de la Calidad Educativa (ESCALE) - Ministerio de Educación (MINEDU) | L97: Censo Escolar del Ministerio de Educación - Unidad de Estadística Educativa (UEE) | M97: http://escale.minedu.gob.pe/ueetendencias20002015 | Q97: =IFERROR(IF(VLOOKUP(CONCATENATE(E97,F97,G97),ListaIndicadores!$AC$7:$AG$1887,4,FALSE)="","",VLOOKUP(CONCATENATE(E97,F97,G97),ListaIndicadores!$AC$7:$AG$1887,4,FALSE)),"") -> 109 | R97: =VLOOKUP(CONCATENATE(E97,F97,G97),ListaIndicadores!$AC$7:$AG$1887,5,FALSE) -> ¡Faltan datos! | S97: Porcentaje de instituciones educativas y programas no escolarizados de Educación Inicial que brindan atención educativa, alimentación y salud (distritos mas pobres)DepartamentalPiura2014 | T97: 36
A98: 29454 | B98: Social | C98: 4. CUARTO DERECHO: A LA EDUCACIÓN DESDE LA PRIMERA INFANCIA | D98: AGS.18.4 | E98: Porcentaje de instituciones educativas y programas no escolarizados de Educación Inicial que brindan atención educativa, alimentación y salud (distritos mas pobres) | F98: Departamental | G98: Piura | H98: 2015 | I98: 74 | J98: Porcentaje | K98: Estadística de la Calidad Educativa (ESCALE) - Ministerio de Educación (MINEDU) | L98: Censo Escolar del Ministerio de Educación - Unidad de Estadística Educativa (UEE) | M98: http://escale.minedu.gob.pe/ueetendencias20002015 | Q98: =IFERROR(IF(VLOOKUP(CONCATENATE(E98,F98,G98),ListaIndicadores!$AC$7:$AG$1887,4,FALSE)="","",VLOOKUP(CONCATENATE(E98,F98,G98),ListaIndicadores!$AC$7:$AG$1887,4,FALSE)),"") -> 109 | R98: =VLOOKUP(CONCATENATE(E98,F98,G98),ListaIndicadores!$AC$7:$AG$1887,5,FALSE) -> ¡Faltan datos! | S98: Porcentaje de instituciones educativas y programas no escolarizados de Educación Inicial que brindan atención educativa, alimentación y salud (distritos mas pobres)DepartamentalPiura2015 | T98: 74
A99: 29455 | B99: Social | C99: 4. CUARTO DERECHO: A LA EDUCACIÓN DESDE LA PRIMERA INFANCIA | D99: AGS.18.4 | E99: Porcentaje de instituciones educativas y programas no escolarizados de Educación Inicial que brindan atención educativa, alimentación y salud (distritos mas pobres) | F99: Departamental | G99: Piura | H99: 2016 | I99: 81.8 | J99: Porcentaje | K99: Estadística de la Calidad Educativa (ESCALE) - Ministerio de Educación (MINEDU) | L99: Censo Escolar del Ministerio de Educación - Unidad de Estadística Educativa (UEE) | M99: http://escale.minedu.gob.pe/ueetendencias20002015 | Q99: =IFERROR(IF(VLOOKUP(CONCATENATE(E99,F99,G99),ListaIndicadores!$AC$7:$AG$1887,4,FALSE)="","",VLOOKUP(CONCATENATE(E99,F99,G99),ListaIndicadores!$AC$7:$AG$1887,4,FALSE)),"") -> 109 | R99: =VLOOKUP(CONCATENATE(E99,F99,G99),ListaIndicadores!$AC$7:$AG$1887,5,FALSE) -> ¡Faltan datos! | S99: Porcentaje de instituciones educativas y programas no escolarizados de Educación Inicial que brindan atención educativa, alimentación y salud (distritos mas pobres)DepartamentalPiura2016 | T99: 81.8
A100: 29456 | B100: Social | C100: 4. CUARTO DERECHO: A LA EDUCACIÓN DESDE LA PRIMERA INFANCIA | D100: AGS.18.4 | E100: Porcentaje de instituciones educativas y programas no escolarizados de Educación Inicial que brindan atención educativa, alimentación y salud (distritos mas pobres) | F100: Departamental | G100: Piura | H100: 2017 | I100: 84.2 | J100: Porcentaje | K100: Estadística de la Calidad Educativa (ESCALE) - Ministerio de Educación (MINEDU) | L100: Censo Escolar del Ministerio de Educación - Unidad de Estadística Educativa (UEE) | M100: http://escale.minedu.gob.pe/ueetendencias20002015 | Q100: =IFERROR(IF(VLOOKUP(CONCATENATE(E100,F100,G100),ListaIndicadores!$AC$7:$AG$1887,4,FALSE)="","",VLOOKUP(CONCATENATE(E100,F100,G100),ListaIndicadores!$AC$7:$AG$1887,4,FALSE)),"") -> 109 | R100: =VLOOKUP(CONCATENATE(E100,F100,G100),ListaIndicadores!$AC$7:$AG$1887,5,FALSE) -> ¡Faltan datos! | S100: Porcentaje de instituciones educativas y programas no escolarizados de Educación Inicial que brindan atención educativa, alimentación y salud (distritos mas pobres)DepartamentalPiura2017 | T100: 84.2
A101: 29457 | B101: Social | C101: 4. CUARTO DERECHO: A LA EDUCACIÓN DESDE LA PRIMERA INFANCIA | D101: AGS.18.4 | E101: Porcentaje de instituciones educativas y programas no escolarizados de Educación Inicial que brindan atención educativa, alimentación y salud (distritos mas pobres) | F101: Departamental | G101: Piura | H101: 2018 | I101: 85.7 | J101: Porcentaje | K101: Estadística de la Calidad Educativa (ESCALE) - Ministerio de Educación (MINEDU) | L101: Censo Escolar del Ministerio de Educación - Unidad de Estadística Educativa (UEE) | M101: http://escale.minedu.gob.pe/ueetendencias20002015 | Q101: =IFERROR(IF(VLOOKUP(CONCATENATE(E101,F101,G101),ListaIndicadores!$AC$7:$AG$1887,4,FALSE)="","",VLOOKUP(CONCATENATE(E101,F101,G101),ListaIndicadores!$AC$7:$AG$1887,4,FALSE)),"") -> 109 | R101: =VLOOKUP(CONCATENATE(E101,F101,G101),ListaIndicadores!$AC$7:$AG$1887,5,FALSE) -> ¡Faltan datos! | S101: Porcentaje de instituciones educativas y programas no escolarizados de Educación Inicial que brindan atención educativa, alimentación y salud (distritos mas pobres)DepartamentalPiura2018 | T101: 85.7
A102: 29458 | B102: Social | C102: 4. CUARTO DERECHO: A LA EDUCACIÓN DESDE LA PRIMERA INFANCIA | D102: AGS.18.4 | E102: Porcentaje de instituciones educativas y programas no escolarizados de Educación Inicial que brindan atención educativa, alimentación y salud (distritos mas pobres) | F102: Departamental | G102: Región Lima | H102: 2014 | I102: 33.3 | J102: Porcentaje | K102: Estadística de la Calidad Educativa (ESCALE) - Ministerio de Educación (MINEDU) | L102: Censo Escolar del Ministerio de Educación - Unidad de Estadística Educativa (UEE) | M102: http://escale.minedu.gob.pe/ueetendencias20002015 | O102: Datos no existentes | Q102: =IFERROR(IF(VLOOKUP(CONCATENATE(E102,F102,G102),ListaIndicadores!$AC$7:$AG$1887,4,FALSE)="","",VLOOKUP(CONCATENATE(E102,F102,G102),ListaIndicadores!$AC$7:$AG$1887,4,FALSE)),"") -> 0 | R102: =VLOOKUP(CONCATENATE(E102,F102,G102),ListaIndicadores!$AC$7:$AG$1887,5,FALSE) -> Rojo | S102: Porcentaje de instituciones educativas y programas no escolarizados de Educación Inicial que brindan atención educativa, alimentación y salud (distritos mas pobres)DepartamentalRegión Lima2014 | T102: 33.3
A103: 29459 | B103: Social | C103: 4. CUARTO DERECHO: A LA EDUCACIÓN DESDE LA PRIMERA INFANCIA | D103: AGS.18.4 | E103: Porcentaje de instituciones educativas y programas no escolarizados de Educación Inicial que brindan atención educativa, alimentación y salud (distritos mas pobres) | F103: Departamental | G103: Región Lima | H103: 2015 | I103: 22.5 | J103: Porcentaje | K103: Estadística de la Calidad Educativa (ESCALE) - Ministerio de Educación (MINEDU) | L103: Censo Escolar del Ministerio de Educación - Unidad de Estadística Educativa (UEE) | M103: http://escale.minedu.gob.pe/ueetendencias20002015 | O103: Datos no existentes | Q103: =IFERROR(IF(VLOOKUP(CONCATENATE(E103,F103,G103),ListaIndicadores!$AC$7:$AG$1887,4,FALSE)="","",VLOOKUP(CONCATENATE(E103,F103,G103),ListaIndicadores!$AC$7:$AG$1887,4,FALSE)),"") -> 0 | R103: =VLOOKUP(CONCATENATE(E103,F103,G103),ListaIndicadores!$AC$7:$AG$1887,5,FALSE) -> Rojo | S103: Porcentaje de instituciones educativas y programas no escolarizados de Educación Inicial que brindan atención educativa, alimentación y salud (distritos mas pobres)DepartamentalRegión Lima2015 | T103: 22.5
A104: 29460 | B104: Social | C104: 4. CUARTO DERECHO: A LA EDUCACIÓN DESDE LA PRIMERA INFANCIA | D104: AGS.18.4 | E104: Porcentaje de instituciones educativas y programas no escolarizados de Educación Inicial que brindan atención educativa, alimentación y salud (distritos mas pobres) | F104: Departamental | G104: Región Lima | H104: 2016 | I104: 68.4 | J104: Porcentaje | K104: Estadística de la Calidad Educativa (ESCALE) - Ministerio de Educación (MINEDU) | L104: Censo Escolar del Ministerio de Educación - Unidad de Estadística Educativa (UEE) | M104: http://escale.minedu.gob.pe/ueetendencias20002015 | O104: Datos no existentes | Q104: =IFERROR(IF(VLOOKUP(CONCATENATE(E104,F104,G104),ListaIndicadores!$AC$7:$AG$1887,4,FALSE)="","",VLOOKUP(CONCATENATE(E104,F104,G104),ListaIndicadores!$AC$7:$AG$1887,4,FALSE)),"") -> 0 | R104: =VLOOKUP(CONCATENATE(E104,F104,G104),ListaIndicadores!$AC$7:$AG$1887,5,FALSE) -> Rojo | S104: Porcentaje de instituciones educativas y programas no escolarizados de Educación Inicial que brindan atención educativa, alimentación y salud (distritos mas pobres)DepartamentalRegión Lima2016 | T104: 68.4
A105: 29461 | B105: Social | C105: 4. CUARTO DERECHO: A LA EDUCACIÓN DESDE LA PRIMERA INFANCIA | D105: AGS.18.4 | E105: Porcentaje de instituciones educativas y programas no escolarizados de Educación Inicial que brindan atención educativa, alimentación y salud (distritos mas pobres) | F105: Departamental | G105: Región Lima | H105: 2017 | I105: 75.3 | J105: Porcentaje | K105: Estadística de la Calidad Educativa (ESCALE) - Ministerio de Educación (MINEDU) | L105: Censo Escolar del Ministerio de Educación - Unidad de Estadística Educativa (UEE) | M105: http://escale.minedu.gob.pe/ueetendencias20002015 | O105: Datos no existentes | Q105: =IFERROR(IF(VLOOKUP(CONCATENATE(E105,F105,G105),ListaIndicadores!$AC$7:$AG$1887,4,FALSE)="","",VLOOKUP(CONCATENATE(E105,F105,G105),ListaIndicadores!$AC$7:$AG$1887,4,FALSE)),"") -> 0 | R105: =VLOOKUP(CONCATENATE(E105,F105,G105),ListaIndicadores!$AC$7:$AG$1887,5,FALSE) -> Rojo | S105: Porcentaje de instituciones educativas y programas no escolarizados de Educación Inicial que brindan atención educativa, alimentación y salud (distritos mas pobres)DepartamentalRegión Lima2017 | T105: 75.3
A106: 29462 | B106: Social | C106: 4. CUARTO DERECHO: A LA EDUCACIÓN DESDE LA PRIMERA INFANCIA | D106: AGS.18.4 | E106: Porcentaje de instituciones educativas y programas no escolarizados de Educación Inicial que brindan atención educativa, alimentación y salud (distritos mas pobres) | F106: Departamental | G106: Región Lima | H106: 2018 | I106: 79 | J106: Porcentaje | K106: Estadística de la Calidad Educativa (ESCALE) - Ministerio de Educación (MINEDU) | L106: Censo Escolar del Ministerio de Educación - Unidad de Estadística Educativa (UEE) | M106: http://escale.minedu.gob.pe/ueetendencias20002015 | O106: Datos no existentes | Q106: =IFERROR(IF(VLOOKUP(CONCATENATE(E106,F106,G106),ListaIndicadores!$AC$7:$AG$1887,4,FALSE)="","",VLOOKUP(CONCATENATE(E106,F106,G106),ListaIndicadores!$AC$7:$AG$1887,4,FALSE)),"") -> 0 | R106: =VLOOKUP(CONCATENATE(E106,F106,G106),ListaIndicadores!$AC$7:$AG$1887,5,FALSE) -> Rojo | S106: Porcentaje de instituciones educativas y programas no escolarizados de Educación Inicial que brindan atención educativa, alimentación y salud (distritos mas pobres)DepartamentalRegión Lima2018 | T106: 79
A107: 29463 | B107: Social | C107: 4. CUARTO DERECHO: A LA EDUCACIÓN DESDE LA PRIMERA INFANCIA | D107: AGS.18.4 | E107: Porcentaje de instituciones educativas y programas no escolarizados de Educación Inicial que brindan atención educativa, alimentación y salud (distritos mas pobres) | F107: Departamental | G107: Puno | H107: 2014 | I107: 65.5 | J107: Porcentaje | K107: Estadística de la Calidad Educativa (ESCALE) - Ministerio de Educación (MINEDU) | L107: Censo Escolar del Ministerio de Educación - Unidad de Estadística Educativa (UEE) | M107: http://escale.minedu.gob.pe/ueetendencias20002015 | Q107: =IFERROR(IF(VLOOKUP(CONCATENATE(E107,F107,G107),ListaIndicadores!$AC$7:$AG$1887,4,FALSE)="","",VLOOKUP(CONCATENATE(E107,F107,G107),ListaIndicadores!$AC$7:$AG$1887,4,FALSE)),"") -> 79 | R107: =VLOOKUP(CONCATENATE(E107,F107,G107),ListaIndicadores!$AC$7:$AG$1887,5,FALSE) -> ¡Faltan datos! | S107: Porcentaje de instituciones educativas y programas no escolarizados de Educación Inicial que brindan atención educativa, alimentación y salud (distritos mas pobres)DepartamentalPuno2014 | T107: 65.5
A108: 29464 | B108: Social | C108: 4. CUARTO DERECHO: A LA EDUCACIÓN DESDE LA PRIMERA INFANCIA | D108: AGS.18.4 | E108: Porcentaje de instituciones educativas y programas no escolarizados de Educación Inicial que brindan atención educativa, alimentación y salud (distritos mas pobres) | F108: Departamental | G108: Puno | H108: 2015 | I108: 76.8 | J108: Porcentaje | K108: Estadística de la Calidad Educativa (ESCALE) - Ministerio de Educación (MINEDU) | L108: Censo Escolar del Ministerio de Educación - Unidad de Estadística Educativa (UEE) | M108: http://escale.minedu.gob.pe/ueetendencias20002015 | Q108: =IFERROR(IF(VLOOKUP(CONCATENATE(E108,F108,G108),ListaIndicadores!$AC$7:$AG$1887,4,FALSE)="","",VLOOKUP(CONCATENATE(E108,F108,G108),ListaIndicadores!$AC$7:$AG$1887,4,FALSE)),"") -> 79 | R108: =VLOOKUP(CONCATENATE(E108,F108,G108),ListaIndicadores!$AC$7:$AG$1887,5,FALSE) -> ¡Faltan datos! | S108: Porcentaje de instituciones educativas y programas no escolarizados de Educación Inicial que brindan atención educativa, alimentación y salud (distritos mas pobres)DepartamentalPuno2015 | T108: 76.8
A109: 29465 | B109: Social | C109: 4. CUARTO DERECHO: A LA EDUCACIÓN DESDE LA PRIMERA INFANCIA | D109: AGS.18.4 | E109: Porcentaje de instituciones educativas y programas no escolarizados de Educación Inicial que brindan atención educativa, alimentación y salud (distritos mas pobres) | F109: Departamental | G109: Puno | H109: 2016 | I109: 77.9 | J109: Porcentaje | K109: Estadística de la Calidad Educativa (ESCALE) - Ministerio de Educación (MINEDU) | L109: Censo Escolar del Ministerio de Educación - Unidad de Estadística Educativa (UEE) | M109: http://escale.minedu.gob.pe/ueetendencias20002015 | Q109: =IFERROR(IF(VLOOKUP(CONCATENATE(E109,F109,G109),ListaIndicadores!$AC$7:$AG$1887,4,FALSE)="","",VLOOKUP(CONCATENATE(E109,F109,G109),ListaIndicadores!$AC$7:$AG$1887,4,FALSE)),"") -> 79 | R109: =VLOOKUP(CONCATENATE(E109,F109,G109),ListaIndicadores!$AC$7:$AG$1887,5,FALSE) -> ¡Faltan datos! | S109: Porcentaje de instituciones educativas y programas no escolarizados de Educación Inicial que brindan atención educativa, alimentación y salud (distritos mas pobres)DepartamentalPuno2016 | T109: 77.9
A110: 29466 | B110: Social | C110: 4. CUARTO DERECHO: A LA EDUCACIÓN DESDE LA PRIMERA INFANCIA | D110: AGS.18.4 | E110: Porcentaje de instituciones educativas y programas no escolarizados de Educación Inicial que brindan atención educativa, alimentación y salud (distritos mas pobres) | F110: Departamental | G110: Puno | H110: 2017 | I110: 82 | J110: Porcentaje | K110: Estadística de la Calidad Educativa (ESCALE) - Ministerio de Educación (MINEDU) | L110: Censo Escolar del Ministerio de Educación - Unidad de Estadística Educativa (UEE) | M110: http://escale.minedu.gob.pe/ueetendencias20002015 | Q110: =IFERROR(IF(VLOOKUP(CONCATENATE(E110,F110,G110),ListaIndicadores!$AC$7:$AG$1887,4,FALSE)="","",VLOOKUP(CONCATENATE(E110,F110,G110),ListaIndicadores!$AC$7:$AG$1887,4,FALSE)),"") -> 79 | R110: =VLOOKUP(CONCATENATE(E110,F110,G110),ListaIndicadores!$AC$7:$AG$1887,5,FALSE) -> ¡Faltan datos! | S110: Porcentaje de instituciones educativas y programas no escolarizados de Educación Inicial que brindan atención educativa, alimentación y salud (distritos mas pobres)DepartamentalPuno2017 | T110: 82
A111: 29467 | B111: Social | C111: 4. CUARTO DERECHO: A LA EDUCACIÓN DESDE LA PRIMERA INFANCIA | D111: AGS.18.4 | E111: Porcentaje de instituciones educativas y programas no escolarizados de Educación Inicial que brindan atención educativa, alimentación y salud (distritos mas pobres) | F111: Departamental | G111: Puno | H111: 2018 | I111: 81 | J111: Porcentaje | K111: Estadística de la Calidad Educativa (ESCALE) - Ministerio de Educación (MINEDU) | L111: Censo Escolar del Ministerio de Educación - Unidad de Estadística Educativa (UEE) | M111: http://escale.minedu.gob.pe/ueetendencias20002015 | Q111: =IFERROR(IF(VLOOKUP(CONCATENATE(E111,F111,G111),ListaIndicadores!$AC$7:$AG$1887,4,FALSE)="","",VLOOKUP(CONCATENATE(E111,F111,G111),ListaIndicadores!$AC$7:$AG$1887,4,FALSE)),"") -> 79 | R111: =VLOOKUP(CONCATENATE(E111,F111,G111),ListaIndicadores!$AC$7:$AG$1887,5,FALSE) -> ¡Faltan datos! | S111: Porcentaje de instituciones educativas y programas no escolarizados de Educación Inicial que brindan atención educativa, alimentación y salud (distritos mas pobres)DepartamentalPuno2018 | T111: 81
A112: 29468 | B112: Social | C112: 4. CUARTO DERECHO: A LA EDUCACIÓN DESDE LA PRIMERA INFANCIA | D112: AGS.18.4 | E112: Porcentaje de instituciones educativas y programas no escolarizados de Educación Inicial que brindan atención educativa, alimentación y salud (distritos mas pobres) | F112: Departamental | G112: Región Lima | H112: 2014 | I112: Sin datos | J112: Porcentaje | K112: Estadística de la Calidad Educativa (ESCALE) - Ministerio de Educación (MINEDU) | L112: Censo Escolar del Ministerio de Educación - Unidad de Estadística Educativa (UEE) | M112: http://escale.minedu.gob.pe/ueetendencias20002015 | O112: Datos no existentes | P112: Si | Q112: =IFERROR(IF(VLOOKUP(CONCATENATE(E112,F112,G112),ListaIndicadores!$AC$7:$AG$1887,4,FALSE)="","",VLOOKUP(CONCATENATE(E112,F112,G112),ListaIndicadores!$AC$7:$AG$1887,4,FALSE)),"") -> 0 | R112: =VLOOKUP(CONCATENATE(E112,F112,G112),ListaIndicadores!$AC$7:$AG$1887,5,FALSE) -> Rojo | S112: Porcentaje de instituciones educativas y programas no escolarizados de Educación Inicial que brindan atención educativa, alimentación y salud (distritos mas pobres)DepartamentalRegión Lima2014 | T112: Sin datos
A113: 29469 | B113: Social | C113: 4. CUARTO DERECHO: A LA EDUCACIÓN DESDE LA PRIMERA INFANCIA | D113: AGS.18.4 | E113: Porcentaje de instituciones educativas y programas no escolarizados de Educación Inicial que brindan atención educativa, alimentación y salud (distritos mas pobres) | F113: Departamental | G113: Región Lima | H113: 2015 | I113: Sin datos | J113: Porcentaje | K113: Estadística de la Calidad Educativa (ESCALE) - Ministerio de Educación (MINEDU) | L113: Censo Escolar del Ministerio de Educación - Unidad de Estadística Educativa (UEE) | M113: http://escale.minedu.gob.pe/ueetendencias20002015 | O113: Datos no existentes | P113: Si | Q113: =IFERROR(IF(VLOOKUP(CONCATENATE(E113,F113,G113),ListaIndicadores!$AC$7:$AG$1887,4,FALSE)="","",VLOOKUP(CONCATENATE(E113,F113,G113),ListaIndicadores!$AC$7:$AG$1887,4,FALSE)),"") -> 0 | R113: =VLOOKUP(CONCATENATE(E113,F113,G113),ListaIndicadores!$AC$7:$AG$1887,5,FALSE) -> Rojo | S113: Porcentaje de instituciones educativas y programas no escolarizados de Educación Inicial que brindan atención educativa, alimentación y salud (distritos mas pobres)DepartamentalRegión Lima2015 | T113: Sin datos
A114: 29470 | B114: Social | C114: 4. CUARTO DERECHO: A LA EDUCACIÓN DESDE LA PRIMERA INFANCIA | D114: AGS.18.4 | E114: Porcentaje de instituciones educativas y programas no escolarizados de Educación Inicial que brindan atención educativa, alimentación y salud (distritos mas pobres) | F114: Departamental | G114: Región Lima | H114: 2016 | I114: Sin datos | J114: Porcentaje | K114: Estadística de la Calidad Educativa (ESCALE) - Ministerio de Educación (MINEDU) | L114: Censo Escolar del Ministerio de Educación - Unidad de Estadística Educativa (UEE) | M114: http://escale.minedu.gob.pe/ueetendencias20002015 | O114: Datos no existentes | P114: Si | Q114: =IFERROR(IF(VLOOKUP(CONCATENATE(E114,F114,G114),ListaIndicadores!$AC$7:$AG$1887,4,FALSE)="","",VLOOKUP(CONCATENATE(E114,F114,G114),ListaIndicadores!$AC$7:$AG$1887,4,FALSE)),"") -> 0 | R114: =VLOOKUP(CONCATENATE(E114,F114,G114),ListaIndicadores!$AC$7:$AG$1887,5,FALSE) -> Rojo | S114: Porcentaje de instituciones educativas y programas no escolarizados de Educación Inicial que brindan atención educativa, alimentación y salud (distritos mas pobres)DepartamentalRegión Lima2016 | T114: Sin datos
A115: 29471 | B115: Social | C115: 4. CUARTO DERECHO: A LA EDUCACIÓN DESDE LA PRIMERA INFANCIA | D115: AGS.18.4 | E115: Porcentaje de instituciones educativas y programas no escolarizados de Educación Inicial que brindan atención educativa, alimentación y salud (distritos mas pobres) | F115: Departamental | G115: Región Lima | H115: 2017 | I115: Sin datos | J115: Porcentaje | K115: Estadística de la Calidad Educativa (ESCALE) - Ministerio de Educación (MINEDU) | L115: Censo Escolar del Ministerio de Educación - Unidad de Estadística Educativa (UEE) | M115: http://escale.minedu.gob.pe/ueetendencias20002015 | O115: Datos no existentes | P115: Si | Q115: =IFERROR(IF(VLOOKUP(CONCATENATE(E115,F115,G115),ListaIndicadores!$AC$7:$AG$1887,4,FALSE)="","",VLOOKUP(CONCATENATE(E115,F115,G115),ListaIndicadores!$AC$7:$AG$1887,4,FALSE)),"") -> 0 | R115: =VLOOKUP(CONCATENATE(E115,F115,G115),ListaIndicadores!$AC$7:$AG$1887,5,FALSE) -> Rojo | S115: Porcentaje de instituciones educativas y programas no escolarizados de Educación Inicial que brindan atención educativa, alimentación y salud (distritos mas pobres)DepartamentalRegión Lima2017 | T115: Sin datos
A116: 29472 | B116: Social | C116: 4. CUARTO DERECHO: A LA EDUCACIÓN DESDE LA PRIMERA INFANCIA | D116: AGS.18.4 | E116: Porcentaje de instituciones educativas y programas no escolarizados de Educación Inicial que brindan atención educativa, alimentación y salud (distritos mas pobres) | F116: Departamental | G116: Región Lima | H116: 2018 | I116: Sin datos | J116: Porcentaje | K116: Estadística de la Calidad Educativa (ESCALE) - Ministerio de Educación (MINEDU) | L116: Censo Escolar del Ministerio de Educación - Unidad de Estadística Educativa (UEE) | M116: http://escale.minedu.gob.pe/ueetendencias20002015 | O116: Datos no existentes | P116: Si | Q116: =IFERROR(IF(VLOOKUP(CONCATENATE(E116,F116,G116),ListaIndicadores!$AC$7:$AG$1887,4,FALSE)="","",VLOOKUP(CONCATENATE(E116,F116,G116),ListaIndicadores!$AC$7:$AG$1887,4,FALSE)),"") -> 0 | R116: =VLOOKUP(CONCATENATE(E116,F116,G116),ListaIndicadores!$AC$7:$AG$1887,5,FALSE) -> Rojo | S116: Porcentaje de instituciones educativas y programas no escolarizados de Educación Inicial que brindan atención educativa, alimentación y salud (distritos mas pobres)DepartamentalRegión Lima2018 | T116: Sin datos
A117: 29473 | B117: Social | C117: 4. CUARTO DERECHO: A LA EDUCACIÓN DESDE LA PRIMERA INFANCIA | D117: AGS.18.4 | E117: Porcentaje de instituciones educativas y programas no escolarizados de Educación Inicial que brindan atención educativa, alimentación y salud (distritos mas pobres) | F117: Departamental | G117: Región Lima | H117: 2022 | I117: 85.3 | J117: Porcentaje | K117: Estadística de la Calidad Educativa (ESCALE) - Ministerio de Educación (MINEDU) | L117: Censo Escolar del Ministerio de Educación - Unidad de Estadística Educativa (UEE) | M117: http://escale.minedu.gob.pe/ueetendencias20002015 | P117: Si | Q117: =IFERROR(IF(VLOOKUP(CONCATENATE(E117,F117,G117),ListaIndicadores!$AC$7:$AG$1887,4,FALSE)="","",VLOOKUP(CONCATENATE(E117,F117,G117),ListaIndicadores!$AC$7:$AG$1887,4,FALSE)),"") -> 0 | R117: =VLOOKUP(CONCATENATE(E117,F117,G117),ListaIndicadores!$AC$7:$AG$1887,5,FALSE) -> Rojo | S117: Porcentaje de instituciones educativas y programas no escolarizados de Educación Inicial que brindan atención educativa, alimentación y salud (distritos mas pobres)DepartamentalRegión Lima2022 | T117: 85.3
A118: 29474 | B118: Social | C118: 4. CUARTO DERECHO: A LA EDUCACIÓN DESDE LA PRIMERA INFANCIA | D118: AGS.18.4 | E118: Porcentaje de instituciones educativas y programas no escolarizados de Educación Inicial que brindan atención educativa, alimentación y salud (distritos mas pobres) | F118: Departamental | G118: San Martín | H118: 2014 | I118: 94.2 | J118: Porcentaje | K118: Estadística de la Calidad Educativa (ESCALE) - Ministerio de Educación (MINEDU) | L118: Censo Escolar del Ministerio de Educación - Unidad de Estadística Educativa (UEE) | M118: http://escale.minedu.gob.pe/ueetendencias20002015 | Q118: =IFERROR(IF(VLOOKUP(CONCATENATE(E118,F118,G118),ListaIndicadores!$AC$7:$AG$1887,4,FALSE)="","",VLOOKUP(CONCATENATE(E118,F118,G118),ListaIndicadores!$AC$7:$AG$1887,4,FALSE)),"") -> 78 | R118: =VLOOKUP(CONCATENATE(E118,F118,G118),ListaIndicadores!$AC$7:$AG$1887,5,FALSE) -> ¡Faltan datos! | S118: Porcentaje de instituciones educativas y programas no escolarizados de Educación Inicial que brindan atención educativa, alimentación y salud (distritos mas pobres)DepartamentalSan Martín2014 | T118: 94.2
A119: 29475 | B119: Social | C119: 4. CUARTO DERECHO: A LA EDUCACIÓN DESDE LA PRIMERA INFANCIA | D119: AGS.18.4 | E119: Porcentaje de instituciones educativas y programas no escolarizados de Educación Inicial que brindan atención educativa, alimentación y salud (distritos mas pobres) | F119: Departamental | G119: San Martín | H119: 2015 | I119: 92.7 | J119: Porcentaje | K119: Estadística de la Calidad Educativa (ESCALE) - Ministerio de Educación (MINEDU) | L119: Censo Escolar del Ministerio de Educación - Unidad de Estadística Educativa (UEE) | M119: http://escale.minedu.gob.pe/ueetendencias20002015 | Q119: =IFERROR(IF(VLOOKUP(CONCATENATE(E119,F119,G119),ListaIndicadores!$AC$7:$AG$1887,4,FALSE)="","",VLOOKUP(CONCATENATE(E119,F119,G119),ListaIndicadores!$AC$7:$AG$1887,4,FALSE)),"") -> 78 | R119: =VLOOKUP(CONCATENATE(E119,F119,G119),ListaIndicadores!$AC$7:$AG$1887,5,FALSE) -> ¡Faltan datos! | S119: Porcentaje de instituciones educativas y programas no escolarizados de Educación Inicial que brindan atención educativa, alimentación y salud (distritos mas pobres)DepartamentalSan Martín2015 | T119: 92.7
A120: 29476 | B120: Social | C120: 4. CUARTO DERECHO: A LA EDUCACIÓN DESDE LA PRIMERA INFANCIA | D120: AGS.18.4 | E120: Porcentaje de instituciones educativas y programas no escolarizados de Educación Inicial que brindan atención educativa, alimentación y salud (distritos mas pobres) | F120: Departamental | G120: San Martín | H120: 2016 | I120: 79.3 | J120: Porcentaje | K120: Estadística de la Calidad Educativa (ESCALE) - Ministerio de Educación (MINEDU) | L120: Censo Escolar del Ministerio de Educación - Unidad de Estadística Educativa (UEE) | M120: http://escale.minedu.gob.pe/ueetendencias20002015 | Q120: =IFERROR(IF(VLOOKUP(CONCATENATE(E120,F120,G120),ListaIndicadores!$AC$7:$AG$1887,4,FALSE)="","",VLOOKUP(CONCATENATE(E120,F120,G120),ListaIndicadores!$AC$7:$AG$1887,4,FALSE)),"") -> 78 | R120: =VLOOKUP(CONCATENATE(E120,F120,G120),ListaIndicadores!$AC$7:$AG$1887,5,FALSE) -> ¡Faltan datos! | S120: Porcentaje de instituciones educativas y programas no escolarizados de Educación Inicial que brindan atención educativa, alimentación y salud (distritos mas pobres)DepartamentalSan Martín2016 | T120: 79.3
A121: 29477 | B121: Social | C121: 4. CUARTO DERECHO: A LA EDUCACIÓN DESDE LA PRIMERA INFANCIA | D121: AGS.18.4 | E121: Porcentaje de instituciones educativas y programas no escolarizados de Educación Inicial que brindan atención educativa, alimentación y salud (distritos mas pobres) | F121: Departamental | G121: San Martín | H121: 2017 | I121: 85.6 | J121: Porcentaje | K121: Estadística de la Calidad Educativa (ESCALE) - Ministerio de Educación (MINEDU) | L121: Censo Escolar del Ministerio de Educación - Unidad de Estadística Educativa (UEE) | M121: http://escale.minedu.gob.pe/ueetendencias20002015 | Q121: =IFERROR(IF(VLOOKUP(CONCATENATE(E121,F121,G121),ListaIndicadores!$AC$7:$AG$1887,4,FALSE)="","",VLOOKUP(CONCATENATE(E121,F121,G121),ListaIndicadores!$AC$7:$AG$1887,4,FALSE)),"") -> 78 | R121: =VLOOKUP(CONCATENATE(E121,F121,G121),ListaIndicadores!$AC$7:$AG$1887,5,FALSE) -> ¡Faltan datos! | S121: Porcentaje de instituciones educativas y programas no escolarizados de Educación Inicial que brindan atención educativa, alimentación y salud (distritos mas pobres)DepartamentalSan Martín2017 | T121: 85.6
A122: 29478 | B122: Social | C122: 4. CUARTO DERECHO: A LA EDUCACIÓN DESDE LA PRIMERA INFANCIA | D122: AGS.18.4 | E122: Porcentaje de instituciones educativas y programas no escolarizados de Educación Inicial que brindan atención educativa, alimentación y salud (distritos mas pobres) | F122: Departamental | G122: San Martín | H122: 2018 | I122: 87.2 | J122: Porcentaje | K122: Estadística de la Calidad Educativa (ESCALE) - Ministerio de Educación (MINEDU) | L122: Censo Escolar del Ministerio de Educación - Unidad de Estadística Educativa (UEE) | M122: http://escale.minedu.gob.pe/ueetendencias20002015 | Q122: =IFERROR(IF(VLOOKUP(CONCATENATE(E122,F122,G122),ListaIndicadores!$AC$7:$AG$1887,4,FALSE)="","",VLOOKUP(CONCATENATE(E122,F122,G122),ListaIndicadores!$AC$7:$AG$1887,4,FALSE)),"") -> 78 | R122: =VLOOKUP(CONCATENATE(E122,F122,G122),ListaIndicadores!$AC$7:$AG$1887,5,FALSE) -> ¡Faltan datos! | S122: Porcentaje de instituciones educativas y programas no escolarizados de Educación Inicial que brindan atención educativa, alimentación y salud (distritos mas pobres)DepartamentalSan Martín2018 | T122: 87.2
A123: 29479 | B123: Social | C123: 4. CUARTO DERECHO: A LA EDUCACIÓN DESDE LA PRIMERA INFANCIA | D123: AGS.18.4 | E123: Porcentaje de instituciones educativas y programas no escolarizados de Educación Inicial que brindan atención educativa, alimentación y salud (distritos mas pobres) | F123: Departamental | G123: Tacna | H123: 2014 | I123: 97.1 | J123: Porcentaje | K123: Estadística de la Calidad Educativa (ESCALE) - Ministerio de Educación (MINEDU) | L123: Censo Escolar del Ministerio de Educación - Unidad de Estadística Educativa (UEE) | M123: http://escale.minedu.gob.pe/ueetendencias20002015 | Q123: =IFERROR(IF(VLOOKUP(CONCATENATE(E123,F123,G123),ListaIndicadores!$AC$7:$AG$1887,4,FALSE)="","",VLOOKUP(CONCATENATE(E123,F123,G123),ListaIndicadores!$AC$7:$AG$1887,4,FALSE)),"") -> -23 | R123: =VLOOKUP(CONCATENATE(E123,F123,G123),ListaIndicadores!$AC$7:$AG$1887,5,FALSE) -> ¡Faltan datos! | S123: Porcentaje de instituciones educativas y programas no escolarizados de Educación Inicial que brindan atención educativa, alimentación y salud (distritos mas pobres)DepartamentalTacna2014 | T123: 97.1
A124: 29480 | B124: Social | C124: 4. CUARTO DERECHO: A LA EDUCACIÓN DESDE LA PRIMERA INFANCIA | D124: AGS.18.4 | E124: Porcentaje de instituciones educativas y programas no escolarizados de Educación Inicial que brindan atención educativa, alimentación y salud (distritos mas pobres) | F124: Departamental | G124: Tacna | H124: 2015 | I124: 92.9 | J124: Porcentaje | K124: Estadística de la Calidad Educativa (ESCALE) - Ministerio de Educación (MINEDU) | L124: Censo Escolar del Ministerio de Educación - Unidad de Estadística Educativa (UEE) | M124: http://escale.minedu.gob.pe/ueetendencias20002015 | Q124: =IFERROR(IF(VLOOKUP(CONCATENATE(E124,F124,G124),ListaIndicadores!$AC$7:$AG$1887,4,FALSE)="","",VLOOKUP(CONCATENATE(E124,F124,G124),ListaIndicadores!$AC$7:$AG$1887,4,FALSE)),"") -> -23 | R124: =VLOOKUP(CONCATENATE(E124,F124,G124),ListaIndicadores!$AC$7:$AG$1887,5,FALSE) -> ¡Faltan datos! | S124: Porcentaje de instituciones educativas y programas no escolarizados de Educación Inicial que brindan atención educativa, alimentación y salud (distritos mas pobres)DepartamentalTacna2015 | T124: 92.9
A125: 29481 | B125: Social | C125: 4. CUARTO DERECHO: A LA EDUCACIÓN DESDE LA PRIMERA INFANCIA | D125: AGS.18.4 | E125: Porcentaje de instituciones educativas y programas no escolarizados de Educación Inicial que brindan atención educativa, alimentación y salud (distritos mas pobres) | F125: Departamental | G125: Tacna | H125: 2016 | I125: 57.5 | J125: Porcentaje | K125: Estadística de la Calidad Educativa (ESCALE) - Ministerio de Educación (MINEDU) | L125: Censo Escolar del Ministerio de Educación - Unidad de Estadística Educativa (UEE) | M125: http://escale.minedu.gob.pe/ueetendencias20002015 | Q125: =IFERROR(IF(VLOOKUP(CONCATENATE(E125,F125,G125),ListaIndicadores!$AC$7:$AG$1887,4,FALSE)="","",VLOOKUP(CONCATENATE(E125,F125,G125),ListaIndicadores!$AC$7:$AG$1887,4,FALSE)),"") -> -23 | R125: =VLOOKUP(CONCATENATE(E125,F125,G125),ListaIndicadores!$AC$7:$AG$1887,5,FALSE) -> ¡Faltan datos! | S125: Porcentaje de instituciones educativas y programas no escolarizados de Educación Inicial que brindan atención educativa, alimentación y salud (distritos mas pobres)DepartamentalTacna2016 | T125: 57.5
A126: 29482 | B126: Social | C126: 4. CUARTO DERECHO: A LA EDUCACIÓN DESDE LA PRIMERA INFANCIA | D126: AGS.18.4 | E126: Porcentaje de instituciones educativas y programas no escolarizados de Educación Inicial que brindan atención educativa, alimentación y salud (distritos mas pobres) | F126: Departamental | G126: Tacna | H126: 2017 | I126: 51.3 | J126: Porcentaje | K126: Estadística de la Calidad Educativa (ESCALE) - Ministerio de Educación (MINEDU) | L126: Censo Escolar del Ministerio de Educación - Unidad de Estadística Educativa (UEE) | M126: http://escale.minedu.gob.pe/ueetendencias20002015 | Q126: =IFERROR(IF(VLOOKUP(CONCATENATE(E126,F126,G126),ListaIndicadores!$AC$7:$AG$1887,4,FALSE)="","",VLOOKUP(CONCATENATE(E126,F126,G126),ListaIndicadores!$AC$7:$AG$1887,4,FALSE)),"") -> -23 | R126: =VLOOKUP(CONCATENATE(E126,F126,G126),ListaIndicadores!$AC$7:$AG$1887,5,FALSE) -> ¡Faltan datos! | S126: Porcentaje de instituciones educativas y programas no escolarizados de Educación Inicial que brindan atención educativa, alimentación y salud (distritos mas pobres)DepartamentalTacna2017 | T126: 51.3
A127: 29483 | B127: Social | C127: 4. CUARTO DERECHO: A LA EDUCACIÓN DESDE LA PRIMERA INFANCIA | D127: AGS.18.4 | E127: Porcentaje de instituciones educativas y programas no escolarizados de Educación Inicial que brindan atención educativa, alimentación y salud (distritos mas pobres) | F127: Departamental | G127: Tacna | H127: 2018 | I127: 48.6 | J127: Porcentaje | K127: Estadística de la Calidad Educativa (ESCALE) - Ministerio de Educación (MINEDU) | L127: Censo Escolar del Ministerio de Educación - Unidad de Estadística Educativa (UEE) | M127: http://escale.minedu.gob.pe/ueetendencias20002015 | Q127: =IFERROR(IF(VLOOKUP(CONCATENATE(E127,F127,G127),ListaIndicadores!$AC$7:$AG$1887,4,FALSE)="","",VLOOKUP(CONCATENATE(E127,F127,G127),ListaIndicadores!$AC$7:$AG$1887,4,FALSE)),"") -> -23 | R127: =VLOOKUP(CONCATENATE(E127,F127,G127),ListaIndicadores!$AC$7:$AG$1887,5,FALSE) -> ¡Faltan datos! | S127: Porcentaje de instituciones educativas y programas no escolarizados de Educación Inicial que brindan atención educativa, alimentación y salud (distritos mas pobres)DepartamentalTacna2018 | T127: 48.6
A128: 29484 | B128: Social | C128: 4. CUARTO DERECHO: A LA EDUCACIÓN DESDE LA PRIMERA INFANCIA | D128: AGS.18.4 | E128: Porcentaje de instituciones educativas y programas no escolarizados de Educación Inicial que brindan atención educativa, alimentación y salud (distritos mas pobres) | F128: Departamental | G128: Tumbes | H128: 2014 | I128: 94 | J128: Porcentaje | K128: Estadística de la Calidad Educativa (ESCALE) - Ministerio de Educación (MINEDU) | L128: Censo Escolar del Ministerio de Educación - Unidad de Estadística Educativa (UEE) | M128: http://escale.minedu.gob.pe/ueetendencias20002015 | Q128: =IFERROR(IF(VLOOKUP(CONCATENATE(E128,F128,G128),ListaIndicadores!$AC$7:$AG$1887,4,FALSE)="","",VLOOKUP(CONCATENATE(E128,F128,G128),ListaIndicadores!$AC$7:$AG$1887,4,FALSE)),"") -> -8 | R128: =VLOOKUP(CONCATENATE(E128,F128,G128),ListaIndicadores!$AC$7:$AG$1887,5,FALSE) -> ¡Faltan datos! | S128: Porcentaje de instituciones educativas y programas no escolarizados de Educación Inicial que brindan atención educativa, alimentación y salud (distritos mas pobres)DepartamentalTumbes2014 | T128: 94
A129: 29485 | B129: Social | C129: 4. CUARTO DERECHO: A LA EDUCACIÓN DESDE LA PRIMERA INFANCIA | D129: AGS.18.4 | E129: Porcentaje de instituciones educativas y programas no escolarizados de Educación Inicial que brindan atención educativa, alimentación y salud (distritos mas pobres) | F129: Departamental | G129: Tumbes | H129: 2015 | I129: 93.1 | J129: Porcentaje | K129: Estadística de la Calidad Educativa (ESCALE) - Ministerio de Educación (MINEDU) | L129: Censo Escolar del Ministerio de Educación - Unidad de Estadística Educativa (UEE) | M129: http://escale.minedu.gob.pe/ueetendencias20002015 | Q129: =IFERROR(IF(VLOOKUP(CONCATENATE(E129,F129,G129),ListaIndicadores!$AC$7:$AG$1887,4,FALSE)="","",VLOOKUP(CONCATENATE(E129,F129,G129),ListaIndicadores!$AC$7:$AG$1887,4,FALSE)),"") -> -8 | R129: =VLOOKUP(CONCATENATE(E129,F129,G129),ListaIndicadores!$AC$7:$AG$1887,5,FALSE) -> ¡Faltan datos! | S129: Porcentaje de instituciones educativas y programas no escolarizados de Educación Inicial que brindan atención educativa, alimentación y salud (distritos mas pobres)DepartamentalTumbes2015 | T129: 93.1
A130: 29486 | B130: Social | C130: 4. CUARTO DERECHO: A LA EDUCACIÓN DESDE LA PRIMERA INFANCIA | D130: AGS.18.4 | E130: Porcentaje de instituciones educativas y programas no escolarizados de Educación Inicial que brindan atención educativa, alimentación y salud (distritos mas pobres) | F130: Departamental | G130: Tumbes | H130: 2016 | I130: 52.9 | J130: Porcentaje | K130: Estadística de la Calidad Educativa (ESCALE) - Ministerio de Educación (MINEDU) | L130: Censo Escolar del Ministerio de Educación - Unidad de Estadística Educativa (UEE) | M130: http://escale.minedu.gob.pe/ueetendencias20002015 | Q130: =IFERROR(IF(VLOOKUP(CONCATENATE(E130,F130,G130),ListaIndicadores!$AC$7:$AG$1887,4,FALSE)="","",VLOOKUP(CONCATENATE(E130,F130,G130),ListaIndicadores!$AC$7:$AG$1887,4,FALSE)),"") -> -8 | R130: =VLOOKUP(CONCATENATE(E130,F130,G130),ListaIndicadores!$AC$7:$AG$1887,5,FALSE) -> ¡Faltan datos! | S130: Porcentaje de instituciones educativas y programas no escolarizados de Educación Inicial que brindan atención educativa, alimentación y salud (distritos mas pobres)DepartamentalTumbes2016 | T130: 52.9
A131: 29487 | B131: Social | C131: 4. CUARTO DERECHO: A LA EDUCACIÓN DESDE LA PRIMERA INFANCIA | D131: AGS.18.4 | E131: Porcentaje de instituciones educativas y programas no escolarizados de Educación Inicial que brindan atención educativa, alimentación y salud (distritos mas pobres) | F131: Departamental | G131: Tumbes | H131: 2017 | I131: 53.4 | J131: Porcentaje | K131: Estadística de la Calidad Educativa (ESCALE) - Ministerio de Educación (MINEDU) | L131: Censo Escolar del Ministerio de Educación - Unidad de Estadística Educativa (UEE) | M131: http://escale.minedu.gob.pe/ueetendencias20002015 | Q131: =IFERROR(IF(VLOOKUP(CONCATENATE(E131,F131,G131),ListaIndicadores!$AC$7:$AG$1887,4,FALSE)="","",VLOOKUP(CONCATENATE(E131,F131,G131),ListaIndicadores!$AC$7:$AG$1887,4,FALSE)),"") -> -8 | R131: =VLOOKUP(CONCATENATE(E131,F131,G131),ListaIndicadores!$AC$7:$AG$1887,5,FALSE) -> ¡Faltan datos! | S131: =CONCATENATE(E131,F131,G131,H131) -> Porcentaje de instituciones educativas y programas no escolarizados de Educación Inicial que brindan atención educativa, alimentación y salud (distritos mas pobres)DepartamentalTumbes2017 | T131: =I131 -> 53.4
A132: 29488 | B132: Social | C132: 4. CUARTO DERECHO: A LA EDUCACIÓN DESDE LA PRIMERA INFANCIA | D132: AGS.18.4 | E132: Porcentaje de instituciones educativas y programas no escolarizados de Educación Inicial que brindan atención educativa, alimentación y salud (distritos mas pobres) | F132: Departamental | G132: Tumbes | H132: 2018 | I132: 53.4 | J132: Porcentaje | K132: Estadística de la Calidad Educativa (ESCALE) - Ministerio de Educación (MINEDU) | L132: Censo Escolar del Ministerio de Educación - Unidad de Estadística Educativa (UEE) | M132: http://escale.minedu.gob.pe/ueetendencias20002015 | Q132: =IFERROR(IF(VLOOKUP(CONCATENATE(E132,F132,G132),ListaIndicadores!$AC$7:$AG$1887,4,FALSE)="","",VLOOKUP(CONCATENATE(E132,F132,G132),ListaIndicadores!$AC$7:$AG$1887,4,FALSE)),"") -> -8 | R132: =VLOOKUP(CONCATENATE(E132,F132,G132),ListaIndicadores!$AC$7:$AG$1887,5,FALSE) -> ¡Faltan datos! | S132: Porcentaje de instituciones educativas y programas no escolarizados de Educación Inicial que brindan atención educativa, alimentación y salud (distritos mas pobres)DepartamentalTumbes2018 | T132: 53.4
A133: 29489 | B133: Social | C133: 4. CUARTO DERECHO: A LA EDUCACIÓN DESDE LA PRIMERA INFANCIA | D133: AGS.18.4 | E133: Porcentaje de instituciones educativas y programas no escolarizados de Educación Inicial que brindan atención educativa, alimentación y salud (distritos mas pobres) | F133: Departamental | G133: Ucayali | H133: 2014 | I133: 51.5 | J133: Porcentaje | K133: Estadística de la Calidad Educativa (ESCALE) - Ministerio de Educación (MINEDU) | L133: Censo Escolar del Ministerio de Educación - Unidad de Estadística Educativa (UEE) | M133: http://escale.minedu.gob.pe/ueetendencias20002015 | Q133: =IFERROR(IF(VLOOKUP(CONCATENATE(E133,F133,G133),ListaIndicadores!$AC$7:$AG$1887,4,FALSE)="","",VLOOKUP(CONCATENATE(E133,F133,G133),ListaIndicadores!$AC$7:$AG$1887,4,FALSE)),"") -> 131 | R133: =VLOOKUP(CONCATENATE(E133,F133,G133),ListaIndicadores!$AC$7:$AG$1887,5,FALSE) -> ¡Faltan datos! | S133: Porcentaje de instituciones educativas y programas no escolarizados de Educación Inicial que brindan atención educativa, alimentación y salud (distritos mas pobres)DepartamentalUcayali2014 | T133: 51.5
A134: 29490 | B134: Social | C134: 4. CUARTO DERECHO: A LA EDUCACIÓN DESDE LA PRIMERA INFANCIA | D134: AGS.18.4 | E134: Porcentaje de instituciones educativas y programas no escolarizados de Educación Inicial que brindan atención educativa, alimentación y salud (distritos mas pobres) | F134: Departamental | G134: Ucayali | H134: 2015 | I134: 63.4 | J134: Porcentaje | K134: Estadística de la Calidad Educativa (ESCALE) - Ministerio de Educación (MINEDU) | L134: Censo Escolar del Ministerio de Educación - Unidad de Estadística Educativa (UEE) | M134: http://escale.minedu.gob.pe/ueetendencias20002015 | Q134: =IFERROR(IF(VLOOKUP(CONCATENATE(E134,F134,G134),ListaIndicadores!$AC$7:$AG$1887,4,FALSE)="","",VLOOKUP(CONCATENATE(E134,F134,G134),ListaIndicadores!$AC$7:$AG$1887,4,FALSE)),"") -> 131 | R134: =VLOOKUP(CONCATENATE(E134,F134,G134),ListaIndicadores!$AC$7:$AG$1887,5,FALSE) -> ¡Faltan datos! | S134: Porcentaje de instituciones educativas y programas no escolarizados de Educación Inicial que brindan atención educativa, alimentación y salud (distritos mas pobres)DepartamentalUcayali2015 | T134: 63.4
A135: 29491 | B135: Social | C135: 4. CUARTO DERECHO: A LA EDUCACIÓN DESDE LA PRIMERA INFANCIA | D135: AGS.18.4 | E135: Porcentaje de instituciones educativas y programas no escolarizados de Educación Inicial que brindan atención educativa, alimentación y salud (distritos mas pobres) | F135: Departamental | G135: Ucayali | H135: 2016 | I135: 74.3 | J135: Porcentaje | K135: Estadística de la Calidad Educativa (ESCALE) - Ministerio de Educación (MINEDU) | L135: Censo Escolar del Ministerio de Educación - Unidad de Estadística Educativa (UEE) | M135: http://escale.minedu.gob.pe/ueetendencias20002015 | Q135: =IFERROR(IF(VLOOKUP(CONCATENATE(E135,F135,G135),ListaIndicadores!$AC$7:$AG$1887,4,FALSE)="","",VLOOKUP(CONCATENATE(E135,F135,G135),ListaIndicadores!$AC$7:$AG$1887,4,FALSE)),"") -> 131 | R135: =VLOOKUP(CONCATENATE(E135,F135,G135),ListaIndicadores!$AC$7:$AG$1887,5,FALSE) -> ¡Faltan datos! | S135: Porcentaje de instituciones educativas y programas no escolarizados de Educación Inicial que brindan atención educativa, alimentación y salud (distritos mas pobres)DepartamentalUcayali2016 | T135: 74.3
A136: 29492 | B136: Social | C136: 4. CUARTO DERECHO: A LA EDUCACIÓN DESDE LA PRIMERA INFANCIA | D136: AGS.18.4 | E136: Porcentaje de instituciones educativas y programas no escolarizados de Educación Inicial que brindan atención educativa, alimentación y salud (distritos mas pobres) | F136: Departamental | G136: Ucayali | H136: 2017 | I136: 69.8 | J136: Porcentaje | K136: Estadística de la Calidad Educativa (ESCALE) - Ministerio de Educación (MINEDU) | L136: Censo Escolar del Ministerio de Educación - Unidad de Estadística Educativa (UEE) | M136: http://escale.minedu.gob.pe/ueetendencias20002015 | Q136: =IFERROR(IF(VLOOKUP(CONCATENATE(E136,F136,G136),ListaIndicadores!$AC$7:$AG$1887,4,FALSE)="","",VLOOKUP(CONCATENATE(E136,F136,G136),ListaIndicadores!$AC$7:$AG$1887,4,FALSE)),"") -> 131 | R136: =VLOOKUP(CONCATENATE(E136,F136,G136),ListaIndicadores!$AC$7:$AG$1887,5,FALSE) -> ¡Faltan datos! | S136: Porcentaje de instituciones educativas y programas no escolarizados de Educación Inicial que brindan atención educativa, alimentación y salud (distritos mas pobres)DepartamentalUcayali2017 | T136: 69.8
A137: 29493 | B137: Social | C137: 4. CUARTO DERECHO: A LA EDUCACIÓN DESDE LA PRIMERA INFANCIA | D137: AGS.18.4 | E137: Porcentaje de instituciones educativas y programas no escolarizados de Educación Inicial que brindan atención educativa, alimentación y salud (distritos mas pobres) | F137: Departamental | G137: Ucayali | H137: 2018 | I137: 86.1 | J137: Porcentaje | K137: Estadística de la Calidad Educativa (ESCALE) - Ministerio de Educación (MINEDU) | L137: Censo Escolar del Ministerio de Educación - Unidad de Estadística Educativa (UEE) | M137: http://escale.minedu.gob.pe/ueetendencias20002015 | Q137: =IFERROR(IF(VLOOKUP(CONCATENATE(E137,F137,G137),ListaIndicadores!$AC$7:$AG$1887,4,FALSE)="","",VLOOKUP(CONCATENATE(E137,F137,G137),ListaIndicadores!$AC$7:$AG$1887,4,FALSE)),"") -> 131 | R137: =VLOOKUP(CONCATENATE(E137,F137,G137),ListaIndicadores!$AC$7:$AG$1887,5,FALSE) -> ¡Faltan datos! | S137: Porcentaje de instituciones educativas y programas no escolarizados de Educación Inicial que brindan atención educativa, alimentación y salud (distritos mas pobres)DepartamentalUcayali2018 | T137: 86.1
A138: 29358 | B138: Social | C138: 4. CUARTO DERECHO: A LA EDUCACIÓN DESDE LA PRIMERA INFANCIA | D138: AGS.18.4 | E138: Porcentaje de instituciones educativas y programas no escolarizados de Educación Inicial que brindan atención educativa, alimentación y salud (distritos mas pobres) | F138: Departamental | G138: Amazonas | H138: 2019 | I138: 84.2 | J138: Porcentaje | K138: Estadística de la Calidad Educativa (ESCALE) - Ministerio de Educación (MINEDU) | L138: Censo Escolar del Ministerio de Educación - Unidad de Estadística Educativa (UEE) | M138: http://escale.minedu.gob.pe/ueetendencias20002015 | Q138: =IFERROR(IF(VLOOKUP(CONCATENATE(E138,F138,G138),ListaIndicadores!$AC$7:$AG$1887,4,FALSE)="","",VLOOKUP(CONCATENATE(E138,F138,G138),ListaIndicadores!$AC$7:$AG$1887,4,FALSE)),"") -> 104 | R138: =VLOOKUP(CONCATENATE(E138,F138,G138),ListaIndicadores!$AC$7:$AG$1887,5,FALSE) -> ¡Faltan datos! | S138: Porcentaje de instituciones educativas y programas no escolarizados de Educación Inicial que brindan atención educativa, alimentación y salud (distritos mas pobres)DepartamentalAmazonas2019 | T138: 84.2
A139: 29359 | B139: Social | C139: 4. CUARTO DERECHO: A LA EDUCACIÓN DESDE LA PRIMERA INFANCIA | D139: AGS.18.4 | E139: Porcentaje de instituciones educativas y programas no escolarizados de Educación Inicial que brindan atención educativa, alimentación y salud (distritos mas pobres) | F139: Departamental | G139: Amazonas | H139: 2020 | I139: 83.3 | J139: Porcentaje | K139: Estadística de la Calidad Educativa (ESCALE) - Ministerio de Educación (MINEDU) | L139: Censo Escolar del Ministerio de Educación - Unidad de Estadística Educativa (UEE) | M139: http://escale.minedu.gob.pe/ueetendencias20002015 | Q139: =IFERROR(IF(VLOOKUP(CONCATENATE(E139,F139,G139),ListaIndicadores!$AC$7:$AG$1887,4,FALSE)="","",VLOOKUP(CONCATENATE(E139,F139,G139),ListaIndicadores!$AC$7:$AG$1887,4,FALSE)),"") -> 104 | R139: =VLOOKUP(CONCATENATE(E139,F139,G139),ListaIndicadores!$AC$7:$AG$1887,5,FALSE) -> ¡Faltan datos! | S139: Porcentaje de instituciones educativas y programas no escolarizados de Educación Inicial que brindan atención educativa, alimentación y salud (distritos mas pobres)DepartamentalAmazonas2020 | T139: 83.3
A140: 29360 | B140: Social | C140: 4. CUARTO DERECHO: A LA EDUCACIÓN DESDE LA PRIMERA INFANCIA | D140: AGS.18.4 | E140: Porcentaje de instituciones educativas y programas no escolarizados de Educación Inicial que brindan atención educativa, alimentación y salud (distritos mas pobres) | F140: Departamental | G140: Amazonas | H140: 2021 | I140: 86 | J140: Porcentaje | K140: Estadística de la Calidad Educativa (ESCALE) - Ministerio de Educación (MINEDU) | L140: Censo Escolar del Ministerio de Educación - Unidad de Estadística Educativa (UEE) | M140: http://escale.minedu.gob.pe/ueetendencias20002015 | Q140: =IFERROR(IF(VLOOKUP(CONCATENATE(E140,F140,G140),ListaIndicadores!$AC$7:$AG$1887,4,FALSE)="","",VLOOKUP(CONCATENATE(E140,F140,G140),ListaIndicadores!$AC$7:$AG$1887,4,FALSE)),"") -> 104 | R140: =VLOOKUP(CONCATENATE(E140,F140,G140),ListaIndicadores!$AC$7:$AG$1887,5,FALSE) -> ¡Faltan datos! | S140: Porcentaje de instituciones educativas y programas no escolarizados de Educación Inicial que brindan atención educativa, alimentación y salud (distritos mas pobres)DepartamentalAmazonas2021 | T140: 86
A141: 29363 | B141: Social | C141: 4. CUARTO DERECHO: A LA EDUCACIÓN DESDE LA PRIMERA INFANCIA | D141: AGS.18.4 | E141: Porcentaje de instituciones educativas y programas no escolarizados de Educación Inicial que brindan atención educativa, alimentación y salud (distritos mas pobres) | F141: Departamental | G141: Áncash | H141: 2019 | I141: 92.6 | J141: Porcentaje | K141: Estadística de la Calidad Educativa (ESCALE) - Ministerio de Educación (MINEDU) | L141: Censo Escolar del Ministerio de Educación - Unidad de Estadística Educativa (UEE) | M141: http://escale.minedu.gob.pe/ueetendencias20002015 | Q141: =IFERROR(IF(VLOOKUP(CONCATENATE(E141,F141,G141),ListaIndicadores!$AC$7:$AG$1887,4,FALSE)="","",VLOOKUP(CONCATENATE(E141,F141,G141),ListaIndicadores!$AC$7:$AG$1887,4,FALSE)),"") -> 109 | R141: =VLOOKUP(CONCATENATE(E141,F141,G141),ListaIndicadores!$AC$7:$AG$1887,5,FALSE) -> ¡Faltan datos! | S141: Porcentaje de instituciones educativas y programas no escolarizados de Educación Inicial que brindan atención educativa, alimentación y salud (distritos mas pobres)DepartamentalÁncash2019 | T141: 92.6
A142: 29364 | B142: Social | C142: 4. CUARTO DERECHO: A LA EDUCACIÓN DESDE LA PRIMERA INFANCIA | D142: AGS.18.4 | E142: Porcentaje de instituciones educativas y programas no escolarizados de Educación Inicial que brindan atención educativa, alimentación y salud (distritos mas pobres) | F142: Departamental | G142: Áncash | H142: 2020 | I142: 96.6 | J142: Porcentaje | K142: Estadística de la Calidad Educativa (ESCALE) - Ministerio de Educación (MINEDU) | L142: Censo Escolar del Ministerio de Educación - Unidad de Estadística Educativa (UEE) | M142: http://escale.minedu.gob.pe/ueetendencias20002015 | Q142: =IFERROR(IF(VLOOKUP(CONCATENATE(E142,F142,G142),ListaIndicadores!$AC$7:$AG$1887,4,FALSE)="","",VLOOKUP(CONCATENATE(E142,F142,G142),ListaIndicadores!$AC$7:$AG$1887,4,FALSE)),"") -> 109 | R142: =VLOOKUP(CONCATENATE(E142,F142,G142),ListaIndicadores!$AC$7:$AG$1887,5,FALSE) -> ¡Faltan datos! | S142: Porcentaje de instituciones educativas y programas no escolarizados de Educación Inicial que brindan atención educativa, alimentación y salud (distritos mas pobres)DepartamentalÁncash2020 | T142: 96.6
A143: 29365 | B143: Social | C143: 4. CUARTO DERECHO: A LA EDUCACIÓN DESDE LA PRIMERA INFANCIA | D143: AGS.18.4 | E143: Porcentaje de instituciones educativas y programas no escolarizados de Educación Inicial que brindan atención educativa, alimentación y salud (distritos mas pobres) | F143: Departamental | G143: Áncash | H143: 2021 | I143: 96.2 | J143: Porcentaje | K143: Estadística de la Calidad Educativa (ESCALE) - Ministerio de Educación (MINEDU) | L143: Censo Escolar del Ministerio de Educación - Unidad de Estadística Educativa (UEE) | M143: http://escale.minedu.gob.pe/ueetendencias20002015 | Q143: =IFERROR(IF(VLOOKUP(CONCATENATE(E143,F143,G143),ListaIndicadores!$AC$7:$AG$1887,4,FALSE)="","",VLOOKUP(CONCATENATE(E143,F143,G143),ListaIndicadores!$AC$7:$AG$1887,4,FALSE)),"") -> 109 | R143: =VLOOKUP(CONCATENATE(E143,F143,G143),ListaIndicadores!$AC$7:$AG$1887,5,FALSE) -> ¡Faltan datos! | S143: Porcentaje de instituciones educativas y programas no escolarizados de Educación Inicial que brindan atención educativa, alimentación y salud (distritos mas pobres)DepartamentalÁncash2021 | T143: 96.2
A144: 29368 | B144: Social | C144: 4. CUARTO DERECHO: A LA EDUCACIÓN DESDE LA PRIMERA INFANCIA | D144: AGS.18.4 | E144: Porcentaje de instituciones educativas y programas no escolarizados de Educación Inicial que brindan atención educativa, alimentación y salud (distritos mas pobres) | F144: Departamental | G144: Apurímac | H144: 2019 | I144: 77.4 | J144: Porcentaje | K144: Estadística de la Calidad Educativa (ESCALE) - Ministerio de Educación (MINEDU) | L144: Censo Escolar del Ministerio de Educación - Unidad de Estadística Educativa (UEE) | M144: http://escale.minedu.gob.pe/ueetendencias20002015 | Q144: =IFERROR(IF(VLOOKUP(CONCATENATE(E144,F144,G144),ListaIndicadores!$AC$7:$AG$1887,4,FALSE)="","",VLOOKUP(CONCATENATE(E144,F144,G144),ListaIndicadores!$AC$7:$AG$1887,4,FALSE)),"") -> 82 | R144: =VLOOKUP(CONCATENATE(E144,F144,G144),ListaIndicadores!$AC$7:$AG$1887,5,FALSE) -> ¡Faltan datos! | S144: Porcentaje de instituciones educativas y programas no escolarizados de Educación Inicial que brindan atención educativa, alimentación y salud (distritos mas pobres)DepartamentalApurímac2019 | T144: 77.4
A145: 29369 | B145: Social | C145: 4. CUARTO DERECHO: A LA EDUCACIÓN DESDE LA PRIMERA INFANCIA | D145: AGS.18.4 | E145: Porcentaje de instituciones educativas y programas no escolarizados de Educación Inicial que brindan atención educativa, alimentación y salud (distritos mas pobres) | F145: Departamental | G145: Apurímac | H145: 2020 | I145: 80 | J145: Porcentaje | K145: Estadística de la Calidad Educativa (ESCALE) - Ministerio de Educación (MINEDU) | L145: Censo Escolar del Ministerio de Educación - Unidad de Estadística Educativa (UEE) | M145: http://escale.minedu.gob.pe/ueetendencias20002015 | Q145: =IFERROR(IF(VLOOKUP(CONCATENATE(E145,F145,G145),ListaIndicadores!$AC$7:$AG$1887,4,FALSE)="","",VLOOKUP(CONCATENATE(E145,F145,G145),ListaIndicadores!$AC$7:$AG$1887,4,FALSE)),"") -> 82 | R145: =VLOOKUP(CONCATENATE(E145,F145,G145),ListaIndicadores!$AC$7:$AG$1887,5,FALSE) -> ¡Faltan datos! | S145: Porcentaje de instituciones educativas y programas no escolarizados de Educación Inicial que brindan atención educativa, alimentación y salud (distritos mas pobres)DepartamentalApurímac2020 | T145: 80
A146: 29370 | B146: Social | C146: 4. CUARTO DERECHO: A LA EDUCACIÓN DESDE LA PRIMERA INFANCIA | D146: AGS.18.4 | E146: Porcentaje de instituciones educativas y programas no escolarizados de Educación Inicial que brindan atención educativa, alimentación y salud (distritos mas pobres) | F146: Departamental | G146: Apurímac | H146: 2021 | I146: 82.5 | J146: Porcentaje | K146: Estadística de la Calidad Educativa (ESCALE) - Ministerio de Educación (MINEDU) | L146: Censo Escolar del Ministerio de Educación - Unidad de Estadística Educativa (UEE) | M146: http://escale.minedu.gob.pe/ueetendencias20002015 | Q146: =IFERROR(IF(VLOOKUP(CONCATENATE(E146,F146,G146),ListaIndicadores!$AC$7:$AG$1887,4,FALSE)="","",VLOOKUP(CONCATENATE(E146,F146,G146),ListaIndicadores!$AC$7:$AG$1887,4,FALSE)),"") -> 82 | R146: =VLOOKUP(CONCATENATE(E146,F146,G146),ListaIndicadores!$AC$7:$AG$1887,5,FALSE) -> ¡Faltan datos! | S146: Porcentaje de instituciones educativas y programas no escolarizados de Educación Inicial que brindan atención educativa, alimentación y salud (distritos mas pobres)DepartamentalApurímac2021 | T146: 82.5
A147: 29373 | B147: Social | C147: 4. CUARTO DERECHO: A LA EDUCACIÓN DESDE LA PRIMERA INFANCIA | D147: AGS.18.4 | E147: Porcentaje de instituciones educativas y programas no escolarizados de Educación Inicial que brindan atención educativa, alimentación y salud (distritos mas pobres) | F147: Departamental | G147: Arequipa | H147: 2019 | I147: 68.7 | J147: Porcentaje | K147: Estadística de la Calidad Educativa (ESCALE) - Ministerio de Educación (MINEDU) | L147: Censo Escolar del Ministerio de Educación - Unidad de Estadística Educativa (UEE) | M147: http://escale.minedu.gob.pe/ueetendencias20002015 | Q147: =IFERROR(IF(VLOOKUP(CONCATENATE(E147,F147,G147),ListaIndicadores!$AC$7:$AG$1887,4,FALSE)="","",VLOOKUP(CONCATENATE(E147,F147,G147),ListaIndicadores!$AC$7:$AG$1887,4,FALSE)),"") -> 70 | R147: =VLOOKUP(CONCATENATE(E147,F147,G147),ListaIndicadores!$AC$7:$AG$1887,5,FALSE) -> ¡Faltan datos! | S147: Porcentaje de instituciones educativas y programas no escolarizados de Educación Inicial que brindan atención educativa, alimentación y salud (distritos mas pobres)DepartamentalArequipa2019 | T147: 68.7
A148: 29374 | B148: Social | C148: 4. CUARTO DERECHO: A LA EDUCACIÓN DESDE LA PRIMERA INFANCIA | D148: AGS.18.4 | E148: Porcentaje de instituciones educativas y programas no escolarizados de Educación Inicial que brindan atención educativa, alimentación y salud (distritos mas pobres) | F148: Departamental | G148: Arequipa | H148: 2020 | I148: 69.8 | J148: Porcentaje | K148: Estadística de la Calidad Educativa (ESCALE) - Ministerio de Educación (MINEDU) | L148: Censo Escolar del Ministerio de Educación - Unidad de Estadística Educativa (UEE) | M148: http://escale.minedu.gob.pe/ueetendencias20002015 | Q148: =IFERROR(IF(VLOOKUP(CONCATENATE(E148,F148,G148),ListaIndicadores!$AC$7:$AG$1887,4,FALSE)="","",VLOOKUP(CONCATENATE(E148,F148,G148),ListaIndicadores!$AC$7:$AG$1887,4,FALSE)),"") -> 70 | R148: =VLOOKUP(CONCATENATE(E148,F148,G148),ListaIndicadores!$AC$7:$AG$1887,5,FALSE) -> ¡Faltan datos! | S148: Porcentaje de instituciones educativas y programas no escolarizados de Educación Inicial que brindan atención educativa, alimentación y salud (distritos mas pobres)DepartamentalArequipa2020 | T148: 69.8
A149: 29375 | B149: Social | C149: 4. CUARTO DERECHO: A LA EDUCACIÓN DESDE LA PRIMERA INFANCIA | D149: AGS.18.4 | E149: Porcentaje de instituciones educativas y programas no escolarizados de Educación Inicial que brindan atención educativa, alimentación y salud (distritos mas pobres) | F149: Departamental | G149: Arequipa | H149: 2021 | I149: 72.9 | J149: Porcentaje | K149: Estadística de la Calidad Educativa (ESCALE) - Ministerio de Educación (MINEDU) | L149: Censo Escolar del Ministerio de Educación - Unidad de Estadística Educativa (UEE) | M149: http://escale.minedu.gob.pe/ueetendencias20002015 | Q149: =IFERROR(IF(VLOOKUP(CONCATENATE(E149,F149,G149),ListaIndicadores!$AC$7:$AG$1887,4,FALSE)="","",VLOOKUP(CONCATENATE(E149,F149,G149),ListaIndicadores!$AC$7:$AG$1887,4,FALSE)),"") -> 70 | R149: =VLOOKUP(CONCATENATE(E149,F149,G149),ListaIndicadores!$AC$7:$AG$1887,5,FALSE) -> ¡Faltan datos! | S149: Porcentaje de instituciones educativas y programas no escolarizados de Educación Inicial que brindan atención educativa, alimentación y salud (distritos mas pobres)DepartamentalArequipa2021 | T149: 72.9
A150: 29378 | B150: Social | C150: 4. CUARTO DERECHO: A LA EDUCACIÓN DESDE LA PRIMERA INFANCIA | D150: AGS.18.4 | E150: Porcentaje de instituciones educativas y programas no escolarizados de Educación Inicial que brindan atención educativa, alimentación y salud (distritos mas pobres) | F150: Departamental | G150: Ayacucho | H150: 2019 | I150: 79 | J150: Porcentaje | K150: Estadística de la Calidad Educativa (ESCALE) - Ministerio de Educación (MINEDU) | L150: Censo Escolar del Ministerio de Educación - Unidad de Estadística Educativa (UEE) | M150: http://escale.minedu.gob.pe/ueetendencias20002015 | Q150: =IFERROR(IF(VLOOKUP(CONCATENATE(E150,F150,G150),ListaIndicadores!$AC$7:$AG$1887,4,FALSE)="","",VLOOKUP(CONCATENATE(E150,F150,G150),ListaIndicadores!$AC$7:$AG$1887,4,FALSE)),"") -> 85 | R150: =VLOOKUP(CONCATENATE(E150,F150,G150),ListaIndicadores!$AC$7:$AG$1887,5,FALSE) -> ¡Faltan datos! | S150: Porcentaje de instituciones educativas y programas no escolarizados de Educación Inicial que brindan atención educativa, alimentación y salud (distritos mas pobres)DepartamentalAyacucho2019 | T150: 79
A151: 29379 | B151: Social | C151: 4. CUARTO DERECHO: A LA EDUCACIÓN DESDE LA PRIMERA INFANCIA | D151: AGS.18.4 | E151: Porcentaje de instituciones educativas y programas no escolarizados de Educación Inicial que brindan atención educativa, alimentación y salud (distritos mas pobres) | F151: Departamental | G151: Ayacucho | H151: 2020 | I151: 91 | J151: Porcentaje | K151: Estadística de la Calidad Educativa (ESCALE) - Ministerio de Educación (MINEDU) | L151: Censo Escolar del Ministerio de Educación - Unidad de Estadística Educativa (UEE) | M151: http://escale.minedu.gob.pe/ueetendencias20002015 | Q151: =IFERROR(IF(VLOOKUP(CONCATENATE(E151,F151,G151),ListaIndicadores!$AC$7:$AG$1887,4,FALSE)="","",VLOOKUP(CONCATENATE(E151,F151,G151),ListaIndicadores!$AC$7:$AG$1887,4,FALSE)),"") -> 85 | R151: =VLOOKUP(CONCATENATE(E151,F151,G151),ListaIndicadores!$AC$7:$AG$1887,5,FALSE) -> ¡Faltan datos! | S151: Porcentaje de instituciones educativas y programas no escolarizados de Educación Inicial que brindan atención educativa, alimentación y salud (distritos mas pobres)DepartamentalAyacucho2020 | T151: 91
A152: 29380 | B152: Social | C152: 4. CUARTO DERECHO: A LA EDUCACIÓN DESDE LA PRIMERA INFANCIA | D152: AGS.18.4 | E152: Porcentaje de instituciones educativas y programas no escolarizados de Educación Inicial que brindan atención educativa, alimentación y salud (distritos mas pobres) | F152: Departamental | G152: Ayacucho | H152: 2021 | I152: 90.7 | J152: Porcentaje | K152: Estadística de la Calidad Educativa (ESCALE) - Ministerio de Educación (MINEDU) | L152: Censo Escolar del Ministerio de Educación - Unidad de Estadística Educativa (UEE) | M152: http://escale.minedu.gob.pe/ueetendencias20002015 | Q152: =IFERROR(IF(VLOOKUP(CONCATENATE(E152,F152,G152),ListaIndicadores!$AC$7:$AG$1887,4,FALSE)="","",VLOOKUP(CONCATENATE(E152,F152,G152),ListaIndicadores!$AC$7:$AG$1887,4,FALSE)),"") -> 85 | R152: =VLOOKUP(CONCATENATE(E152,F152,G152),ListaIndicadores!$AC$7:$AG$1887,5,FALSE) -> ¡Faltan datos! | S152: Porcentaje de instituciones educativas y programas no escolarizados de Educación Inicial que brindan atención educativa, alimentación y salud (distritos mas pobres)DepartamentalAyacucho2021 | T152: 90.7
A153: 29383 | B153: Social | C153: 4. CUARTO DERECHO: A LA EDUCACIÓN DESDE LA PRIMERA INFANCIA | D153: AGS.18.4 | E153: Porcentaje de instituciones educativas y programas no escolarizados de Educación Inicial que brindan atención educativa, alimentación y salud (distritos mas pobres) | F153: Departamental | G153: Cajamarca | H153: 2019 | I153: 90 | J153: Porcentaje | K153: Estadística de la Calidad Educativa (ESCALE) - Ministerio de Educación (MINEDU) | L153: Censo Escolar del Ministerio de Educación - Unidad de Estadística Educativa (UEE) | M153: http://escale.minedu.gob.pe/ueetendencias20002015 | Q153: =IFERROR(IF(VLOOKUP(CONCATENATE(E153,F153,G153),ListaIndicadores!$AC$7:$AG$1887,4,FALSE)="","",VLOOKUP(CONCATENATE(E153,F153,G153),ListaIndicadores!$AC$7:$AG$1887,4,FALSE)),"") -> 101 | R153: =VLOOKUP(CONCATENATE(E153,F153,G153),ListaIndicadores!$AC$7:$AG$1887,5,FALSE) -> ¡Faltan datos! | S153: Porcentaje de instituciones educativas y programas no escolarizados de Educación Inicial que brindan atención educativa, alimentación y salud (distritos mas pobres)DepartamentalCajamarca2019 | T153: 90
A154: 29384 | B154: Social | C154: 4. CUARTO DERECHO: A LA EDUCACIÓN DESDE LA PRIMERA INFANCIA | D154: AGS.18.4 | E154: Porcentaje de instituciones educativas y programas no escolarizados de Educación Inicial que brindan atención educativa, alimentación y salud (distritos mas pobres) | F154: Departamental | G154: Cajamarca | H154: 2020 | I154: 91.5 | J154: Porcentaje | K154: Estadística de la Calidad Educativa (ESCALE) - Ministerio de Educación (MINEDU) | L154: Censo Escolar del Ministerio de Educación - Unidad de Estadística Educativa (UEE) | M154: http://escale.minedu.gob.pe/ueetendencias20002015 | Q154: =IFERROR(IF(VLOOKUP(CONCATENATE(E154,F154,G154),ListaIndicadores!$AC$7:$AG$1887,4,FALSE)="","",VLOOKUP(CONCATENATE(E154,F154,G154),ListaIndicadores!$AC$7:$AG$1887,4,FALSE)),"") -> 101 | R154: =VLOOKUP(CONCATENATE(E154,F154,G154),ListaIndicadores!$AC$7:$AG$1887,5,FALSE) -> ¡Faltan datos! | S154: Porcentaje de instituciones educativas y programas no escolarizados de Educación Inicial que brindan atención educativa, alimentación y salud (distritos mas pobres)DepartamentalCajamarca2020 | T154: 91.5
A155: 29385 | B155: Social | C155: 4. CUARTO DERECHO: A LA EDUCACIÓN DESDE LA PRIMERA INFANCIA | D155: AGS.18.4 | E155: Porcentaje de instituciones educativas y programas no escolarizados de Educación Inicial que brindan atención educativa, alimentación y salud (distritos mas pobres) | F155: Departamental | G155: Cajamarca | H155: 2021 | I155: 91 | J155: Porcentaje | K155: Estadística de la Calidad Educativa (ESCALE) - Ministerio de Educación (MINEDU) | L155: Censo Escolar del Ministerio de Educación - Unidad de Estadística Educativa (UEE) | M155: http://escale.minedu.gob.pe/ueetendencias20002015 | Q155: =IFERROR(IF(VLOOKUP(CONCATENATE(E155,F155,G155),ListaIndicadores!$AC$7:$AG$1887,4,FALSE)="","",VLOOKUP(CONCATENATE(E155,F155,G155),ListaIndicadores!$AC$7:$AG$1887,4,FALSE)),"") -> 101 | R155: =VLOOKUP(CONCATENATE(E155,F155,G155),ListaIndicadores!$AC$7:$AG$1887,5,FALSE) -> ¡Faltan datos! | S155: Porcentaje de instituciones educativas y programas no escolarizados de Educación Inicial que brindan atención educativa, alimentación y salud (distritos mas pobres)DepartamentalCajamarca2021 | T155: 91
A156: 29388 | B156: Social | C156: 4. CUARTO DERECHO: A LA EDUCACIÓN DESDE LA PRIMERA INFANCIA | D156: AGS.18.4 | E156: Porcentaje de instituciones educativas y programas no escolarizados de Educación Inicial que brindan atención educativa, alimentación y salud (distritos mas pobres) | F156: Departamental | G156: Prov. Const. del Callao | H156: 2019 | J156: Porcentaje | K156: Estadística de la Calidad Educativa (ESCALE) - Ministerio de Educación (MINEDU) | L156: Censo Escolar del Ministerio de Educación - Unidad de Estadística Educativa (UEE) | M156: http://escale.minedu.gob.pe/ueetendencias20002015 | O156: Datos no existentes | Q156: =IFERROR(IF(VLOOKUP(CONCATENATE(E156,F156,G156),ListaIndicadores!$AC$7:$AG$1887,4,FALSE)="","",VLOOKUP(CONCATENATE(E156,F156,G156),ListaIndicadores!$AC$7:$AG$1887,4,FALSE)),"") ->  | R156: =VLOOKUP(CONCATENATE(E156,F156,G156),ListaIndicadores!$AC$7:$AG$1887,5,FALSE) ->  | S156: Porcentaje de instituciones educativas y programas no escolarizados de Educación Inicial que brindan atención educativa, alimentación y salud (distritos mas pobres)DepartamentalProv. Const. del Callao2019 | T156: 0
A157: 29389 | B157: Social | C157: 4. CUARTO DERECHO: A LA EDUCACIÓN DESDE LA PRIMERA INFANCIA | D157: AGS.18.4 | E157: Porcentaje de instituciones educativas y programas no escolarizados de Educación Inicial que brindan atención educativa, alimentación y salud (distritos mas pobres) | F157: Departamental | G157: Prov. Const. del Callao | H157: 2020 | J157: Porcentaje | K157: Estadística de la Calidad Educativa (ESCALE) - Ministerio de Educación (MINEDU) | L157: Censo Escolar del Ministerio de Educación - Unidad de Estadística Educativa (UEE) | M157: http://escale.minedu.gob.pe/ueetendencias20002015 | N157: - | O157: Datos no existentes | Q157: =IFERROR(IF(VLOOKUP(CONCATENATE(E157,F157,G157),ListaIndicadores!$AC$7:$AG$1887,4,FALSE)="","",VLOOKUP(CONCATENATE(E157,F157,G157),ListaIndicadores!$AC$7:$AG$1887,4,FALSE)),"") ->  | R157: =VLOOKUP(CONCATENATE(E157,F157,G157),ListaIndicadores!$AC$7:$AG$1887,5,FALSE) ->  | S157: Porcentaje de instituciones educativas y programas no escolarizados de Educación Inicial que brindan atención educativa, alimentación y salud (distritos mas pobres)DepartamentalProv. Const. del Callao2020 | T157: 0
A158: 29390 | B158: Social | C158: 4. CUARTO DERECHO: A LA EDUCACIÓN DESDE LA PRIMERA INFANCIA | D158: AGS.18.4 | E158: Porcentaje de instituciones educativas y programas no escolarizados de Educación Inicial que brindan atención educativa, alimentación y salud (distritos mas pobres) | F158: Departamental | G158: Prov. Const. del Callao | H158: 2021 | J158: Porcentaje | K158: Estadística de la Calidad Educativa (ESCALE) - Ministerio de Educación (MINEDU) | L158: Censo Escolar del Ministerio de Educación - Unidad de Estadística Educativa (UEE) | M158: http://escale.minedu.gob.pe/ueetendencias20002015 | O158: Datos no existentes | Q158: =IFERROR(IF(VLOOKUP(CONCATENATE(E158,F158,G158),ListaIndicadores!$AC$7:$AG$1887,4,FALSE)="","",VLOOKUP(CONCATENATE(E158,F158,G158),ListaIndicadores!$AC$7:$AG$1887,4,FALSE)),"") ->  | R158: =VLOOKUP(CONCATENATE(E158,F158,G158),ListaIndicadores!$AC$7:$AG$1887,5,FALSE) ->  | S158: Porcentaje de instituciones educativas y programas no escolarizados de Educación Inicial que brindan atención educativa, alimentación y salud (distritos mas pobres)DepartamentalProv. Const. del Callao2021 | T158: 0
A159: 29393 | B159: Social | C159: 4. CUARTO DERECHO: A LA EDUCACIÓN DESDE LA PRIMERA INFANCIA | D159: AGS.18.4 | E159: Porcentaje de instituciones educativas y programas no escolarizados de Educación Inicial que brindan atención educativa, alimentación y salud (distritos mas pobres) | F159: Departamental | G159: Cusco | H159: 2019 | I159: 82.7 | J159: Porcentaje | K159: Estadística de la Calidad Educativa (ESCALE) - Ministerio de Educación (MINEDU) | L159: Censo Escolar del Ministerio de Educación - Unidad de Estadística Educativa (UEE) | M159: http://escale.minedu.gob.pe/ueetendencias20002015 | Q159: =IFERROR(IF(VLOOKUP(CONCATENATE(E159,F159,G159),ListaIndicadores!$AC$7:$AG$1887,4,FALSE)="","",VLOOKUP(CONCATENATE(E159,F159,G159),ListaIndicadores!$AC$7:$AG$1887,4,FALSE)),"") -> 82 | R159: =VLOOKUP(CONCATENATE(E159,F159,G159),ListaIndicadores!$AC$7:$AG$1887,5,FALSE) -> ¡Faltan datos! | S159: Porcentaje de instituciones educativas y programas no escolarizados de Educación Inicial que brindan atención educativa, alimentación y salud (distritos mas pobres)DepartamentalCusco2019 | T159: 82.7
A160: 29394 | B160: Social | C160: 4. CUARTO DERECHO: A LA EDUCACIÓN DESDE LA PRIMERA INFANCIA | D160: AGS.18.4 | E160: Porcentaje de instituciones educativas y programas no escolarizados de Educación Inicial que brindan atención educativa, alimentación y salud (distritos mas pobres) | F160: Departamental | G160: Cusco | H160: 2020 | I160: 84.3 | J160: Porcentaje | K160: Estadística de la Calidad Educativa (ESCALE) - Ministerio de Educación (MINEDU) | L160: Censo Escolar del Ministerio de Educación - Unidad de Estadística Educativa (UEE) | M160: http://escale.minedu.gob.pe/ueetendencias20002015 | Q160: =IFERROR(IF(VLOOKUP(CONCATENATE(E160,F160,G160),ListaIndicadores!$AC$7:$AG$1887,4,FALSE)="","",VLOOKUP(CONCATENATE(E160,F160,G160),ListaIndicadores!$AC$7:$AG$1887,4,FALSE)),"") -> 82 | R160: =VLOOKUP(CONCATENATE(E160,F160,G160),ListaIndicadores!$AC$7:$AG$1887,5,FALSE) -> ¡Faltan datos! | S160: Porcentaje de instituciones educativas y programas no escolarizados de Educación Inicial que brindan atención educativa, alimentación y salud (distritos mas pobres)DepartamentalCusco2020 | T160: 84.3
A161: 29395 | B161: Social | C161: 4. CUARTO DERECHO: A LA EDUCACIÓN DESDE LA PRIMERA INFANCIA | D161: AGS.18.4 | E161: Porcentaje de instituciones educativas y programas no escolarizados de Educación Inicial que brindan atención educativa, alimentación y salud (distritos mas pobres) | F161: Departamental | G161: Cusco | H161: 2021 | I161: 82.7 | J161: Porcentaje | K161: Estadística de la Calidad Educativa (ESCALE) - Ministerio de Educación (MINEDU) | L161: Censo Escolar del Ministerio de Educación - Unidad de Estadística Educativa (UEE) | M161: http://escale.minedu.gob.pe/ueetendencias20002015 | Q161: =IFERROR(IF(VLOOKUP(CONCATENATE(E161,F161,G161),ListaIndicadores!$AC$7:$AG$1887,4,FALSE)="","",VLOOKUP(CONCATENATE(E161,F161,G161),ListaIndicadores!$AC$7:$AG$1887,4,FALSE)),"") -> 82 | R161: =VLOOKUP(CONCATENATE(E161,F161,G161),ListaIndicadores!$AC$7:$AG$1887,5,FALSE) -> ¡Faltan datos! | S161: Porcentaje de instituciones educativas y programas no escolarizados de Educación Inicial que brindan atención educativa, alimentación y salud (distritos mas pobres)DepartamentalCusco2021 | T161: 82.7
A162: 29398 | B162: Social | C162: 4. CUARTO DERECHO: A LA EDUCACIÓN DESDE LA PRIMERA INFANCIA | D162: AGS.18.4 | E162: Porcentaje de instituciones educativas y programas no escolarizados de Educación Inicial que brindan atención educativa, alimentación y salud (distritos mas pobres) | F162: Departamental | G162: Huancavelica | H162: 2019 | I162: 84.3 | J162: Porcentaje | K162: Estadística de la Calidad Educativa (ESCALE) - Ministerio de Educación (MINEDU) | L162: Censo Escolar del Ministerio de Educación - Unidad de Estadística Educativa (UEE) | M162: http://escale.minedu.gob.pe/ueetendencias20002015 | Q162: =IFERROR(IF(VLOOKUP(CONCATENATE(E162,F162,G162),ListaIndicadores!$AC$7:$AG$1887,4,FALSE)="","",VLOOKUP(CONCATENATE(E162,F162,G162),ListaIndicadores!$AC$7:$AG$1887,4,FALSE)),"") -> 87 | R162: =VLOOKUP(CONCATENATE(E162,F162,G162),ListaIndicadores!$AC$7:$AG$1887,5,FALSE) -> ¡Faltan datos! | S162: Porcentaje de instituciones educativas y programas no escolarizados de Educación Inicial que brindan atención educativa, alimentación y salud (distritos mas pobres)DepartamentalHuancavelica2019 | T162: 84.3
A163: 29399 | B163: Social | C163: 4. CUARTO DERECHO: A LA EDUCACIÓN DESDE LA PRIMERA INFANCIA | D163: AGS.18.4 | E163: Porcentaje de instituciones educativas y programas no escolarizados de Educación Inicial que brindan atención educativa, alimentación y salud (distritos mas pobres) | F163: Departamental | G163: Huancavelica | H163: 2020 | I163: 84 | J163: Porcentaje | K163: Estadística de la Calidad Educativa (ESCALE) - Ministerio de Educación (MINEDU) | L163: Censo Escolar del Ministerio de Educación - Unidad de Estadística Educativa (UEE) | M163: http://escale.minedu.gob.pe/ueetendencias20002015 | Q163: =IFERROR(IF(VLOOKUP(CONCATENATE(E163,F163,G163),ListaIndicadores!$AC$7:$AG$1887,4,FALSE)="","",VLOOKUP(CONCATENATE(E163,F163,G163),ListaIndicadores!$AC$7:$AG$1887,4,FALSE)),"") -> 87 | R163: =VLOOKUP(CONCATENATE(E163,F163,G163),ListaIndicadores!$AC$7:$AG$1887,5,FALSE) -> ¡Faltan datos! | S163: Porcentaje de instituciones educativas y programas no escolarizados de Educación Inicial que brindan atención educativa, alimentación y salud (distritos mas pobres)DepartamentalHuancavelica2020 | T163: 84
A164: 29400 | B164: Social | C164: 4. CUARTO DERECHO: A LA EDUCACIÓN DESDE LA PRIMERA INFANCIA | D164: AGS.18.4 | E164: Porcentaje de instituciones educativas y programas no escolarizados de Educación Inicial que brindan atención educativa, alimentación y salud (distritos mas pobres) | F164: Departamental | G164: Huancavelica | H164: 2021 | I164: 84.5 | J164: Porcentaje | K164: Estadística de la Calidad Educativa (ESCALE) - Ministerio de Educación (MINEDU) | L164: Censo Escolar del Ministerio de Educación - Unidad de Estadística Educativa (UEE) | M164: http://escale.minedu.gob.pe/ueetendencias20002015 | Q164: =IFERROR(IF(VLOOKUP(CONCATENATE(E164,F164,G164),ListaIndicadores!$AC$7:$AG$1887,4,FALSE)="","",VLOOKUP(CONCATENATE(E164,F164,G164),ListaIndicadores!$AC$7:$AG$1887,4,FALSE)),"") -> 87 | R164: =VLOOKUP(CONCATENATE(E164,F164,G164),ListaIndicadores!$AC$7:$AG$1887,5,FALSE) -> ¡Faltan datos! | S164: Porcentaje de instituciones educativas y programas no escolarizados de Educación Inicial que brindan atención educativa, alimentación y salud (distritos mas pobres)DepartamentalHuancavelica2021 | T164: 84.5
A165: 29403 | B165: Social | C165: 4. CUARTO DERECHO: A LA EDUCACIÓN DESDE LA PRIMERA INFANCIA | D165: AGS.18.4 | E165: Porcentaje de instituciones educativas y programas no escolarizados de Educación Inicial que brindan atención educativa, alimentación y salud (distritos mas pobres) | F165: Departamental | G165: Huánuco | H165: 2019 | I165: 83.3 | J165: Porcentaje | K165: Estadística de la Calidad Educativa (ESCALE) - Ministerio de Educación (MINEDU) | L165: Censo Escolar del Ministerio de Educación - Unidad de Estadística Educativa (UEE) | M165: http://escale.minedu.gob.pe/ueetendencias20002015 | Q165: =IFERROR(IF(VLOOKUP(CONCATENATE(E165,F165,G165),ListaIndicadores!$AC$7:$AG$1887,4,FALSE)="","",VLOOKUP(CONCATENATE(E165,F165,G165),ListaIndicadores!$AC$7:$AG$1887,4,FALSE)),"") -> 91 | R165: =VLOOKUP(CONCATENATE(E165,F165,G165),ListaIndicadores!$AC$7:$AG$1887,5,FALSE) -> ¡Faltan datos! | S165: Porcentaje de instituciones educativas y programas no escolarizados de Educación Inicial que brindan atención educativa, alimentación y salud (distritos mas pobres)DepartamentalHuánuco2019 | T165: 83.3
A166: 29404 | B166: Social | C166: 4. CUARTO DERECHO: A LA EDUCACIÓN DESDE LA PRIMERA INFANCIA | D166: AGS.18.4 | E166: Porcentaje de instituciones educativas y programas no escolarizados de Educación Inicial que brindan atención educativa, alimentación y salud (distritos mas pobres) | F166: Departamental | G166: Huánuco | H166: 2020 | I166: 94.4 | J166: Porcentaje | K166: Estadística de la Calidad Educativa (ESCALE) - Ministerio de Educación (MINEDU) | L166: Censo Escolar del Ministerio de Educación - Unidad de Estadística Educativa (UEE) | M166: http://escale.minedu.gob.pe/ueetendencias20002015 | Q166: =IFERROR(IF(VLOOKUP(CONCATENATE(E166,F166,G166),ListaIndicadores!$AC$7:$AG$1887,4,FALSE)="","",VLOOKUP(CONCATENATE(E166,F166,G166),ListaIndicadores!$AC$7:$AG$1887,4,FALSE)),"") -> 91 | R166: =VLOOKUP(CONCATENATE(E166,F166,G166),ListaIndicadores!$AC$7:$AG$1887,5,FALSE) -> ¡Faltan datos! | S166: Porcentaje de instituciones educativas y programas no escolarizados de Educación Inicial que brindan atención educativa, alimentación y salud (distritos mas pobres)DepartamentalHuánuco2020 | T166: 94.4
A167: 29405 | B167: Social | C167: 4. CUARTO DERECHO: A LA EDUCACIÓN DESDE LA PRIMERA INFANCIA | D167: AGS.18.4 | E167: Porcentaje de instituciones educativas y programas no escolarizados de Educación Inicial que brindan atención educativa, alimentación y salud (distritos mas pobres) | F167: Departamental | G167: Huánuco | H167: 2021 | I167: 91 | J167: Porcentaje | K167: Estadística de la Calidad Educativa (ESCALE) - Ministerio de Educación (MINEDU) | L167: Censo Escolar del Ministerio de Educación - Unidad de Estadística Educativa (UEE) | M167: http://escale.minedu.gob.pe/ueetendencias20002015 | Q167: =IFERROR(IF(VLOOKUP(CONCATENATE(E167,F167,G167),ListaIndicadores!$AC$7:$AG$1887,4,FALSE)="","",VLOOKUP(CONCATENATE(E167,F167,G167),ListaIndicadores!$AC$7:$AG$1887,4,FALSE)),"") -> 91 | R167: =VLOOKUP(CONCATENATE(E167,F167,G167),ListaIndicadores!$AC$7:$AG$1887,5,FALSE) -> ¡Faltan datos! | S167: Porcentaje de instituciones educativas y programas no escolarizados de Educación Inicial que brindan atención educativa, alimentación y salud (distritos mas pobres)DepartamentalHuánuco2021 | T167: 91
A168: 29408 | B168: Social | C168: 4. CUARTO DERECHO: A LA EDUCACIÓN DESDE LA PRIMERA INFANCIA | D168: AGS.18.4 | E168: Porcentaje de instituciones educativas y programas no escolarizados de Educación Inicial que brindan atención educativa, alimentación y salud (distritos mas pobres) | F168: Departamental | G168: Ica | H168: 2019 | I168: 62.2 | J168: Porcentaje | K168: Estadística de la Calidad Educativa (ESCALE) - Ministerio de Educación (MINEDU) | L168: Censo Escolar del Ministerio de Educación - Unidad de Estadística Educativa (UEE) | M168: http://escale.minedu.gob.pe/ueetendencias20002015 | Q168: =IFERROR(IF(VLOOKUP(CONCATENATE(E168,F168,G168),ListaIndicadores!$AC$7:$AG$1887,4,FALSE)="","",VLOOKUP(CONCATENATE(E168,F168,G168),ListaIndicadores!$AC$7:$AG$1887,4,FALSE)),"") -> 19 | R168: =VLOOKUP(CONCATENATE(E168,F168,G168),ListaIndicadores!$AC$7:$AG$1887,5,FALSE) -> ¡Faltan datos! | S168: Porcentaje de instituciones educativas y programas no escolarizados de Educación Inicial que brindan atención educativa, alimentación y salud (distritos mas pobres)DepartamentalIca2019 | T168: 62.2
A169: 29409 | B169: Social | C169: 4. CUARTO DERECHO: A LA EDUCACIÓN DESDE LA PRIMERA INFANCIA | D169: AGS.18.4 | E169: Porcentaje de instituciones educativas y programas no escolarizados de Educación Inicial que brindan atención educativa, alimentación y salud (distritos mas pobres) | F169: Departamental | G169: Ica | H169: 2020 | I169: a | J169: Porcentaje | K169: Estadística de la Calidad Educativa (ESCALE) - Ministerio de Educación (MINEDU) | L169: Censo Escolar del Ministerio de Educación - Unidad de Estadística Educativa (UEE) | M169: http://escale.minedu.gob.pe/ueetendencias20002015 | Q169: =IFERROR(IF(VLOOKUP(CONCATENATE(E169,F169,G169),ListaIndicadores!$AC$7:$AG$1887,4,FALSE)="","",VLOOKUP(CONCATENATE(E169,F169,G169),ListaIndicadores!$AC$7:$AG$1887,4,FALSE)),"") -> 19 | R169: =VLOOKUP(CONCATENATE(E169,F169,G169),ListaIndicadores!$AC$7:$AG$1887,5,FALSE) -> ¡Faltan datos! | S169: Porcentaje de instituciones educativas y programas no escolarizados de Educación Inicial que brindan atención educativa, alimentación y salud (distritos mas pobres)DepartamentalIca2020 | T169: a
A170: 29410 | B170: Social | C170: 4. CUARTO DERECHO: A LA EDUCACIÓN DESDE LA PRIMERA INFANCIA | D170: AGS.18.4 | E170: Porcentaje de instituciones educativas y programas no escolarizados de Educación Inicial que brindan atención educativa, alimentación y salud (distritos mas pobres) | F170: Departamental | G170: Ica | H170: 2021 | I170: a | J170: Porcentaje | K170: Estadística de la Calidad Educativa (ESCALE) - Ministerio de Educación (MINEDU) | L170: Censo Escolar del Ministerio de Educación - Unidad de Estadística Educativa (UEE) | M170: http://escale.minedu.gob.pe/ueetendencias20002015 | Q170: =IFERROR(IF(VLOOKUP(CONCATENATE(E170,F170,G170),ListaIndicadores!$AC$7:$AG$1887,4,FALSE)="","",VLOOKUP(CONCATENATE(E170,F170,G170),ListaIndicadores!$AC$7:$AG$1887,4,FALSE)),"") -> 19 | R170: =VLOOKUP(CONCATENATE(E170,F170,G170),ListaIndicadores!$AC$7:$AG$1887,5,FALSE) -> ¡Faltan datos! | S170: Porcentaje de instituciones educativas y programas no escolarizados de Educación Inicial que brindan atención educativa, alimentación y salud (distritos mas pobres)DepartamentalIca2021 | T170: a
A171: 29413 | B171: Social | C171: 4. CUARTO DERECHO: A LA EDUCACIÓN DESDE LA PRIMERA INFANCIA | D171: AGS.18.4 | E171: Porcentaje de instituciones educativas y programas no escolarizados de Educación Inicial que brindan atención educativa, alimentación y salud (distritos mas pobres) | F171: Departamental | G171: Junín | H171: 2019 | I171: 78.3 | J171: Porcentaje | K171: Estadística de la Calidad Educativa (ESCALE) - Ministerio de Educación (MINEDU) | L171: Censo Escolar del Ministerio de Educación - Unidad de Estadística Educativa (UEE) | M171: http://escale.minedu.gob.pe/ueetendencias20002015 | Q171: =IFERROR(IF(VLOOKUP(CONCATENATE(E171,F171,G171),ListaIndicadores!$AC$7:$AG$1887,4,FALSE)="","",VLOOKUP(CONCATENATE(E171,F171,G171),ListaIndicadores!$AC$7:$AG$1887,4,FALSE)),"") -> 96 | R171: =VLOOKUP(CONCATENATE(E171,F171,G171),ListaIndicadores!$AC$7:$AG$1887,5,FALSE) -> ¡Faltan datos! | S171: Porcentaje de instituciones educativas y programas no escolarizados de Educación Inicial que brindan atención educativa, alimentación y salud (distritos mas pobres)DepartamentalJunín2019 | T171: 78.3
A172: 29414 | B172: Social | C172: 4. CUARTO DERECHO: A LA EDUCACIÓN DESDE LA PRIMERA INFANCIA | D172: AGS.18.4 | E172: Porcentaje de instituciones educativas y programas no escolarizados de Educación Inicial que brindan atención educativa, alimentación y salud (distritos mas pobres) | F172: Departamental | G172: Junín | H172: 2020 | I172: 92.4 | J172: Porcentaje | K172: Estadística de la Calidad Educativa (ESCALE) - Ministerio de Educación (MINEDU) | L172: Censo Escolar del Ministerio de Educación - Unidad de Estadística Educativa (UEE) | M172: http://escale.minedu.gob.pe/ueetendencias20002015 | Q172: =IFERROR(IF(VLOOKUP(CONCATENATE(E172,F172,G172),ListaIndicadores!$AC$7:$AG$1887,4,FALSE)="","",VLOOKUP(CONCATENATE(E172,F172,G172),ListaIndicadores!$AC$7:$AG$1887,4,FALSE)),"") -> 96 | R172: =VLOOKUP(CONCATENATE(E172,F172,G172),ListaIndicadores!$AC$7:$AG$1887,5,FALSE) -> ¡Faltan datos! | S172: Porcentaje de instituciones educativas y programas no escolarizados de Educación Inicial que brindan atención educativa, alimentación y salud (distritos mas pobres)DepartamentalJunín2020 | T172: 92.4
A173: 29415 | B173: Social | C173: 4. CUARTO DERECHO: A LA EDUCACIÓN DESDE LA PRIMERA INFANCIA | D173: AGS.18.4 | E173: Porcentaje de instituciones educativas y programas no escolarizados de Educación Inicial que brindan atención educativa, alimentación y salud (distritos mas pobres) | F173: Departamental | G173: Junín | H173: 2021 | I173: 92.8 | J173: Porcentaje | K173: Estadística de la Calidad Educativa (ESCALE) - Ministerio de Educación (MINEDU) | L173: Censo Escolar del Ministerio de Educación - Unidad de Estadística Educativa (UEE) | M173: http://escale.minedu.gob.pe/ueetendencias20002015 | Q173: =IFERROR(IF(VLOOKUP(CONCATENATE(E173,F173,G173),ListaIndicadores!$AC$7:$AG$1887,4,FALSE)="","",VLOOKUP(CONCATENATE(E173,F173,G173),ListaIndicadores!$AC$7:$AG$1887,4,FALSE)),"") -> 96 | R173: =VLOOKUP(CONCATENATE(E173,F173,G173),ListaIndicadores!$AC$7:$AG$1887,5,FALSE) -> ¡Faltan datos! | S173: Porcentaje de instituciones educativas y programas no escolarizados de Educación Inicial que brindan atención educativa, alimentación y salud (distritos mas pobres)DepartamentalJunín2021 | T173: 92.8
A174: 29418 | B174: Social | C174: 4. CUARTO DERECHO: A LA EDUCACIÓN DESDE LA PRIMERA INFANCIA | D174: AGS.18.4 | E174: Porcentaje de instituciones educativas y programas no escolarizados de Educación Inicial que brindan atención educativa, alimentación y salud (distritos mas pobres) | F174: Departamental | G174: La Libertad | H174: 2019 | I174: 94.1 | J174: Porcentaje | K174: Estadística de la Calidad Educativa (ESCALE) - Ministerio de Educación (MINEDU) | L174: Censo Escolar del Ministerio de Educación - Unidad de Estadística Educativa (UEE) | M174: http://escale.minedu.gob.pe/ueetendencias20002015 | Q174: =IFERROR(IF(VLOOKUP(CONCATENATE(E174,F174,G174),ListaIndicadores!$AC$7:$AG$1887,4,FALSE)="","",VLOOKUP(CONCATENATE(E174,F174,G174),ListaIndicadores!$AC$7:$AG$1887,4,FALSE)),"") -> 101 | R174: =VLOOKUP(CONCATENATE(E174,F174,G174),ListaIndicadores!$AC$7:$AG$1887,5,FALSE) -> ¡Faltan datos! | S174: Porcentaje de instituciones educativas y programas no escolarizados de Educación Inicial que brindan atención educativa, alimentación y salud (distritos mas pobres)DepartamentalLa Libertad2019 | T174: 94.1
A175: 29419 | B175: Social | C175: 4. CUARTO DERECHO: A LA EDUCACIÓN DESDE LA PRIMERA INFANCIA | D175: AGS.18.4 | E175: Porcentaje de instituciones educativas y programas no escolarizados de Educación Inicial que brindan atención educativa, alimentación y salud (distritos mas pobres) | F175: Departamental | G175: La Libertad | H175: 2020 | I175: 96.3 | J175: Porcentaje | K175: Estadística de la Calidad Educativa (ESCALE) - Ministerio de Educación (MINEDU) | L175: Censo Escolar del Ministerio de Educación - Unidad de Estadística Educativa (UEE) | M175: http://escale.minedu.gob.pe/ueetendencias20002015 | Q175: =IFERROR(IF(VLOOKUP(CONCATENATE(E175,F175,G175),ListaIndicadores!$AC$7:$AG$1887,4,FALSE)="","",VLOOKUP(CONCATENATE(E175,F175,G175),ListaIndicadores!$AC$7:$AG$1887,4,FALSE)),"") -> 101 | R175: =VLOOKUP(CONCATENATE(E175,F175,G175),ListaIndicadores!$AC$7:$AG$1887,5,FALSE) -> ¡Faltan datos! | S175: Porcentaje de instituciones educativas y programas no escolarizados de Educación Inicial que brindan atención educativa, alimentación y salud (distritos mas pobres)DepartamentalLa Libertad2020 | T175: 96.3
A176: 29420 | B176: Social | C176: 4. CUARTO DERECHO: A LA EDUCACIÓN DESDE LA PRIMERA INFANCIA | D176: AGS.18.4 | E176: Porcentaje de instituciones educativas y programas no escolarizados de Educación Inicial que brindan atención educativa, alimentación y salud (distritos mas pobres) | F176: Departamental | G176: La Libertad | H176: 2021 | I176: 96 | J176: Porcentaje | K176: Estadística de la Calidad Educativa (ESCALE) - Ministerio de Educación (MINEDU) | L176: Censo Escolar del Ministerio de Educación - Unidad de Estadística Educativa (UEE) | M176: http://escale.minedu.gob.pe/ueetendencias20002015 | Q176: =IFERROR(IF(VLOOKUP(CONCATENATE(E176,F176,G176),ListaIndicadores!$AC$7:$AG$1887,4,FALSE)="","",VLOOKUP(CONCATENATE(E176,F176,G176),ListaIndicadores!$AC$7:$AG$1887,4,FALSE)),"") -> 101 | R176: =VLOOKUP(CONCATENATE(E176,F176,G176),ListaIndicadores!$AC$7:$AG$1887,5,FALSE) -> ¡Faltan datos! | S176: Porcentaje de instituciones educativas y programas no escolarizados de Educación Inicial que brindan atención educativa, alimentación y salud (distritos mas pobres)DepartamentalLa Libertad2021 | T176: 96
A177: 29423 | B177: Social | C177: 4. CUARTO DERECHO: A LA EDUCACIÓN DESDE LA PRIMERA INFANCIA | D177: AGS.18.4 | E177: Porcentaje de instituciones educativas y programas no escolarizados de Educación Inicial que brindan atención educativa, alimentación y salud (distritos mas pobres) | F177: Departamental | G177: Lambayeque | H177: 2019 | I177: 82.9 | J177: Porcentaje | K177: Estadística de la Calidad Educativa (ESCALE) - Ministerio de Educación (MINEDU) | L177: Censo Escolar del Ministerio de Educación - Unidad de Estadística Educativa (UEE) | M177: http://escale.minedu.gob.pe/ueetendencias20002015 | Q177: =IFERROR(IF(VLOOKUP(CONCATENATE(E177,F177,G177),ListaIndicadores!$AC$7:$AG$1887,4,FALSE)="","",VLOOKUP(CONCATENATE(E177,F177,G177),ListaIndicadores!$AC$7:$AG$1887,4,FALSE)),"") -> 92 | R177: =VLOOKUP(CONCATENATE(E177,F177,G177),ListaIndicadores!$AC$7:$AG$1887,5,FALSE) -> ¡Faltan datos! | S177: Porcentaje de instituciones educativas y programas no escolarizados de Educación Inicial que brindan atención educativa, alimentación y salud (distritos mas pobres)DepartamentalLambayeque2019 | T177: 82.9
A178: 29424 | B178: Social | C178: 4. CUARTO DERECHO: A LA EDUCACIÓN DESDE LA PRIMERA INFANCIA | D178: AGS.18.4 | E178: Porcentaje de instituciones educativas y programas no escolarizados de Educación Inicial que brindan atención educativa, alimentación y salud (distritos mas pobres) | F178: Departamental | G178: Lambayeque | H178: 2020 | I178: 80.6 | J178: Porcentaje | K178: Estadística de la Calidad Educativa (ESCALE) - Ministerio de Educación (MINEDU) | L178: Censo Escolar del Ministerio de Educación - Unidad de Estadística Educativa (UEE) | M178: http://escale.minedu.gob.pe/ueetendencias20002015 | Q178: =IFERROR(IF(VLOOKUP(CONCATENATE(E178,F178,G178),ListaIndicadores!$AC$7:$AG$1887,4,FALSE)="","",VLOOKUP(CONCATENATE(E178,F178,G178),ListaIndicadores!$AC$7:$AG$1887,4,FALSE)),"") -> 92 | R178: =VLOOKUP(CONCATENATE(E178,F178,G178),ListaIndicadores!$AC$7:$AG$1887,5,FALSE) -> ¡Faltan datos! | S178: Porcentaje de instituciones educativas y programas no escolarizados de Educación Inicial que brindan atención educativa, alimentación y salud (distritos mas pobres)DepartamentalLambayeque2020 | T178: 80.6
A179: 29425 | B179: Social | C179: 4. CUARTO DERECHO: A LA EDUCACIÓN DESDE LA PRIMERA INFANCIA | D179: AGS.18.4 | E179: Porcentaje de instituciones educativas y programas no escolarizados de Educación Inicial que brindan atención educativa, alimentación y salud (distritos mas pobres) | F179: Departamental | G179: Lambayeque | H179: 2021 | I179: 87.6 | J179: Porcentaje | K179: Estadística de la Calidad Educativa (ESCALE) - Ministerio de Educación (MINEDU) | L179: Censo Escolar del Ministerio de Educación - Unidad de Estadística Educativa (UEE) | M179: http://escale.minedu.gob.pe/ueetendencias20002015 | Q179: =IFERROR(IF(VLOOKUP(CONCATENATE(E179,F179,G179),ListaIndicadores!$AC$7:$AG$1887,4,FALSE)="","",VLOOKUP(CONCATENATE(E179,F179,G179),ListaIndicadores!$AC$7:$AG$1887,4,FALSE)),"") -> 92 | R179: =VLOOKUP(CONCATENATE(E179,F179,G179),ListaIndicadores!$AC$7:$AG$1887,5,FALSE) -> ¡Faltan datos! | S179: Porcentaje de instituciones educativas y programas no escolarizados de Educación Inicial que brindan atención educativa, alimentación y salud (distritos mas pobres)DepartamentalLambayeque2021 | T179: 87.6
A180: 29428 | B180: Social | C180: 4. CUARTO DERECHO: A LA EDUCACIÓN DESDE LA PRIMERA INFANCIA | D180: AGS.18.4 | E180: Porcentaje de instituciones educativas y programas no escolarizados de Educación Inicial que brindan atención educativa, alimentación y salud (distritos mas pobres) | F180: Departamental | G180: Lima Metropolitana | H180: 2019 | I180: 45.7 | J180: Porcentaje | K180: Estadística de la Calidad Educativa (ESCALE) - Ministerio de Educación (MINEDU) | L180: Censo Escolar del Ministerio de Educación - Unidad de Estadística Educativa (UEE) | M180: http://escale.minedu.gob.pe/ueetendencias20002015 | Q180: =IFERROR(IF(VLOOKUP(CONCATENATE(E180,F180,G180),ListaIndicadores!$AC$7:$AG$1887,4,FALSE)="","",VLOOKUP(CONCATENATE(E180,F180,G180),ListaIndicadores!$AC$7:$AG$1887,4,FALSE)),"") -> 26 | R180: =VLOOKUP(CONCATENATE(E180,F180,G180),ListaIndicadores!$AC$7:$AG$1887,5,FALSE) -> ¡Faltan datos! | S180: Porcentaje de instituciones educativas y programas no escolarizados de Educación Inicial que brindan atención educativa, alimentación y salud (distritos mas pobres)DepartamentalLima Metropolitana2019 | T180: 45.7
A181: 29429 | B181: Social | C181: 4. CUARTO DERECHO: A LA EDUCACIÓN DESDE LA PRIMERA INFANCIA | D181: AGS.18.4 | E181: Porcentaje de instituciones educativas y programas no escolarizados de Educación Inicial que brindan atención educativa, alimentación y salud (distritos mas pobres) | F181: Departamental | G181: Lima Metropolitana | H181: 2020 | I181: a | J181: Porcentaje | K181: Estadística de la Calidad Educativa (ESCALE) - Ministerio de Educación (MINEDU) | L181: Censo Escolar del Ministerio de Educación - Unidad de Estadística Educativa (UEE) | M181: http://escale.minedu.gob.pe/ueetendencias20002015 | Q181: =IFERROR(IF(VLOOKUP(CONCATENATE(E181,F181,G181),ListaIndicadores!$AC$7:$AG$1887,4,FALSE)="","",VLOOKUP(CONCATENATE(E181,F181,G181),ListaIndicadores!$AC$7:$AG$1887,4,FALSE)),"") -> 26 | R181: =VLOOKUP(CONCATENATE(E181,F181,G181),ListaIndicadores!$AC$7:$AG$1887,5,FALSE) -> ¡Faltan datos! | S181: Porcentaje de instituciones educativas y programas no escolarizados de Educación Inicial que brindan atención educativa, alimentación y salud (distritos mas pobres)DepartamentalLima Metropolitana2020 | T181: a
A182: 29430 | B182: Social | C182: 4. CUARTO DERECHO: A LA EDUCACIÓN DESDE LA PRIMERA INFANCIA | D182: AGS.18.4 | E182: Porcentaje de instituciones educativas y programas no escolarizados de Educación Inicial que brindan atención educativa, alimentación y salud (distritos mas pobres) | F182: Departamental | G182: Lima Metropolitana | H182: 2021 | I182: a | J182: Porcentaje | K182: Estadística de la Calidad Educativa (ESCALE) - Ministerio de Educación (MINEDU) | L182: Censo Escolar del Ministerio de Educación - Unidad de Estadística Educativa (UEE) | M182: http://escale.minedu.gob.pe/ueetendencias20002015 | Q182: =IFERROR(IF(VLOOKUP(CONCATENATE(E182,F182,G182),ListaIndicadores!$AC$7:$AG$1887,4,FALSE)="","",VLOOKUP(CONCATENATE(E182,F182,G182),ListaIndicadores!$AC$7:$AG$1887,4,FALSE)),"") -> 26 | R182: =VLOOKUP(CONCATENATE(E182,F182,G182),ListaIndicadores!$AC$7:$AG$1887,5,FALSE) -> ¡Faltan datos! | S182: Porcentaje de instituciones educativas y programas no escolarizados de Educación Inicial que brindan atención educativa, alimentación y salud (distritos mas pobres)DepartamentalLima Metropolitana2021 | T182: a
A183: 29433 | B183: Social | C183: 4. CUARTO DERECHO: A LA EDUCACIÓN DESDE LA PRIMERA INFANCIA | D183: AGS.18.4 | E183: Porcentaje de instituciones educativas y programas no escolarizados de Educación Inicial que brindan atención educativa, alimentación y salud (distritos mas pobres) | F183: Departamental | G183: Loreto | H183: 2019 | I183: 83.9 | J183: Porcentaje | K183: Estadística de la Calidad Educativa (ESCALE) - Ministerio de Educación (MINEDU) | L183: Censo Escolar del Ministerio de Educación - Unidad de Estadística Educativa (UEE) | M183: http://escale.minedu.gob.pe/ueetendencias20002015 | Q183: =IFERROR(IF(VLOOKUP(CONCATENATE(E183,F183,G183),ListaIndicadores!$AC$7:$AG$1887,4,FALSE)="","",VLOOKUP(CONCATENATE(E183,F183,G183),ListaIndicadores!$AC$7:$AG$1887,4,FALSE)),"") -> 115 | R183: =VLOOKUP(CONCATENATE(E183,F183,G183),ListaIndicadores!$AC$7:$AG$1887,5,FALSE) -> ¡Faltan datos! | S183: Porcentaje de instituciones educativas y programas no escolarizados de Educación Inicial que brindan atención educativa, alimentación y salud (distritos mas pobres)DepartamentalLoreto2019 | T183: 83.9
A184: 29434 | B184: Social | C184: 4. CUARTO DERECHO: A LA EDUCACIÓN DESDE LA PRIMERA INFANCIA | D184: AGS.18.4 | E184: Porcentaje de instituciones educativas y programas no escolarizados de Educación Inicial que brindan atención educativa, alimentación y salud (distritos mas pobres) | F184: Departamental | G184: Loreto | H184: 2020 | I184: 92.5 | J184: Porcentaje | K184: Estadística de la Calidad Educativa (ESCALE) - Ministerio de Educación (MINEDU) | L184: Censo Escolar del Ministerio de Educación - Unidad de Estadística Educativa (UEE) | M184: http://escale.minedu.gob.pe/ueetendencias20002015 | Q184: =IFERROR(IF(VLOOKUP(CONCATENATE(E184,F184,G184),ListaIndicadores!$AC$7:$AG$1887,4,FALSE)="","",VLOOKUP(CONCATENATE(E184,F184,G184),ListaIndicadores!$AC$7:$AG$1887,4,FALSE)),"") -> 115 | R184: =VLOOKUP(CONCATENATE(E184,F184,G184),ListaIndicadores!$AC$7:$AG$1887,5,FALSE) -> ¡Faltan datos! | S184: Porcentaje de instituciones educativas y programas no escolarizados de Educación Inicial que brindan atención educativa, alimentación y salud (distritos mas pobres)DepartamentalLoreto2020 | T184: 92.5
A185: 29435 | B185: Social | C185: 4. CUARTO DERECHO: A LA EDUCACIÓN DESDE LA PRIMERA INFANCIA | D185: AGS.18.4 | E185: Porcentaje de instituciones educativas y programas no escolarizados de Educación Inicial que brindan atención educativa, alimentación y salud (distritos mas pobres) | F185: Departamental | G185: Loreto | H185: 2021 | I185: 91.4 | J185: Porcentaje | K185: Estadística de la Calidad Educativa (ESCALE) - Ministerio de Educación (MINEDU) | L185: Censo Escolar del Ministerio de Educación - Unidad de Estadística Educativa (UEE) | M185: http://escale.minedu.gob.pe/ueetendencias20002015 | Q185: =IFERROR(IF(VLOOKUP(CONCATENATE(E185,F185,G185),ListaIndicadores!$AC$7:$AG$1887,4,FALSE)="","",VLOOKUP(CONCATENATE(E185,F185,G185),ListaIndicadores!$AC$7:$AG$1887,4,FALSE)),"") -> 115 | R185: =VLOOKUP(CONCATENATE(E185,F185,G185),ListaIndicadores!$AC$7:$AG$1887,5,FALSE) -> ¡Faltan datos! | S185: Porcentaje de instituciones educativas y programas no escolarizados de Educación Inicial que brindan atención educativa, alimentación y salud (distritos mas pobres)DepartamentalLoreto2021 | T185: 91.4
A186: 29438 | B186: Social | C186: 4. CUARTO DERECHO: A LA EDUCACIÓN DESDE LA PRIMERA INFANCIA | D186: AGS.18.4 | E186: Porcentaje de instituciones educativas y programas no escolarizados de Educación Inicial que brindan atención educativa, alimentación y salud (distritos mas pobres) | F186: Departamental | G186: Madre de Dios | H186: 2019 | I186: 78.5 | J186: Porcentaje | K186: Estadística de la Calidad Educativa (ESCALE) - Ministerio de Educación (MINEDU) | L186: Censo Escolar del Ministerio de Educación - Unidad de Estadística Educativa (UEE) | M186: http://escale.minedu.gob.pe/ueetendencias20002015 | Q186: =IFERROR(IF(VLOOKUP(CONCATENATE(E186,F186,G186),ListaIndicadores!$AC$7:$AG$1887,4,FALSE)="","",VLOOKUP(CONCATENATE(E186,F186,G186),ListaIndicadores!$AC$7:$AG$1887,4,FALSE)),"") -> 98 | R186: =VLOOKUP(CONCATENATE(E186,F186,G186),ListaIndicadores!$AC$7:$AG$1887,5,FALSE) -> ¡Faltan datos! | S186: Porcentaje de instituciones educativas y programas no escolarizados de Educación Inicial que brindan atención educativa, alimentación y salud (distritos mas pobres)DepartamentalMadre de Dios2019 | T186: 78.5
A187: 29439 | B187: Social | C187: 4. CUARTO DERECHO: A LA EDUCACIÓN DESDE LA PRIMERA INFANCIA | D187: AGS.18.4 | E187: Porcentaje de instituciones educativas y programas no escolarizados de Educación Inicial que brindan atención educativa, alimentación y salud (distritos mas pobres) | F187: Departamental | G187: Madre de Dios | H187: 2020 | I187: a | J187: Porcentaje | K187: Estadística de la Calidad Educativa (ESCALE) - Ministerio de Educación (MINEDU) | L187: Censo Escolar del Ministerio de Educación - Unidad de Estadística Educativa (UEE) | M187: http://escale.minedu.gob.pe/ueetendencias20002015 | Q187: =IFERROR(IF(VLOOKUP(CONCATENATE(E187,F187,G187),ListaIndicadores!$AC$7:$AG$1887,4,FALSE)="","",VLOOKUP(CONCATENATE(E187,F187,G187),ListaIndicadores!$AC$7:$AG$1887,4,FALSE)),"") -> 98 | R187: =VLOOKUP(CONCATENATE(E187,F187,G187),ListaIndicadores!$AC$7:$AG$1887,5,FALSE) -> ¡Faltan datos! | S187: Porcentaje de instituciones educativas y programas no escolarizados de Educación Inicial que brindan atención educativa, alimentación y salud (distritos mas pobres)DepartamentalMadre de Dios2020 | T187: a
A188: 29440 | B188: Social | C188: 4. CUARTO DERECHO: A LA EDUCACIÓN DESDE LA PRIMERA INFANCIA | D188: AGS.18.4 | E188: Porcentaje de instituciones educativas y programas no escolarizados de Educación Inicial que brindan atención educativa, alimentación y salud (distritos mas pobres) | F188: Departamental | G188: Madre de Dios | H188: 2021 | I188: a | J188: Porcentaje | K188: Estadística de la Calidad Educativa (ESCALE) - Ministerio de Educación (MINEDU) | L188: Censo Escolar del Ministerio de Educación - Unidad de Estadística Educativa (UEE) | M188: http://escale.minedu.gob.pe/ueetendencias20002015 | Q188: =IFERROR(IF(VLOOKUP(CONCATENATE(E188,F188,G188),ListaIndicadores!$AC$7:$AG$1887,4,FALSE)="","",VLOOKUP(CONCATENATE(E188,F188,G188),ListaIndicadores!$AC$7:$AG$1887,4,FALSE)),"") -> 98 | R188: =VLOOKUP(CONCATENATE(E188,F188,G188),ListaIndicadores!$AC$7:$AG$1887,5,FALSE) -> ¡Faltan datos! | S188: Porcentaje de instituciones educativas y programas no escolarizados de Educación Inicial que brindan atención educativa, alimentación y salud (distritos mas pobres)DepartamentalMadre de Dios2021 | T188: a
A189: 29443 | B189: Social | C189: 4. CUARTO DERECHO: A LA EDUCACIÓN DESDE LA PRIMERA INFANCIA | D189: AGS.18.4 | E189: Porcentaje de instituciones educativas y programas no escolarizados de Educación Inicial que brindan atención educativa, alimentación y salud (distritos mas pobres) | F189: Departamental | G189: Moquegua | H189: 2019 | I189: 53.4 | J189: Porcentaje | K189: Estadística de la Calidad Educativa (ESCALE) - Ministerio de Educación (MINEDU) | L189: Censo Escolar del Ministerio de Educación - Unidad de Estadística Educativa (UEE) | M189: http://escale.minedu.gob.pe/ueetendencias20002015 | Q189: =IFERROR(IF(VLOOKUP(CONCATENATE(E189,F189,G189),ListaIndicadores!$AC$7:$AG$1887,4,FALSE)="","",VLOOKUP(CONCATENATE(E189,F189,G189),ListaIndicadores!$AC$7:$AG$1887,4,FALSE)),"") -> 62 | R189: =VLOOKUP(CONCATENATE(E189,F189,G189),ListaIndicadores!$AC$7:$AG$1887,5,FALSE) -> ¡Faltan datos! | S189: Porcentaje de instituciones educativas y programas no escolarizados de Educación Inicial que brindan atención educativa, alimentación y salud (distritos mas pobres)DepartamentalMoquegua2019 | T189: 53.4
A190: 29444 | B190: Social | C190: 4. CUARTO DERECHO: A LA EDUCACIÓN DESDE LA PRIMERA INFANCIA | D190: AGS.18.4 | E190: Porcentaje de instituciones educativas y programas no escolarizados de Educación Inicial que brindan atención educativa, alimentación y salud (distritos mas pobres) | F190: Departamental | G190: Moquegua | H190: 2020 | I190: 60 | J190: Porcentaje | K190: Estadística de la Calidad Educativa (ESCALE) - Ministerio de Educación (MINEDU) | L190: Censo Escolar del Ministerio de Educación - Unidad de Estadística Educativa (UEE) | M190: http://escale.minedu.gob.pe/ueetendencias20002015 | Q190: =IFERROR(IF(VLOOKUP(CONCATENATE(E190,F190,G190),ListaIndicadores!$AC$7:$AG$1887,4,FALSE)="","",VLOOKUP(CONCATENATE(E190,F190,G190),ListaIndicadores!$AC$7:$AG$1887,4,FALSE)),"") -> 62 | R190: =VLOOKUP(CONCATENATE(E190,F190,G190),ListaIndicadores!$AC$7:$AG$1887,5,FALSE) -> ¡Faltan datos! | S190: Porcentaje de instituciones educativas y programas no escolarizados de Educación Inicial que brindan atención educativa, alimentación y salud (distritos mas pobres)DepartamentalMoquegua2020 | T190: 60
A191: 29445 | B191: Social | C191: 4. CUARTO DERECHO: A LA EDUCACIÓN DESDE LA PRIMERA INFANCIA | D191: AGS.18.4 | E191: Porcentaje de instituciones educativas y programas no escolarizados de Educación Inicial que brindan atención educativa, alimentación y salud (distritos mas pobres) | F191: Departamental | G191: Moquegua | H191: 2021 | I191: 70 | J191: Porcentaje | K191: Estadística de la Calidad Educativa (ESCALE) - Ministerio de Educación (MINEDU) | L191: Censo Escolar del Ministerio de Educación - Unidad de Estadística Educativa (UEE) | M191: http://escale.minedu.gob.pe/ueetendencias20002015 | Q191: =IFERROR(IF(VLOOKUP(CONCATENATE(E191,F191,G191),ListaIndicadores!$AC$7:$AG$1887,4,FALSE)="","",VLOOKUP(CONCATENATE(E191,F191,G191),ListaIndicadores!$AC$7:$AG$1887,4,FALSE)),"") -> 62 | R191: =VLOOKUP(CONCATENATE(E191,F191,G191),ListaIndicadores!$AC$7:$AG$1887,5,FALSE) -> ¡Faltan datos! | S191: Porcentaje de instituciones educativas y programas no escolarizados de Educación Inicial que brindan atención educativa, alimentación y salud (distritos mas pobres)DepartamentalMoquegua2021 | T191: 70
A192: 29448 | B192: Social | C192: 4. CUARTO DERECHO: A LA EDUCACIÓN DESDE LA PRIMERA INFANCIA | D192: AGS.18.4 | E192: Porcentaje de instituciones educativas y programas no escolarizados de Educación Inicial que brindan atención educativa, alimentación y salud (distritos mas pobres) | F192: Departamental | G192: Pasco | H192: 2019 | I192: 79.1 | J192: Porcentaje | K192: Estadística de la Calidad Educativa (ESCALE) - Ministerio de Educación (MINEDU) | L192: Censo Escolar del Ministerio de Educación - Unidad de Estadística Educativa (UEE) | M192: http://escale.minedu.gob.pe/ueetendencias20002015 | Q192: =IFERROR(IF(VLOOKUP(CONCATENATE(E192,F192,G192),ListaIndicadores!$AC$7:$AG$1887,4,FALSE)="","",VLOOKUP(CONCATENATE(E192,F192,G192),ListaIndicadores!$AC$7:$AG$1887,4,FALSE)),"") -> 112 | R192: =VLOOKUP(CONCATENATE(E192,F192,G192),ListaIndicadores!$AC$7:$AG$1887,5,FALSE) -> ¡Faltan datos! | S192: Porcentaje de instituciones educativas y programas no escolarizados de Educación Inicial que brindan atención educativa, alimentación y salud (distritos mas pobres)DepartamentalPasco2019 | T192: 79.1
A193: 29449 | B193: Social | C193: 4. CUARTO DERECHO: A LA EDUCACIÓN DESDE LA PRIMERA INFANCIA | D193: AGS.18.4 | E193: Porcentaje de instituciones educativas y programas no escolarizados de Educación Inicial que brindan atención educativa, alimentación y salud (distritos mas pobres) | F193: Departamental | G193: Pasco | H193: 2020 | I193: 83.3 | J193: Porcentaje | K193: Estadística de la Calidad Educativa (ESCALE) - Ministerio de Educación (MINEDU) | L193: Censo Escolar del Ministerio de Educación - Unidad de Estadística Educativa (UEE) | M193: http://escale.minedu.gob.pe/ueetendencias20002015 | Q193: =IFERROR(IF(VLOOKUP(CONCATENATE(E193,F193,G193),ListaIndicadores!$AC$7:$AG$1887,4,FALSE)="","",VLOOKUP(CONCATENATE(E193,F193,G193),ListaIndicadores!$AC$7:$AG$1887,4,FALSE)),"") -> 112 | R193: =VLOOKUP(CONCATENATE(E193,F193,G193),ListaIndicadores!$AC$7:$AG$1887,5,FALSE) -> ¡Faltan datos! | S193: Porcentaje de instituciones educativas y programas no escolarizados de Educación Inicial que brindan atención educativa, alimentación y salud (distritos mas pobres)DepartamentalPasco2020 | T193: 83.3
A194: 29450 | B194: Social | C194: 4. CUARTO DERECHO: A LA EDUCACIÓN DESDE LA PRIMERA INFANCIA | D194: AGS.18.4 | E194: Porcentaje de instituciones educativas y programas no escolarizados de Educación Inicial que brindan atención educativa, alimentación y salud (distritos mas pobres) | F194: Departamental | G194: Pasco | H194: 2021 | I194: 82.2 | J194: Porcentaje | K194: Estadística de la Calidad Educativa (ESCALE) - Ministerio de Educación (MINEDU) | L194: Censo Escolar del Ministerio de Educación - Unidad de Estadística Educativa (UEE) | M194: http://escale.minedu.gob.pe/ueetendencias20002015 | Q194: =IFERROR(IF(VLOOKUP(CONCATENATE(E194,F194,G194),ListaIndicadores!$AC$7:$AG$1887,4,FALSE)="","",VLOOKUP(CONCATENATE(E194,F194,G194),ListaIndicadores!$AC$7:$AG$1887,4,FALSE)),"") -> 112 | R194: =VLOOKUP(CONCATENATE(E194,F194,G194),ListaIndicadores!$AC$7:$AG$1887,5,FALSE) -> ¡Faltan datos! | S194: Porcentaje de instituciones educativas y programas no escolarizados de Educación Inicial que brindan atención educativa, alimentación y salud (distritos mas pobres)DepartamentalPasco2021 | T194: 82.2
A195: 29453 | B195: Social | C195: 4. CUARTO DERECHO: A LA EDUCACIÓN DESDE LA PRIMERA INFANCIA | D195: AGS.18.4 | E195: Porcentaje de instituciones educativas y programas no escolarizados de Educación Inicial que brindan atención educativa, alimentación y salud (distritos mas pobres) | F195: Departamental | G195: Piura | H195: 2019 | I195: 84 | J195: Porcentaje | K195: Estadística de la Calidad Educativa (ESCALE) - Ministerio de Educación (MINEDU) | L195: Censo Escolar del Ministerio de Educación - Unidad de Estadística Educativa (UEE) | M195: http://escale.minedu.gob.pe/ueetendencias20002015 | Q195: =IFERROR(IF(VLOOKUP(CONCATENATE(E195,F195,G195),ListaIndicadores!$AC$7:$AG$1887,4,FALSE)="","",VLOOKUP(CONCATENATE(E195,F195,G195),ListaIndicadores!$AC$7:$AG$1887,4,FALSE)),"") -> 109 | R195: =VLOOKUP(CONCATENATE(E195,F195,G195),ListaIndicadores!$AC$7:$AG$1887,5,FALSE) -> ¡Faltan datos! | S195: =CONCATENATE(E195,F195,G195,H195) -> Porcentaje de instituciones educativas y programas no escolarizados de Educación Inicial que brindan atención educativa, alimentación y salud (distritos mas pobres)DepartamentalPiura2019 | T195: =I195 -> 84
A196: 29454 | B196: Social | C196: 4. CUARTO DERECHO: A LA EDUCACIÓN DESDE LA PRIMERA INFANCIA | D196: AGS.18.4 | E196: Porcentaje de instituciones educativas y programas no escolarizados de Educación Inicial que brindan atención educativa, alimentación y salud (distritos mas pobres) | F196: Departamental | G196: Piura | H196: 2020 | I196: 92.2 | J196: Porcentaje | K196: Estadística de la Calidad Educativa (ESCALE) - Ministerio de Educación (MINEDU) | L196: Censo Escolar del Ministerio de Educación - Unidad de Estadística Educativa (UEE) | M196: http://escale.minedu.gob.pe/ueetendencias20002015 | Q196: =IFERROR(IF(VLOOKUP(CONCATENATE(E196,F196,G196),ListaIndicadores!$AC$7:$AG$1887,4,FALSE)="","",VLOOKUP(CONCATENATE(E196,F196,G196),ListaIndicadores!$AC$7:$AG$1887,4,FALSE)),"") -> 109 | R196: =VLOOKUP(CONCATENATE(E196,F196,G196),ListaIndicadores!$AC$7:$AG$1887,5,FALSE) -> ¡Faltan datos! | S196: Porcentaje de instituciones educativas y programas no escolarizados de Educación Inicial que brindan atención educativa, alimentación y salud (distritos mas pobres)DepartamentalPiura2020 | T196: 92.2
A197: 29455 | B197: Social | C197: 4. CUARTO DERECHO: A LA EDUCACIÓN DESDE LA PRIMERA INFANCIA | D197: AGS.18.4 | E197: Porcentaje de instituciones educativas y programas no escolarizados de Educación Inicial que brindan atención educativa, alimentación y salud (distritos mas pobres) | F197: Departamental | G197: Piura | H197: 2021 | I197: 95.2 | J197: Porcentaje | K197: Estadística de la Calidad Educativa (ESCALE) - Ministerio de Educación (MINEDU) | L197: Censo Escolar del Ministerio de Educación - Unidad de Estadística Educativa (UEE) | M197: http://escale.minedu.gob.pe/ueetendencias20002015 | Q197: =IFERROR(IF(VLOOKUP(CONCATENATE(E197,F197,G197),ListaIndicadores!$AC$7:$AG$1887,4,FALSE)="","",VLOOKUP(CONCATENATE(E197,F197,G197),ListaIndicadores!$AC$7:$AG$1887,4,FALSE)),"") -> 109 | R197: =VLOOKUP(CONCATENATE(E197,F197,G197),ListaIndicadores!$AC$7:$AG$1887,5,FALSE) -> ¡Faltan datos! | S197: Porcentaje de instituciones educativas y programas no escolarizados de Educación Inicial que brindan atención educativa, alimentación y salud (distritos mas pobres)DepartamentalPiura2021 | T197: 95.2
A198: 29458 | B198: Social | C198: 4. CUARTO DERECHO: A LA EDUCACIÓN DESDE LA PRIMERA INFANCIA | D198: AGS.18.4 | E198: Porcentaje de instituciones educativas y programas no escolarizados de Educación Inicial que brindan atención educativa, alimentación y salud (distritos mas pobres) | F198: Departamental | G198: Región Lima | H198: 2019 | I198: 73.5 | J198: Porcentaje | K198: Estadística de la Calidad Educativa (ESCALE) - Ministerio de Educación (MINEDU) | L198: Censo Escolar del Ministerio de Educación - Unidad de Estadística Educativa (UEE) | M198: http://escale.minedu.gob.pe/ueetendencias20002015 | O198: Datos no existentes | Q198: =IFERROR(IF(VLOOKUP(CONCATENATE(E198,F198,G198),ListaIndicadores!$AC$7:$AG$1887,4,FALSE)="","",VLOOKUP(CONCATENATE(E198,F198,G198),ListaIndicadores!$AC$7:$AG$1887,4,FALSE)),"") -> 0 | R198: =VLOOKUP(CONCATENATE(E198,F198,G198),ListaIndicadores!$AC$7:$AG$1887,5,FALSE) -> Rojo | S198: Porcentaje de instituciones educativas y programas no escolarizados de Educación Inicial que brindan atención educativa, alimentación y salud (distritos mas pobres)DepartamentalRegión Lima2019 | T198: 73.5
A199: 29459 | B199: Social | C199: 4. CUARTO DERECHO: A LA EDUCACIÓN DESDE LA PRIMERA INFANCIA | D199: AGS.18.4 | E199: Porcentaje de instituciones educativas y programas no escolarizados de Educación Inicial que brindan atención educativa, alimentación y salud (distritos mas pobres) | F199: Departamental | G199: Región Lima | H199: 2020 | I199: 53.3 | J199: Porcentaje | K199: Estadística de la Calidad Educativa (ESCALE) - Ministerio de Educación (MINEDU) | L199: Censo Escolar del Ministerio de Educación - Unidad de Estadística Educativa (UEE) | M199: http://escale.minedu.gob.pe/ueetendencias20002015 | O199: Datos no existentes | Q199: =IFERROR(IF(VLOOKUP(CONCATENATE(E199,F199,G199),ListaIndicadores!$AC$7:$AG$1887,4,FALSE)="","",VLOOKUP(CONCATENATE(E199,F199,G199),ListaIndicadores!$AC$7:$AG$1887,4,FALSE)),"") -> 0 | R199: =VLOOKUP(CONCATENATE(E199,F199,G199),ListaIndicadores!$AC$7:$AG$1887,5,FALSE) -> Rojo | S199: Porcentaje de instituciones educativas y programas no escolarizados de Educación Inicial que brindan atención educativa, alimentación y salud (distritos mas pobres)DepartamentalRegión Lima2020 | T199: 53.3
A200: 29460 | B200: Social | C200: 4. CUARTO DERECHO: A LA EDUCACIÓN DESDE LA PRIMERA INFANCIA | D200: AGS.18.4 | E200: Porcentaje de instituciones educativas y programas no escolarizados de Educación Inicial que brindan atención educativa, alimentación y salud (distritos mas pobres) | F200: Departamental | G200: Región Lima | H200: 2021 | I200: 60 | J200: Porcentaje | K200: Estadística de la Calidad Educativa (ESCALE) - Ministerio de Educación (MINEDU) | L200: Censo Escolar del Ministerio de Educación - Unidad de Estadística Educativa (UEE) | M200: http://escale.minedu.gob.pe/ueetendencias20002015 | O200: Datos no existentes | Q200: =IFERROR(IF(VLOOKUP(CONCATENATE(E200,F200,G200),ListaIndicadores!$AC$7:$AG$1887,4,FALSE)="","",VLOOKUP(CONCATENATE(E200,F200,G200),ListaIndicadores!$AC$7:$AG$1887,4,FALSE)),"") -> 0 | R200: =VLOOKUP(CONCATENATE(E200,F200,G200),ListaIndicadores!$AC$7:$AG$1887,5,FALSE) -> Rojo | S200: Porcentaje de instituciones educativas y programas no escolarizados de Educación Inicial que brindan atención educativa, alimentación y salud (distritos mas pobres)DepartamentalRegión Lima2021 | T200: 60
... 4300 more rows

Sheet ListaIndicadores
A6: DERECHO | B6: Código | C6: Indicador | D6: Subindicador | E6: Región | F6: Unidad | G6: Fuente web | H6: 2010 | I6: 2011 | J6: 2012 | K6: 2013 | L6: 2014 | M6: 2015 | N6: 2016 | O6: 2017 | P6: 2018 | Q6: 2019 | R6: 2020 | S6: 2021 | T6: 2022 | U6: 2023 | V6: 2024 | W6: 2025 | X6: 2026 | Y6: Meta 2022 | Z6: Meta 2022 | AA6: Proyección | AB6: Semáforo | AC6: concatenar | AD6: Meta 2022 | AE6: Meta 2022 | AF6: Proyección | AG6: Semáforo | AH6: Tipo (Positivo/Negativo)
A7: CUARTO DERECHO: A LA EDUCACIÓN DESDE LA PRIMERA INFANCIA | B7: AGS.23.1 | C7: Nivel de logros de aprendizaje en lectura de los estudiantes de 2° grado de secundaria (*) | D7: Departamental | E7: Amazonas | F7: Porcentaje | G7: Estadística de la Calidad Educativa (ESCALE) - Ministerio de Educación (MINEDU) | L7: 0 | M7: 7 | N7: 7.6 | O7: 0 | P7: 8.3 | Q7: 8 | AA7: =+FORECAST(2026,M7:S7,$M$6:$S$6) -> 9 | AB7: =IF(OR(Z7="",AA7="",Z7="No se puede proyectar",AA7="Sin datos",AH7=""),"¡Faltan datos!", IF(AH7="P", IF(AA7>=(Z7*85%),"Verde", IF(AND(AA7<(Z7*85%),AA7>=(Z7*50%)),"Ambar", IF(AA7<(Z7*50%),"Rojo","Verificar!"))), IF(AH7="N", IF(AA7<=(Z7*115%),"Verde", IF(AND(AA7<=(Z7*150%),AA7>(Z7*115%)),"Ambar", IF(AA7>(Z7*150%),"Rojo","Verificar!"))),"ERROR"))) -> ¡Faltan datos! | AC7: =CONCATENATE(C7,D7,E7) -> Nivel de logros de aprendizaje en lectura de los estudiantes de 2° grado de secundaria (*)DepartamentalAmazonas | AF7: 9 | AG7: ¡Faltan datos! | AH7: P
A8: CUARTO DERECHO: A LA EDUCACIÓN DESDE LA PRIMERA INFANCIA | B8: AGS.23.1 | C8: Nivel de logros de aprendizaje en lectura de los estudiantes de 2° grado de secundaria (*) | D8: Departamental | E8: Áncash | F8: Porcentaje | G8: Estadística de la Calidad Educativa (ESCALE) - Ministerio de Educación (MINEDU) | L8: 0 | M8: 10.7 | N8: 10.7 | O8: 0 | P8: 11.8 | Q8: 10 | Y8: =12*0.85 -> 10 | Z8: =12*0.85 -> 10 | AA8: =+FORECAST(2026,M8:S8,$M$6:$S$6) -> 8 | AB8: =IF(OR(Z8="",AA8="",Z8="No se puede proyectar",AA8="Sin datos",AH8=""),"¡Faltan datos!", IF(AH8="P", IF(AA8>=(Z8*85%),"Verde", IF(AND(AA8<(Z8*85%),AA8>=(Z8*50%)),"Ambar", IF(AA8<(Z8*50%),"Rojo","Verificar!"))), IF(AH8="N", IF(AA8<=(Z8*115%),"Verde", IF(AND(AA8<=(Z8*150%),AA8>(Z8*115%)),"Ambar", IF(AA8>(Z8*150%),"Rojo","Verificar!"))),"ERROR"))) -> Ambar | AC8: Nivel de logros de aprendizaje en lectura de los estudiantes de 2° grado de secundaria (*)DepartamentalÁncash | AD8: 10 | AE8: =12*0.85 -> 10 | AF8: 8 | AG8: Ambar | AH8: P
A9: CUARTO DERECHO: A LA EDUCACIÓN DESDE LA PRIMERA INFANCIA | B9: AGS.23.1 | C9: Nivel de logros de aprendizaje en lectura de los estudiantes de 2° grado de secundaria (*) | D9: Departamental | E9: Apurímac | F9: Porcentaje | G9: Estadística de la Calidad Educativa (ESCALE) - Ministerio de Educación (MINEDU) | L9: 0 | M9: 5.2 | N9: 5.4 | O9: 0 | P9: 7.4 | Q9: 7 | AA9: 10 | AB9: ¡Faltan datos! | AC9: Nivel de logros de aprendizaje en lectura de los estudiantes de 2° grado de secundaria (*)DepartamentalApurímac | AF9: 10 | AG9: ¡Faltan datos! | AH9: P
A10: CUARTO DERECHO: A LA EDUCACIÓN DESDE LA PRIMERA INFANCIA | B10: AGS.23.1 | C10: Nivel de logros de aprendizaje en lectura de los estudiantes de 2° grado de secundaria (*) | D10: Departamental | E10: Arequipa | F10: Porcentaje | G10: Estadística de la Calidad Educativa (ESCALE) - Ministerio de Educación (MINEDU) | L10: 0 | M10: 25.2 | N10: 25.4 | O10: 0 | P10: 27.5 | Q10: 24 | AA10: 20 | AB10: ¡Faltan datos! | AC10: Nivel de logros de aprendizaje en lectura de los estudiantes de 2° grado de secundaria (*)DepartamentalArequipa | AF10: 20 | AG10: ¡Faltan datos! | AH10: P
A11: CUARTO DERECHO: A LA EDUCACIÓN DESDE LA PRIMERA INFANCIA | B11: AGS.23.1 | C11: Nivel de logros de aprendizaje en lectura de los estudiantes de 2° grado de secundaria (*) | D11: Departamental | E11: Ayacucho | F11: Porcentaje | G11: Estadística de la Calidad Educativa (ESCALE) - Ministerio de Educación (MINEDU) | L11: 0 | M11: 7.3 | N11: 8.8 | O11: 0 | P11: 10.2 | Q11: 10 | Y11: 30 | Z11: 30 | AA11: 13 | AB11: Rojo | AC11: Nivel de logros de aprendizaje en lectura de los estudiantes de 2° grado de secundaria (*)DepartamentalAyacucho | AD11: 30 | AE11: 30 | AF11: 13 | AG11: Rojo | AH11: P
A12: CUARTO DERECHO: A LA EDUCACIÓN DESDE LA PRIMERA INFANCIA | B12: AGS.23.1 | C12: Nivel de logros de aprendizaje en lectura de los estudiantes de 2° grado de secundaria (*) | D12: Departamental | E12: Cajamarca | F12: Porcentaje | G12: Estadística de la Calidad Educativa (ESCALE) - Ministerio de Educación (MINEDU) | L12: 0 | M12: 7.1 | N12: 6.9 | O12: 0 | P12: 8.6 | Q12: 8 | AA12: 9 | AB12: ¡Faltan datos! | AC12: Nivel de logros de aprendizaje en lectura de los estudiantes de 2° grado de secundaria (*)DepartamentalCajamarca | AF12: 9 | AG12: ¡Faltan datos! | AH12: P
A13: CUARTO DERECHO: A LA EDUCACIÓN DESDE LA PRIMERA INFANCIA | B13: AGS.23.1 | C13: Nivel de logros de aprendizaje en lectura de los estudiantes de 2° grado de secundaria (*) | D13: Departamental | E13: Callao | F13: Porcentaje | G13: Estadística de la Calidad Educativa (ESCALE) - Ministerio de Educación (MINEDU) | L13: 0 | M13: 21.2 | N13: 19.1 | O13: 0 | P13: 20.7 | Q13: 18 | Y13: 23 | Z13: 23 | AA13: 11 | AB13: Rojo | AC13: Nivel de logros de aprendizaje en lectura de los estudiantes de 2° grado de secundaria (*)DepartamentalCallao | AD13: 23 | AE13: 23 | AF13: 11 | AG13: Rojo | AH13: P
A14: CUARTO DERECHO: A LA EDUCACIÓN DESDE LA PRIMERA INFANCIA | B14: AGS.23.1 | C14: Nivel de logros de aprendizaje en lectura de los estudiantes de 2° grado de secundaria (*) | D14: Departamental | E14: Cusco | F14: Porcentaje | G14: Estadística de la Calidad Educativa (ESCALE) - Ministerio de Educación (MINEDU) | L14: 0 | M14: 10.4 | N14: 10.4 | O14: 0 | P14: 12.4 | Q14: 12 | AA14: 14 | AB14: ¡Faltan datos! | AC14: Nivel de logros de aprendizaje en lectura de los estudiantes de 2° grado de secundaria (*)DepartamentalCusco | AF14: 14 | AG14: ¡Faltan datos! | AH14: P
A15: CUARTO DERECHO: A LA EDUCACIÓN DESDE LA PRIMERA INFANCIA | B15: AGS.23.1 | C15: Nivel de logros de aprendizaje en lectura de los estudiantes de 2° grado de secundaria (*) | D15: Departamental | E15: Huancavelica | F15: Porcentaje | G15: Estadística de la Calidad Educativa (ESCALE) - Ministerio de Educación (MINEDU) | L15: 0 | M15: 3.4 | N15: 4 | O15: 0 | P15: 5.6 | Q15: 5 | Y15: 13 | Z15: 13 | AA15: 8 | AB15: Ambar | AC15: Nivel de logros de aprendizaje en lectura de los estudiantes de 2° grado de secundaria (*)DepartamentalHuancavelica | AD15: 13 | AE15: 13 | AF15: 8 | AG15: Ambar | AH15: P
A16: CUARTO DERECHO: A LA EDUCACIÓN DESDE LA PRIMERA INFANCIA | B16: AGS.23.1 | C16: Nivel de logros de aprendizaje en lectura de los estudiantes de 2° grado de secundaria (*) | D16: Departamental | E16: Huánuco | F16: Porcentaje | G16: Estadística de la Calidad Educativa (ESCALE) - Ministerio de Educación (MINEDU) | L16: 0 | M16: 5.9 | N16: 5.6 | O16: 0 | P16: 7.3 | Q16: 6 | AA16: 7 | AB16: ¡Faltan datos! | AC16: Nivel de logros de aprendizaje en lectura de los estudiantes de 2° grado de secundaria (*)DepartamentalHuánuco | AF16: 7 | AG16: ¡Faltan datos! | AH16: P
A17: CUARTO DERECHO: A LA EDUCACIÓN DESDE LA PRIMERA INFANCIA | B17: AGS.23.1 | C17: Nivel de logros de aprendizaje en lectura de los estudiantes de 2° grado de secundaria (*) | D17: Departamental | E17: Ica | F17: Porcentaje | G17: Estadística de la Calidad Educativa (ESCALE) - Ministerio de Educación (MINEDU) | L17: 0 | M17: 16.5 | N17: 15.4 | O17: 0 | P17: 17.5 | Q17: 16 | AA17: 14 | AB17: ¡Faltan datos! | AC17: Nivel de logros de aprendizaje en lectura de los estudiantes de 2° grado de secundaria (*)DepartamentalIca | AF17: 14 | AG17: ¡Faltan datos! | AH17: P
A18: CUARTO DERECHO: A LA EDUCACIÓN DESDE LA PRIMERA INFANCIA | B18: AGS.23.1 | C18: Nivel de logros de aprendizaje en lectura de los estudiantes de 2° grado de secundaria (*) | D18: Departamental | E18: Junín | F18: Porcentaje | G18: Estadística de la Calidad Educativa (ESCALE) - Ministerio de Educación (MINEDU) | L18: 0 | M18: 13.3 | N18: 14 | O18: 0 | P18: 17.4 | Q18: 16 | AA18: 20 | AB18: ¡Faltan datos! | AC18: Nivel de logros de aprendizaje en lectura de los estudiantes de 2° grado de secundaria (*)DepartamentalJunín | AF18: 20 | AG18: ¡Faltan datos! | AH18: P
A19: CUARTO DERECHO: A LA EDUCACIÓN DESDE LA PRIMERA INFANCIA | B19: AGS.23.1 | C19: Nivel de logros de aprendizaje en lectura de los estudiantes de 2° grado de secundaria (*) | D19: Departamental | E19: La Libertad | F19: Porcentaje | G19: Estadística de la Calidad Educativa (ESCALE) - Ministerio de Educación (MINEDU) | L19: 0 | M19: 14.7 | N19: 14.7 | O19: 0 | P19: 14.9 | Q19: 13 | AA19: 9 | AB19: ¡Faltan datos! | AC19: Nivel de logros de aprendizaje en lectura de los estudiantes de 2° grado de secundaria (*)DepartamentalLa Libertad | AF19: 9 | AG19: ¡Faltan datos! | AH19: P
A20: CUARTO DERECHO: A LA EDUCACIÓN DESDE LA PRIMERA INFANCIA | B20: AGS.23.1 | C20: Nivel de logros de aprendizaje en lectura de los estudiantes de 2° grado de secundaria (*) | D20: Departamental | E20: Lambayeque | F20: Porcentaje | G20: Estadística de la Calidad Educativa (ESCALE) - Ministerio de Educación (MINEDU) | L20: 0 | M20: 13.8 | N20: 13.7 | O20: 0 | P20: 14.4 | Q20: 13 | AA20: 10 | AB20: ¡Faltan datos! | AC20: Nivel de logros de aprendizaje en lectura de los estudiantes de 2° grado de secundaria (*)DepartamentalLambayeque | AF20: 10 | AG20: ¡Faltan datos! | AH20: P
A21: CUARTO DERECHO: A LA EDUCACIÓN DESDE LA PRIMERA INFANCIA | B21: AGS.23.1 | C21: Nivel de logros de aprendizaje en lectura de los estudiantes de 2° grado de secundaria (*) | D21: Departamental | E21: Lima Metropolitana | F21: Porcentaje | G21: Estadística de la Calidad Educativa (ESCALE) - Ministerio de Educación (MINEDU) | L21: 0 | M21: 23.7 | N21: 21.9 | O21: 0 | P21: 25 | Q21: 23 | AA21: 20 | AB21: ¡Faltan datos! | AC21: Nivel de logros de aprendizaje en lectura de los estudiantes de 2° grado de secundaria (*)DepartamentalLima Metropolitana | AF21: 20 | AG21: ¡Faltan datos! | AH21: P
A22: CUARTO DERECHO: A LA EDUCACIÓN DESDE LA PRIMERA INFANCIA | B22: AGS.23.1 | C22: Nivel de logros de aprendizaje en lectura de los estudiantes de 2° grado de secundaria (*) | D22: Departamental | E22: Loreto | F22: Porcentaje | G22: Estadística de la Calidad Educativa (ESCALE) - Ministerio de Educación (MINEDU) | L22: 0 | M22: 4.5 | N22: 4.3 | O22: 0 | P22: 4.1 | Q22: 3 | Y22: 16 | Z22: 16 | AA22: 0 | AB22: Rojo | AC22: Nivel de logros de aprendizaje en lectura de los estudiantes de 2° grado de secundaria (*)DepartamentalLoreto | AD22: 16 | AE22: 16 | AF22: 0 | AG22: Rojo | AH22: P
A23: CUARTO DERECHO: A LA EDUCACIÓN DESDE LA PRIMERA INFANCIA | B23: AGS.23.1 | C23: Nivel de logros de aprendizaje en lectura de los estudiantes de 2° grado de secundaria (*) | D23: Departamental | E23: Madre de Dios | F23: Porcentaje | G23: Estadística de la Calidad Educativa (ESCALE) - Ministerio de Educación (MINEDU) | L23: 0 | M23: 7.6 | N23: 9.1 | O23: 0 | P23: 8.1 | Q23: 7 | AA23: 4 | AB23: ¡Faltan datos! | AC23: Nivel de logros de aprendizaje en lectura de los estudiantes de 2° grado de secundaria (*)DepartamentalMadre de Dios | AF23: 4 | AG23: ¡Faltan datos! | AH23: P
A24: CUARTO DERECHO: A LA EDUCACIÓN DESDE LA PRIMERA INFANCIA | B24: AGS.23.1 | C24: Nivel de logros de aprendizaje en lectura de los estudiantes de 2° grado de secundaria (*) | D24: Departamental | E24: Moquegua | F24: Porcentaje | G24: Estadística de la Calidad Educativa (ESCALE) - Ministerio de Educación (MINEDU) | L24: 0 | M24: 27 | N24: 24.4 | O24: 0 | P24: 30.2 | Q24: 25 | AA24: 23 | AB24: ¡Faltan datos! | AC24: Nivel de logros de aprendizaje en lectura de los estudiantes de 2° grado de secundaria (*)DepartamentalMoquegua | AF24: 23 | AG24: ¡Faltan datos! | AH24: P
A25: CUARTO DERECHO: A LA EDUCACIÓN DESDE LA PRIMERA INFANCIA | B25: AGS.23.1 | C25: Nivel de logros de aprendizaje en lectura de los estudiantes de 2° grado de secundaria (*) | D25: Departamental | E25: Pasco | F25: Porcentaje | G25: Estadística de la Calidad Educativa (ESCALE) - Ministerio de Educación (MINEDU) | L25: 0 | M25: 10.6 | N25: 9.8 | O25: 0 | P25: 11.8 | Q25: 10 | AA25: 9 | AB25: ¡Faltan datos! | AC25: Nivel de logros de aprendizaje en lectura de los estudiantes de 2° grado de secundaria (*)DepartamentalPasco | AF25: 9 | AG25: ¡Faltan datos! | AH25: P
A26: CUARTO DERECHO: A LA EDUCACIÓN DESDE LA PRIMERA INFANCIA | B26: AGS.23.1 | C26: Nivel de logros de aprendizaje en lectura de los estudiantes de 2° grado de secundaria (*) | D26: Departamental | E26: Piura | F26: Porcentaje | G26: Estadística de la Calidad Educativa (ESCALE) - Ministerio de Educación (MINEDU) | L26: 0 | M26: 12.2 | N26: 12.2 | O26: 0 | P26: 13.6 | Q26: 12 | AA26: 11 | AB26: ¡Faltan datos! | AC26: Nivel de logros de aprendizaje en lectura de los estudiantes de 2° grado de secundaria (*)DepartamentalPiura | AF26: 11 | AG26: ¡Faltan datos! | AH26: P
A27: CUARTO DERECHO: A LA EDUCACIÓN DESDE LA PRIMERA INFANCIA | B27: AGS.23.1 | C27: Nivel de logros de aprendizaje en lectura de los estudiantes de 2° grado de secundaria (*) | D27: Departamental | E27: Provincia Lima | F27: Porcentaje | G27: Estadística de la Calidad Educativa (ESCALE) - Ministerio de Educación (MINEDU) | L27: 0 | M27: 14.3 | N27: 14 | O27: 0 | P27: 15 | Q27: 14 | AA27: 12 | AB27: ¡Faltan datos! | AC27: Nivel de logros de aprendizaje en lectura de los estudiantes de 2° grado de secundaria (*)DepartamentalProvincia Lima | AF27: 12 | AG27: ¡Faltan datos! | AH27: P
A28: CUARTO DERECHO: A LA EDUCACIÓN DESDE LA PRIMERA INFANCIA | B28: AGS.23.1 | C28: Nivel de logros de aprendizaje en lectura de los estudiantes de 2° grado de secundaria (*) | D28: Departamental | E28: Puno | F28: Porcentaje | G28: Estadística de la Calidad Educativa (ESCALE) - Ministerio de Educación (MINEDU) | L28: 0 | M28: 6.8 | N28: 7.2 | O28: 0 | P28: 10.1 | Q28: 10 | Y28: 23 | Z28: 23 | AA28: 15 | AB28: Ambar | AC28: Nivel de logros de aprendizaje en lectura de los estudiantes de 2° grado de secundaria (*)DepartamentalPuno | AD28: 23 | AE28: 23 | AF28: 15 | AG28: Ambar | AH28: P
A29: CUARTO DERECHO: A LA EDUCACIÓN DESDE LA PRIMERA INFANCIA | B29: AGS.23.1 | C29: Nivel de logros de aprendizaje en lectura de los estudiantes de 2° grado de secundaria (*) | D29: Departamental | E29: San Martín | F29: Porcentaje | G29: Estadística de la Calidad Educativa (ESCALE) - Ministerio de Educación (MINEDU) | L29: 0 | M29: 7 | N29: 7 | O29: 0 | P29: 7.9 | Q29: 7 | Y29: 27 | Z29: 27 | AA29: 7 | AB29: Rojo | AC29: Nivel de logros de aprendizaje en lectura de los estudiantes de 2° grado de secundaria (*)DepartamentalSan Martín | AD29: 27 | AE29: 27 | AF29: 7 | AG29: Rojo | AH29: P
A30: CUARTO DERECHO: A LA EDUCACIÓN DESDE LA PRIMERA INFANCIA | B30: AGS.23.1 | C30: Nivel de logros de aprendizaje en lectura de los estudiantes de 2° grado de secundaria (*) | D30: Departamental | E30: Tacna | F30: Porcentaje | G30: Estadística de la Calidad Educativa (ESCALE) - Ministerio de Educación (MINEDU) | L30: 0 | M30: 26.1 | N30: 28.9 | O30: 0 | P30: 31.1 | Q30: 27 | AA30: 26 | AB30: ¡Faltan datos! | AC30: Nivel de logros de aprendizaje en lectura de los estudiantes de 2° grado de secundaria (*)DepartamentalTacna | AF30: 26 | AG30: ¡Faltan datos! | AH30: P
A31: CUARTO DERECHO: A LA EDUCACIÓN DESDE LA PRIMERA INFANCIA | B31: AGS.23.1 | C31: Nivel de logros de aprendizaje en lectura de los estudiantes de 2° grado de secundaria (*) | D31: Departamental | E31: Tumbes | F31: Porcentaje | G31: Estadística de la Calidad Educativa (ESCALE) - Ministerio de Educación (MINEDU) | L31: 0 | M31: 8.2 | N31: 9 | O31: 0 | P31: 9.3 | Q31: 8 | Y31: 20 | Z31: 20 | AA31: 7 | AB31: Rojo | AC31: Nivel de logros de aprendizaje en lectura de los estudiantes de 2° grado de secundaria (*)DepartamentalTumbes | AD31: 20 | AE31: 20 | AF31: 7 | AG31: Rojo | AH31: P
A32: CUARTO DERECHO: A LA EDUCACIÓN DESDE LA PRIMERA INFANCIA | B32: AGS.23.1 | C32: Nivel de logros de aprendizaje en lectura de los estudiantes de 2° grado de secundaria (*) | D32: Departamental | E32: Ucayali | F32: Porcentaje | G32: Estadística de la Calidad Educativa (ESCALE) - Ministerio de Educación (MINEDU) | L32: 0 | M32: 6.7 | N32: 6 | O32: 0 | P32: 6.6 | Q32: 5 | Y32: 16 | Z32: 16 | AA32: 2 | AB32: Rojo | AC32: Nivel de logros de aprendizaje en lectura de los estudiantes de 2° grado de secundaria (*)DepartamentalUcayali | AD32: 16 | AE32: 16 | AF32: 2 | AG32: Rojo | AH32: P
A33: CUARTO DERECHO: A LA EDUCACIÓN DESDE LA PRIMERA INFANCIA | B33: AGS.23.2 | C33: Nivel de logros de aprendizajes en matemáticas de los estudiantes de 2° grado de secundaria (*). | D33: Departamental | E33: Amazonas | F33: Porcentaje | G33: Estadística de la Calidad Educativa (ESCALE) - Ministerio de Educación (MINEDU) | L33: 0 | M33: 0 | N33: 9 | O33: 0 | P33: 8 | Q33: 12 | AA33: 27 | AB33: ¡Faltan datos! | AC33: Nivel de logros de aprendizajes en matemáticas de los estudiantes de 2° grado de secundaria (*).DepartamentalAmazonas | AF33: 27 | AG33: ¡Faltan datos! | AH33: P
A34: CUARTO DERECHO: A LA EDUCACIÓN DESDE LA PRIMERA INFANCIA | B34: AGS.23.2 | C34: Nivel de logros de aprendizajes en matemáticas de los estudiantes de 2° grado de secundaria (*). | D34: Departamental | E34: Áncash | F34: Porcentaje | G34: Estadística de la Calidad Educativa (ESCALE) - Ministerio de Educación (MINEDU) | L34: 0 | M34: 6.7 | N34: 9 | O34: 0 | P34: 10.2 | Q34: 13 | AA34: 20 | AB34: ¡Faltan datos! | AC34: Nivel de logros de aprendizajes en matemáticas de los estudiantes de 2° grado de secundaria (*).DepartamentalÁncash | AF34: 20 | AG34: ¡Faltan datos! | AH34: P
A35: CUARTO DERECHO: A LA EDUCACIÓN DESDE LA PRIMERA INFANCIA | B35: AGS.23.2 | C35: Nivel de logros de aprendizajes en matemáticas de los estudiantes de 2° grado de secundaria (*). | D35: Departamental | E35: Apurímac | F35: Porcentaje | G35: Estadística de la Calidad Educativa (ESCALE) - Ministerio de Educación (MINEDU) | L35: 0 | M35: 3 | N35: 5.1 | O35: 0 | P35: 6.6 | Q35: 11 | AA35: 21 | AB35: ¡Faltan datos! | AC35: Nivel de logros de aprendizajes en matemáticas de los estudiantes de 2° grado de secundaria (*).DepartamentalApurímac | AF35: 21 | AG35: ¡Faltan datos! | AH35: P
A36: CUARTO DERECHO: A LA EDUCACIÓN DESDE LA PRIMERA INFANCIA | B36: AGS.23.2 | C36: Nivel de logros de aprendizajes en matemáticas de los estudiantes de 2° grado de secundaria (*). | D36: Departamental | E36: Arequipa | F36: Porcentaje | G36: Estadística de la Calidad Educativa (ESCALE) - Ministerio de Educación (MINEDU) | L36: 0 | M36: 18 | N36: 22.8 | O36: 0 | P36: 25.7 | Q36: 31 | AA36: 46 | AB36: ¡Faltan datos! | AC36: Nivel de logros de aprendizajes en matemáticas de los estudiantes de 2° grado de secundaria (*).DepartamentalArequipa | AF36: 46 | AG36: ¡Faltan datos! | AH36: P
A37: CUARTO DERECHO: A LA EDUCACIÓN DESDE LA PRIMERA INFANCIA | B37: AGS.23.2 | C37: Nivel de logros de aprendizajes en matemáticas de los estudiantes de 2° grado de secundaria (*). | D37: Departamental | E37: Ayacucho | F37: Porcentaje | G37: Estadística de la Calidad Educativa (ESCALE) - Ministerio de Educación (MINEDU) | L37: 0 | M37: 4.4 | N37: 9.3 | O37: 0 | P37: 9.2 | Q37: 14 | Y37: 31 | Z37: 31 | AA37: 25 | AB37: Ambar | AC37: Nivel de logros de aprendizajes en matemáticas de los estudiantes de 2° grado de secundaria (*).DepartamentalAyacucho | AD37: 31 | AE37: 31 | AF37: 25 | AG37: Ambar | AH37: P
A38: CUARTO DERECHO: A LA EDUCACIÓN DESDE LA PRIMERA INFANCIA | B38: AGS.23.2 | C38: Nivel de logros de aprendizajes en matemáticas de los estudiantes de 2° grado de secundaria (*). | D38: Departamental | E38: Cajamarca | F38: Porcentaje | G38: Estadística de la Calidad Educativa (ESCALE) - Ministerio de Educación (MINEDU) | L38: 0 | M38: 6.1 | N38: 7.1 | O38: 0 | P38: 8.7 | Q38: 12 | AA38: 19 | AB38: ¡Faltan datos! | AC38: Nivel de logros de aprendizajes en matemáticas de los estudiantes de 2° grado de secundaria (*).DepartamentalCajamarca | AF38: 19 | AG38: ¡Faltan datos! | AH38: P
A39: CUARTO DERECHO: A LA EDUCACIÓN DESDE LA PRIMERA INFANCIA | B39: AGS.23.2 | C39: Nivel de logros de aprendizajes en matemáticas de los estudiantes de 2° grado de secundaria (*). | D39: Departamental | E39: Callao | F39: Porcentaje | G39: Estadística de la Calidad Educativa (ESCALE) - Ministerio de Educación (MINEDU) | L39: 0 | M39: 11.7 | N39: 12.5 | O39: 0 | P39: 16.7 | Q39: 20 | Y39: 20 | Z39: 20 | AA39: 31 | AB39: Verde | AC39: Nivel de logros de aprendizajes en matemáticas de los estudiantes de 2° grado de secundaria (*).DepartamentalCallao | AD39: 20 | AE39: 20 | AF39: 31 | AG39: Verde | AH39: P
A40: CUARTO DERECHO: A LA EDUCACIÓN DESDE LA PRIMERA INFANCIA | B40: AGS.23.2 | C40: Nivel de logros de aprendizajes en matemáticas de los estudiantes de 2° grado de secundaria (*). | D40: Departamental | E40: Cusco | F40: Porcentaje | G40: Estadística de la Calidad Educativa (ESCALE) - Ministerio de Educación (MINEDU) | L40: 0 | M40: 7.2 | N40: 10 | O40: 0 | P40: 11.3 | Q40: 16 | AA40: 26 | AB40: ¡Faltan datos! | AC40: Nivel de logros de aprendizajes en matemáticas de los estudiantes de 2° grado de secundaria (*).DepartamentalCusco | AF40: 26 | AG40: ¡Faltan datos! | AH40: P
A41: CUARTO DERECHO: A LA EDUCACIÓN DESDE LA PRIMERA INFANCIA | B41: AGS.23.2 | C41: Nivel de logros de aprendizajes en matemáticas de los estudiantes de 2° grado de secundaria (*). | D41: Departamental | E41: Huancavelica | F41: Porcentaje | G41: Estadística de la Calidad Educativa (ESCALE) - Ministerio de Educación (MINEDU) | L41: 0 | M41: 3.8 | N41: 4.6 | O41: 0 | P41: 6 | Q41: 8 | Y41: 14 | Z41: 14 | AA41: 13 | AB41: Verde | AC41: Nivel de logros de aprendizajes en matemáticas de los estudiantes de 2° grado de secundaria (*).DepartamentalHuancavelica | AD41: 14 | AE41: 14 | AF41: 13 | AG41: Verde | AH41: P
A42: CUARTO DERECHO: A LA EDUCACIÓN DESDE LA PRIMERA INFANCIA | B42: AGS.23.2 | C42: Nivel de logros de aprendizajes en matemáticas de los estudiantes de 2° grado de secundaria (*). | D42: Departamental | E42: Huánuco | F42: Porcentaje | G42: Estadística de la Calidad Educativa (ESCALE) - Ministerio de Educación (MINEDU) | L42: 0 | M42: 3.6 | N42: 5.8 | O42: 0 | P42: 6.2 | Q42: 8 | AA42: 13 | AB42: ¡Faltan datos! | AC42: Nivel de logros de aprendizajes en matemáticas de los estudiantes de 2° grado de secundaria (*).DepartamentalHuánuco | AF42: 13 | AG42: ¡Faltan datos! | AH42: P
A43: CUARTO DERECHO: A LA EDUCACIÓN DESDE LA PRIMERA INFANCIA | B43: AGS.23.2 | C43: Nivel de logros de aprendizajes en matemáticas de los estudiantes de 2° grado de secundaria (*). | D43: Departamental | E43: Ica | F43: Porcentaje | G43: Estadística de la Calidad Educativa (ESCALE) - Ministerio de Educación (MINEDU) | L43: 0 | M43: 11.8 | N43: 13.3 | O43: 0 | P43: 16.4 | Q43: 20 | AA43: 30 | AB43: ¡Faltan datos! | AC43: Nivel de logros de aprendizajes en matemáticas de los estudiantes de 2° grado de secundaria (*).DepartamentalIca | AF43: 30 | AG43: ¡Faltan datos! | AH43: P
A44: CUARTO DERECHO: A LA EDUCACIÓN DESDE LA PRIMERA INFANCIA | B44: AGS.23.2 | C44: Nivel de logros de aprendizajes en matemáticas de los estudiantes de 2° grado de secundaria (*). | D44: Departamental | E44: Junín | F44: Porcentaje | G44: Estadística de la Calidad Educativa (ESCALE) - Ministerio de Educación (MINEDU) | L44: 0 | M44: 11.6 | N44: 15.5 | O44: 0 | P44: 19.6 | Q44: 24 | AA44: 40 | AB44: ¡Faltan datos! | AC44: Nivel de logros de aprendizajes en matemáticas de los estudiantes de 2° grado de secundaria (*).DepartamentalJunín | AF44: 40 | AG44: ¡Faltan datos! | AH44: P
A45: CUARTO DERECHO: A LA EDUCACIÓN DESDE LA PRIMERA INFANCIA | B45: AGS.23.2 | C45: Nivel de logros de aprendizajes en matemáticas de los estudiantes de 2° grado de secundaria (*). | D45: Departamental | E45: La Libertad | F45: Porcentaje | G45: Estadística de la Calidad Educativa (ESCALE) - Ministerio de Educación (MINEDU) | L45: 0 | M45: 9 | N45: 11.1 | O45: 0 | P45: 12.3 | Q45: 15 | AA45: 21 | AB45: ¡Faltan datos! | AC45: Nivel de logros de aprendizajes en matemáticas de los estudiantes de 2° grado de secundaria (*).DepartamentalLa Libertad | AF45: 21 | AG45: ¡Faltan datos! | AH45: P
A46: CUARTO DERECHO: A LA EDUCACIÓN DESDE LA PRIMERA INFANCIA | B46: AGS.23.2 | C46: Nivel de logros de aprendizajes en matemáticas de los estudiantes de 2° grado de secundaria (*). | D46: Departamental | E46: Lambayeque | F46: Porcentaje | G46: Estadística de la Calidad Educativa (ESCALE) - Ministerio de Educación (MINEDU) | L46: 0 | M46: 9.7 | N46: 11.2 | O46: 0 | P46: 12.4 | Q46: 15 | AA46: 20 | AB46: ¡Faltan datos! | AC46: Nivel de logros de aprendizajes en matemáticas de los estudiantes de 2° grado de secundaria (*).DepartamentalLambayeque | AF46: 20 | AG46: ¡Faltan datos! | AH46: P
A47: CUARTO DERECHO: A LA EDUCACIÓN DESDE LA PRIMERA INFANCIA | B47: AGS.23.2 | C47: Nivel de logros de aprendizajes en matemáticas de los estudiantes de 2° grado de secundaria (*). | D47: Departamental | E47: Lima Metropolitana | F47: Porcentaje | G47: Estadística de la Calidad Educativa (ESCALE) - Ministerio de Educación (MINEDU) | L47: 0 | M47: 14.3 | N47: 15.2 | O47: 0 | P47: 20.2 | Q47: 25 | AA47: 39 | AB47: ¡Faltan datos! | AC47: Nivel de logros de aprendizajes en matemáticas de los estudiantes de 2° grado de secundaria (*).DepartamentalLima Metropolitana | AF47: 39 | AG47: ¡Faltan datos! | AH47: P
A48: CUARTO DERECHO: A LA EDUCACIÓN DESDE LA PRIMERA INFANCIA | B48: AGS.23.2 | C48: Nivel de logros de aprendizajes en matemáticas de los estudiantes de 2° grado de secundaria (*). | D48: Departamental | E48: Loreto | F48: Porcentaje | G48: Estadística de la Calidad Educativa (ESCALE) - Ministerio de Educación (MINEDU) | L48: 0 | M48: 1.3 | N48: 1.7 | O48: 0 | P48: 1.9 | Q48: 2 | Y48: 9 | Z48: 9 | AA48: 3 | AB48: Rojo | AC48: Nivel de logros de aprendizajes en matemáticas de los estudiantes de 2° grado de secundaria (*).DepartamentalLoreto | AD48: 9 | AE48: 9 | AF48: 3 | AG48: Rojo | AH48: P
A49: CUARTO DERECHO: A LA EDUCACIÓN DESDE LA PRIMERA INFANCIA | B49: AGS.23.2 | C49: Nivel de logros de aprendizajes en matemáticas de los estudiantes de 2° grado de secundaria (*). | D49: Departamental | E49: Madre de Dios | F49: Porcentaje | G49: Estadística de la Calidad Educativa (ESCALE) - Ministerio de Educación (MINEDU) | L49: 0 | M49: 4.4 | N49: 7.4 | O49: 0 | P49: 6.7 | Q49: 10 | AA49: 15 | AB49: ¡Faltan datos! | AC49: Nivel de logros de aprendizajes en matemáticas de los estudiantes de 2° grado de secundaria (*).DepartamentalMadre de Dios | AF49: 15 | AG49: ¡Faltan datos! | AH49: P
A50: CUARTO DERECHO: A LA EDUCACIÓN DESDE LA PRIMERA INFANCIA | B50: AGS.23.2 | C50: Nivel de logros de aprendizajes en matemáticas de los estudiantes de 2° grado de secundaria (*). | D50: Departamental | E50: Moquegua | F50: Porcentaje | G50: Estadística de la Calidad Educativa (ESCALE) - Ministerio de Educación (MINEDU) | L50: 0 | M50: 17.1 | N50: 24.3 | O50: 0 | P50: 31.3 | Q50: 34 | AA50: 58 | AB50: ¡Faltan datos! | AC50: Nivel de logros de aprendizajes en matemáticas de los estudiantes de 2° grado de secundaria (*).DepartamentalMoquegua | AF50: 58 | AG50: ¡Faltan datos! | AH50: P
A51: CUARTO DERECHO: A LA EDUCACIÓN DESDE LA PRIMERA INFANCIA | B51: AGS.23.2 | C51: Nivel de logros de aprendizajes en matemáticas de los estudiantes de 2° grado de secundaria (*). | D51: Departamental | E51: Pasco | F51: Porcentaje | G51: Estadística de la Calidad Educativa (ESCALE) - Ministerio de Educación (MINEDU) | L51: 0 | M51: 8.6 | N51: 11.5 | O51: 0 | P51: 12.6 | Q51: 14 | AA51: 20 | AB51: ¡Faltan datos! | AC51: Nivel de logros de aprendizajes en matemáticas de los estudiantes de 2° grado de secundaria (*).DepartamentalPasco | AF51: 20 | AG51: ¡Faltan datos! | AH51: P
A52: CUARTO DERECHO: A LA EDUCACIÓN DESDE LA PRIMERA INFANCIA | B52: AGS.23.2 | C52: Nivel de logros de aprendizajes en matemáticas de los estudiantes de 2° grado de secundaria (*). | D52: Departamental | E52: Piura | F52: Porcentaje | G52: Estadística de la Calidad Educativa (ESCALE) - Ministerio de Educación (MINEDU) | L52: 0 | M52: 7.6 | N52: 9.2 | O52: 0 | P52: 11.4 | Q52: 13 | AA52: 20 | AB52: ¡Faltan datos! | AC52: Nivel de logros de aprendizajes en matemáticas de los estudiantes de 2° grado de secundaria (*).DepartamentalPiura | AF52: 20 | AG52: ¡Faltan datos! | AH52: P
A53: CUARTO DERECHO: A LA EDUCACIÓN DESDE LA PRIMERA INFANCIA | B53: AGS.23.2 | C53: Nivel de logros de aprendizajes en matemáticas de los estudiantes de 2° grado de secundaria (*). | D53: Departamental | E53: Provincia Lima | F53: Porcentaje | G53: Estadística de la Calidad Educativa (ESCALE) - Ministerio de Educación (MINEDU) | L53: 0 | M53: 10 | N53: 13 | O53: 0 | P53: 13.9 | Q53: 18 | AA53: 26 | AB53: ¡Faltan datos! | AC53: Nivel de logros de aprendizajes en matemáticas de los estudiantes de 2° grado de secundaria (*).DepartamentalProvincia Lima | AF53: 26 | AG53: ¡Faltan datos! | AH53: P
A54: CUARTO DERECHO: A LA EDUCACIÓN DESDE LA PRIMERA INFANCIA | B54: AGS.23.2 | C54: Nivel de logros de aprendizajes en matemáticas de los estudiantes de 2° grado de secundaria (*). | D54: Departamental | E54: Puno | F54: Porcentaje | G54: Estadística de la Calidad Educativa (ESCALE) - Ministerio de Educación (MINEDU) | L54: 0 | M54: 5.1 | N54: 8.2 | O54: 0 | P54: 10.6 | Q54: 17 | Y54: 24 | Z54: 24 | AA54: 32 | AB54: Verde | AC54: Nivel de logros de aprendizajes en matemáticas de los estudiantes de 2° grado de secundaria (*).DepartamentalPuno | AD54: 24 | AE54: 24 | AF54: 32 | AG54: Verde | AH54: P
A55: CUARTO DERECHO: A LA EDUCACIÓN DESDE LA PRIMERA INFANCIA | B55: AGS.23.2 | C55: Nivel de logros de aprendizajes en matemáticas de los estudiantes de 2° grado de secundaria (*). | D55: Departamental | E55: San Martín | F55: Porcentaje | G55: Estadística de la Calidad Educativa (ESCALE) - Ministerio de Educación (MINEDU) | L55: 0 | M55: 3.5 | N55: 5 | O55: 0 | P55: 6.1 | Q55: 9 | Y55: 20 | Z55: 20 | AA55: 16 | AB55: Ambar | AC55: Nivel de logros de aprendizajes en matemáticas de los estudiantes de 2° grado de secundaria (*).DepartamentalSan Martín | AD55: 20 | AE55: 20 | AF55: 16 | AG55: Ambar | AH55: P
A56: CUARTO DERECHO: A LA EDUCACIÓN DESDE LA PRIMERA INFANCIA | B56: AGS.23.2 | C56: Nivel de logros de aprendizajes en matemáticas de los estudiantes de 2° grado de secundaria (*). | D56: Departamental | E56: Tacna | F56: Porcentaje | G56: Estadística de la Calidad Educativa (ESCALE) - Ministerio de Educación (MINEDU) | L56: 0 | M56: 23.2 | N56: 30.3 | O56: 0 | P56: 31 | Q56: 38 | AA56: 52 | AB56: ¡Faltan datos! | AC56: Nivel de logros de aprendizajes en matemáticas de los estudiantes de 2° grado de secundaria (*).DepartamentalTacna | AF56: 52 | AG56: ¡Faltan datos! | AH56: P
A57: CUARTO DERECHO: A LA EDUCACIÓN DESDE LA PRIMERA INFANCIA | B57: AGS.23.2 | C57: Nivel de logros de aprendizajes en matemáticas de los estudiantes de 2° grado de secundaria (*). | D57: Departamental | E57: Tumbes | F57: Porcentaje | G57: Estadística de la Calidad Educativa (ESCALE) - Ministerio de Educación (MINEDU) | L57: 0 | M57: 3.5 | N57: 5 | O57: 0 | P57: 6.1 | Q57: 8 | Y57: 20 | Z57: 20 | AA57: 14 | AB57: Ambar | AC57: Nivel de logros de aprendizajes en matemáticas de los estudiantes de 2° grado de secundaria (*).DepartamentalTumbes | AD57: 20 | AE57: 20 | AF57: 14 | AG57: Ambar | AH57: P
A58: CUARTO DERECHO: A LA EDUCACIÓN DESDE LA PRIMERA INFANCIA | B58: AGS.23.2 | C58: Nivel de logros de aprendizajes en matemáticas de los estudiantes de 2° grado de secundaria (*). | D58: Departamental | E58: Ucayali | F58: Porcentaje | G58: Estadística de la Calidad Educativa (ESCALE) - Ministerio de Educación (MINEDU) | L58: 0 | M58: 2.1 | N58: 3.2 | O58: 0 | P58: 4.1 | Q58: 5 | Y58: 13 | Z58: 13 | AA58: 9 | AB58: Ambar | AC58: Nivel de logros de aprendizajes en matemáticas de los estudiantes de 2° grado de secundaria (*).DepartamentalUcayali | AD58: 13 | AE58: 13 | AF58: 9 | AG58: Ambar | AH58: P
A59: CUARTO DERECHO: A LA EDUCACIÓN DESDE LA PRIMERA INFANCIA | B59: AGS.20.1 | C59: Porcentaje de alumnos que logran los aprendizajes de 2º en comprensión lectora | D59: Departamental | E59: Amazonas | F59: Porcentaje | G59: Estadística de la Calidad Educativa (ESCALE) - Ministerio de Educación (MINEDU) | L59: 39.3 | M59: 43.1 | N59: 40.4 | O59: 0 | P59: 0 | Q59: 30.8 | AA59: -36 | AB59: ¡Faltan datos! | AC59: Porcentaje de alumnos que logran los aprendizajes de 2º en comprensión lectora DepartamentalAmazonas | AF59: -36 | AG59: ¡Faltan datos! | AH59: P
A60: CUARTO DERECHO: A LA EDUCACIÓN DESDE LA PRIMERA INFANCIA | B60: AGS.20.1 | C60: Porcentaje de alumnos que logran los aprendizajes de 2º en comprensión lectora | D60: Departamental | E60: Áncash | F60: Porcentaje | G60: Estadística de la Calidad Educativa (ESCALE) - Ministerio de Educación (MINEDU) | L60: 17.8 | M60: 24.6 | N60: 26.2 | O60: 0 | P60: 0 | Q60: 34.7 | AA60: 12 | AB60: ¡Faltan datos! | AC60: Porcentaje de alumnos que logran los aprendizajes de 2º en comprensión lectora DepartamentalÁncash | AF60: 12 | AG60: ¡Faltan datos! | AH60: P
A61: CUARTO DERECHO: A LA EDUCACIÓN DESDE LA PRIMERA INFANCIA | B61: AGS.20.1 | C61: Porcentaje de alumnos que logran los aprendizajes de 2º en comprensión lectora | D61: Departamental | E61: Apurímac | F61: Porcentaje | G61: Estadística de la Calidad Educativa (ESCALE) - Ministerio de Educación (MINEDU) | L61: 31.1 | M61: 36.2 | N61: 38 | O61: 0 | P61: 0 | Q61: 39.6 | AA61: -5 | AB61: ¡Faltan datos! | AC61: Porcentaje de alumnos que logran los aprendizajes de 2º en comprensión lectora DepartamentalApurímac | AF61: -5 | AG61: ¡Faltan datos! | AH61: P
A62: CUARTO DERECHO: A LA EDUCACIÓN DESDE LA PRIMERA INFANCIA | B62: AGS.20.1 | C62: Porcentaje de alumnos que logran los aprendizajes de 2º en comprensión lectora | D62: Departamental | E62: Arequipa | F62: Porcentaje | G62: Estadística de la Calidad Educativa (ESCALE) - Ministerio de Educación (MINEDU) | L62: 61 | M62: 65.2 | N62: 59 | O62: 0 | P62: 0 | Q62: 52 | Y62: 71 | Z62: 71 | AA62: -42 | AB62: Rojo | AC62: Porcentaje de alumnos que logran los aprendizajes de 2º en comprensión lectora DepartamentalArequipa | AD62: 71 | AE62: 71 | AF62: -42 | AG62: Rojo | AH62: P
A63: CUARTO DERECHO: A LA EDUCACIÓN DESDE LA PRIMERA INFANCIA | B63: AGS.20.1 | C63: Porcentaje de alumnos que logran los aprendizajes de 2º en comprensión lectora | D63: Departamental | E63: Ayacucho | F63: Porcentaje | G63: Estadística de la Calidad Educativa (ESCALE) - Ministerio de Educación (MINEDU) | L63: 34.6 | M63: 48.3 | N63: 52.1 | O63: 0 | P63: 0 | Q63: 37.9 | Y63: 72 | Z63: 72 | AA63: -38 | AB63: Rojo | AC63: Porcentaje de alumnos que logran los aprendizajes de 2º en comprensión lectora DepartamentalAyacucho | AD63: 72 | AE63: 72 | AF63: -38 | AG63: Rojo | AH63: P
A64: CUARTO DERECHO: A LA EDUCACIÓN DESDE LA PRIMERA INFANCIA | B64: AGS.20.1 | C64: Porcentaje de alumnos que logran los aprendizajes de 2º en comprensión lectora | D64: Departamental | E64: Cajamarca | F64: Porcentaje | G64: Estadística de la Calidad Educativa (ESCALE) - Ministerio de Educación (MINEDU) | L64: 31.6 | M64: 37.1 | N64: 34.1 | O64: 0 | P64: 0 | Q64: 31.4 | AA64: -20 | AB64: ¡Faltan datos! | AC64: Porcentaje de alumnos que logran los aprendizajes de 2º en comprensión lectora DepartamentalCajamarca | AF64: -20 | AG64: ¡Faltan datos! | AH64: P
A65: CUARTO DERECHO: A LA EDUCACIÓN DESDE LA PRIMERA INFANCIA | B65: AGS.20.1 | C65: Porcentaje de alumnos que logran los aprendizajes de 2º en comprensión lectora | D65: Departamental | E65: Callao | F65: Porcentaje | G65: Estadística de la Calidad Educativa (ESCALE) - Ministerio de Educación (MINEDU) | L65: 57.6 | M65: 64.7 | N65: 60.7 | O65: 0 | P65: 0 | Q65: 45.1 | AA65: -56 | AB65: ¡Faltan datos! | AC65: Porcentaje de alumnos que logran los aprendizajes de 2º en comprensión lectora DepartamentalCallao | AF65: -56 | AG65: ¡Faltan datos! | AH65: P
A66: CUARTO DERECHO: A LA EDUCACIÓN DESDE LA PRIMERA INFANCIA | B66: AGS.20.1 | C66: Porcentaje de alumnos que logran los aprendizajes de 2º en comprensión lectora | D66: Departamental | E66: Cusco | F66: Porcentaje | G66: Estadística de la Calidad Educativa (ESCALE) - Ministerio de Educación (MINEDU) | L66: 36.4 | M66: 48.8 | N66: 46.5 | O66: 0 | P66: 0 | Q66: 42.4 | AA66: -26 | AB66: ¡Faltan datos! | AC66: Porcentaje de alumnos que logran los aprendizajes de 2º en comprensión lectora DepartamentalCusco | AF66: -26 | AG66: ¡Faltan datos! | AH66: P
A67: CUARTO DERECHO: A LA EDUCACIÓN DESDE LA PRIMERA INFANCIA | B67: AGS.20.1 | C67: Porcentaje de alumnos que logran los aprendizajes de 2º en comprensión lectora | D67: Departamental | E67: Huancavelica | F67: Porcentaje | G67: Estadística de la Calidad Educativa (ESCALE) - Ministerio de Educación (MINEDU) | L67: 28.7 | M67: 36.1 | N67: 41.7 | O67: 0 | P67: 0 | Q67: 33.6 | Y67: 52 | Z67: 52 | AA67: -20 | AB67: Rojo | AC67: Porcentaje de alumnos que logran los aprendizajes de 2º en comprensión lectora DepartamentalHuancavelica | AD67: 52 | AE67: 52 | AF67: -20 | AG67: Rojo | AH67: P
A68: CUARTO DERECHO: A LA EDUCACIÓN DESDE LA PRIMERA INFANCIA | B68: AGS.20.1 | C68: Porcentaje de alumnos que logran los aprendizajes de 2º en comprensión lectora | D68: Departamental | E68: Huánuco | F68: Porcentaje | G68: Estadística de la Calidad Educativa (ESCALE) - Ministerio de Educación (MINEDU) | L68: 26.4 | M68: 31.9 | N68: 31.9 | O68: 0 | P68: 0 | Q68: 26.7 | Y68: 39.9 | Z68: 39.9 | AA68: -20 | AB68: Rojo | AC68: Porcentaje de alumnos que logran los aprendizajes de 2º en comprensión lectora DepartamentalHuánuco | AD68: 39.9 | AE68: 39.9 | AF68: -20 | AG68: Rojo | AH68: P
A69: CUARTO DERECHO: A LA EDUCACIÓN DESDE LA PRIMERA INFANCIA | B69: AGS.20.1 | C69: Porcentaje de alumnos que logran los aprendizajes de 2º en comprensión lectora | D69: Departamental | E69: Ica | F69: Porcentaje | G69: Estadística de la Calidad Educativa (ESCALE) - Ministerio de Educación (MINEDU) | L69: 49.2 | M69: 58.2 | N69: 52.1 | O69: 0 | P69: 0 | Q69: 42.5 | AA69: -45 | AB69: ¡Faltan datos! | AC69: Porcentaje de alumnos que logran los aprendizajes de 2º en comprensión lectora DepartamentalIca | AF69: -45 | AG69: ¡Faltan datos! | AH69: P
A70: CUARTO DERECHO: A LA EDUCACIÓN DESDE LA PRIMERA INFANCIA | B70: AGS.20.1 | C70: Porcentaje de alumnos que logran los aprendizajes de 2º en comprensión lectora | D70: Departamental | E70: Junín | F70: Porcentaje | G70: Estadística de la Calidad Educativa (ESCALE) - Ministerio de Educación (MINEDU) | L70: 44.4 | M70: 51.7 | N70: 47.8 | O70: 0 | P70: 0 | Q70: 41.9 | AA70: -32 | AB70: ¡Faltan datos! | AC70: Porcentaje de alumnos que logran los aprendizajes de 2º en comprensión lectora DepartamentalJunín | AF70: -32 | AG70: ¡Faltan datos! | AH70: P
A71: CUARTO DERECHO: A LA EDUCACIÓN DESDE LA PRIMERA INFANCIA | B71: AGS.20.1 | C71: Porcentaje de alumnos que logran los aprendizajes de 2º en comprensión lectora | D71: Departamental | E71: La Libertad | F71: Porcentaje | G71: Estadística de la Calidad Educativa (ESCALE) - Ministerio de Educación (MINEDU) | L71: 38.4 | M71: 42.5 | N71: 39.8 | O71: 0 | P71: 0 | Q71: 32.7 | AA71: -30 | AB71: ¡Faltan datos! | AC71: =CONCATENATE(C71,D71,E71) -> Porcentaje de alumnos que logran los aprendizajes de 2º en comprensión lectora DepartamentalLa Libertad | AF71: -30 | AG71: ¡Faltan datos! | AH71: P
A72: CUARTO DERECHO: A LA EDUCACIÓN DESDE LA PRIMERA INFANCIA | B72: AGS.20.1 | C72: Porcentaje de alumnos que logran los aprendizajes de 2º en comprensión lectora | D72: Departamental | E72: Lambayeque | F72: Porcentaje | G72: Estadística de la Calidad Educativa (ESCALE) - Ministerio de Educación (MINEDU) | L72: 43.1 | M72: 46.6 | N72: 48.3 | O72: 0 | P72: 0 | Q72: 36.7 | Y72: 60 | Z72: 60 | AA72: =+FORECAST(2026,M72:S72,$M$6:$S$6) -> -35 | AB72: =IF(OR(Z72="",AA72="",Z72="No se puede proyectar",AA72="Sin datos",AH72=""),"¡Faltan datos!", IF(AH72="P", IF(AA72>=(Z72*85%),"Verde", IF(AND(AA72<(Z72*85%),AA72>=(Z72*50%)),"Ambar", IF(AA72<(Z72*50%),"Rojo","Verificar!"))), IF(AH72="N", IF(AA72<=(Z72*115%),"Verde", IF(AND(AA72<=(Z72*150%),AA72>(Z72*115%)),"Ambar", IF(AA72>(Z72*150%),"Rojo","Verificar!"))),"ERROR"))) -> Rojo | AC72: Porcentaje de alumnos que logran los aprendizajes de 2º en comprensión lectora DepartamentalLambayeque | AD72: 60 | AE72: 60 | AF72: -35 | AG72: Rojo | AH72: P
A73: CUARTO DERECHO: A LA EDUCACIÓN DESDE LA PRIMERA INFANCIA | B73: AGS.20.1 | C73: Porcentaje de alumnos que logran los aprendizajes de 2º en comprensión lectora | D73: Departamental | E73: Lima Metropolitana | F73: Porcentaje | G73: Estadística de la Calidad Educativa (ESCALE) - Ministerio de Educación (MINEDU) | L73: 55.8 | M73: 61.2 | N73: 55.6 | O73: 0 | P73: 0 | Q73: 44.9 | AA73: -47 | AB73: ¡Faltan datos! | AC73: Porcentaje de alumnos que logran los aprendizajes de 2º en comprensión lectora DepartamentalLima Metropolitana | AF73: -47 | AG73: ¡Faltan datos! | AH73: P
A74: CUARTO DERECHO: A LA EDUCACIÓN DESDE LA PRIMERA INFANCIA | B74: AGS.20.1 | C74: Porcentaje de alumnos que logran los aprendizajes de 2º en comprensión lectora | D74: Departamental | E74: Loreto | F74: Porcentaje | G74: Estadística de la Calidad Educativa (ESCALE) - Ministerio de Educación (MINEDU) | L74: 13.2 | M74: 18.1 | N74: 17.7 | O74: 0 | P74: 0 | Q74: 11.4 | AA74: -19 | AB74: ¡Faltan datos! | AC74: Porcentaje de alumnos que logran los aprendizajes de 2º en comprensión lectora DepartamentalLoreto | AF74: -19 | AG74: ¡Faltan datos! | AH74: P
A75: CUARTO DERECHO: A LA EDUCACIÓN DESDE LA PRIMERA INFANCIA | B75: AGS.20.1 | C75: Porcentaje de alumnos que logran los aprendizajes de 2º en comprensión lectora | D75: Departamental | E75: Madre de Dios | F75: Porcentaje | G75: Estadística de la Calidad Educativa (ESCALE) - Ministerio de Educación (MINEDU) | L75: 33.6 | M75: 40 | N75: 41.3 | O75: 0 | P75: 0 | Q75: 25.6 | Y75: 50 | Z75: 50 | AA75: -42 | AB75: Rojo | AC75: Porcentaje de alumnos que logran los aprendizajes de 2º en comprensión lectora DepartamentalMadre de Dios | AD75: 50 | AE75: 50 | AF75: -42 | AG75: Rojo | AH75: P
A76: CUARTO DERECHO: A LA EDUCACIÓN DESDE LA PRIMERA INFANCIA | B76: AGS.20.1 | C76: Porcentaje de alumnos que logran los aprendizajes de 2º en comprensión lectora | D76: Departamental | E76: Moquegua | F76: Porcentaje | G76: Estadística de la Calidad Educativa (ESCALE) - Ministerio de Educación (MINEDU) | L76: 69.1 | M76: 73.9 | N76: 69.2 | O76: 0 | P76: 0 | Q76: 52.1 | AA76: -62 | AB76: ¡Faltan datos! | AC76: Porcentaje de alumnos que logran los aprendizajes de 2º en comprensión lectora DepartamentalMoquegua | AF76: -62 | AG76: ¡Faltan datos! | AH76: P
A77: CUARTO DERECHO: A LA EDUCACIÓN DESDE LA PRIMERA INFANCIA | B77: AGS.20.1 | C77: Porcentaje de alumnos que logran los aprendizajes de 2º en comprensión lectora | D77: Departamental | E77: Pasco | F77: Porcentaje | G77: Estadística de la Calidad Educativa (ESCALE) - Ministerio de Educación (MINEDU) | L77: 43.2 | M77: 46.9 | N77: 45 | O77: 0 | P77: 0 | Q77: 30.8 | AA77: -45 | AB77: ¡Faltan datos! | AC77: Porcentaje de alumnos que logran los aprendizajes de 2º en comprensión lectora DepartamentalPasco | AF77: -45 | AG77: ¡Faltan datos! | AH77: P
A78: CUARTO DERECHO: A LA EDUCACIÓN DESDE LA PRIMERA INFANCIA | B78: AGS.20.1 | C78: Porcentaje de alumnos que logran los aprendizajes de 2º en comprensión lectora | D78: Departamental | E78: Piura | F78: Porcentaje | G78: Estadística de la Calidad Educativa (ESCALE) - Ministerio de Educación (MINEDU) | L78: 47.6 | M78: 51.8 | N78: 45.8 | O78: 0 | P78: 0 | Q78: 33.4 | AA78: -48 | AB78: ¡Faltan datos! | AC78: Porcentaje de alumnos que logran los aprendizajes de 2º en comprensión lectora DepartamentalPiura | AF78: -48 | AG78: ¡Faltan datos! | AH78: P
A79: CUARTO DERECHO: A LA EDUCACIÓN DESDE LA PRIMERA INFANCIA | B79: AGS.20.1 | C79: Porcentaje de alumnos que logran los aprendizajes de 2º en comprensión lectora | D79: Departamental | E79: Provincia Lima | F79: Porcentaje | G79: Estadística de la Calidad Educativa (ESCALE) - Ministerio de Educación (MINEDU) | L79: 45.9 | M79: 54.3 | N79: 51 | O79: 0 | P79: 0 | Q79: 39.2 | AA79: -44 | AB79: ¡Faltan datos! | AC79: Porcentaje de alumnos que logran los aprendizajes de 2º en comprensión lectora DepartamentalProvincia Lima | AF79: -44 | AG79: ¡Faltan datos! | AH79: P
A80: CUARTO DERECHO: A LA EDUCACIÓN DESDE LA PRIMERA INFANCIA | B80: AGS.20.1 | C80: Porcentaje de alumnos que logran los aprendizajes de 2º en comprensión lectora | D80: Departamental | E80: Puno | F80: Porcentaje | G80: Estadística de la Calidad Educativa (ESCALE) - Ministerio de Educación (MINEDU) | L80: 30.2 | M80: 32.8 | N80: 38.8 | O80: 0 | P80: 0 | Q80: 36.4 | Y80: 50 | Z80: 50 | AA80: -7 | AB80: Rojo | AC80: Porcentaje de alumnos que logran los aprendizajes de 2º en comprensión lectora DepartamentalPuno | AD80: 50 | AE80: 50 | AF80: -7 | AG80: Rojo | AH80: P
A81: CUARTO DERECHO: A LA EDUCACIÓN DESDE LA PRIMERA INFANCIA | B81: AGS.20.1 | C81: Porcentaje de alumnos que logran los aprendizajes de 2º en comprensión lectora | D81: Departamental | E81: Región Lima | F81: Porcentaje | G81: Estadística de la Calidad Educativa (ESCALE) - Ministerio de Educación (MINEDU) | L81: 0 | M81: 0 | N81: 0 | O81: 0 | P81: 0 | Y81: 85 | Z81: 85 | AA81: 0 | AB81: Rojo | AC81: Porcentaje de alumnos que logran los aprendizajes de 2º en comprensión lectora DepartamentalRegión Lima | AD81: 85 | AE81: 85 | AF81: 0 | AG81: Rojo | AH81: P
A82: CUARTO DERECHO: A LA EDUCACIÓN DESDE LA PRIMERA INFANCIA | B82: AGS.20.1 | C82: Porcentaje de alumnos que logran los aprendizajes de 2º en comprensión lectora | D82: Departamental | E82: San Martín | F82: Porcentaje | G82: Estadística de la Calidad Educativa (ESCALE) - Ministerio de Educación (MINEDU) | L82: 35.7 | M82: 36.7 | N82: 38.5 | O82: 0 | P82: 0 | Q82: 25.8 | AA82: -34 | AB82: ¡Faltan datos! | AC82: Porcentaje de alumnos que logran los aprendizajes de 2º en comprensión lectora DepartamentalSan Martín | AF82: -34 | AG82: ¡Faltan datos! | AH82: P
A83: CUARTO DERECHO: A LA EDUCACIÓN DESDE LA PRIMERA INFANCIA | B83: AGS.20.1 | C83: Porcentaje de alumnos que logran los aprendizajes de 2º en comprensión lectora | D83: Departamental | E83: Tacna | F83: Porcentaje | G83: Estadística de la Calidad Educativa (ESCALE) - Ministerio de Educación (MINEDU) | L83: 67.3 | M83: 78.1 | N83: 76.8 | O83: 0 | P83: 0 | Q83: 59.1 | AA83: -61 | AB83: ¡Faltan datos! | AC83: Porcentaje de alumnos que logran los aprendizajes de 2º en comprensión lectora DepartamentalTacna | AF83: -61 | AG83: ¡Faltan datos! | AH83: P
A84: CUARTO DERECHO: A LA EDUCACIÓN DESDE LA PRIMERA INFANCIA | B84: AGS.20.1 | C84: Porcentaje de alumnos que logran los aprendizajes de 2º en comprensión lectora | D84: Departamental | E84: Tumbes | F84: Porcentaje | G84: Estadística de la Calidad Educativa (ESCALE) - Ministerio de Educación (MINEDU) | L84: 38.9 | M84: 43.3 | N84: 33.6 | O84: 0 | P84: 0 | Q84: 26.5 | Y84: 50 | Z84: 50 | AA84: -40 | AB84: Rojo | AC84: Porcentaje de alumnos que logran los aprendizajes de 2º en comprensión lectora DepartamentalTumbes | AD84: 50 | AE84: 50 | AF84: -40 | AG84: Rojo | AH84: P
A85: CUARTO DERECHO: A LA EDUCACIÓN DESDE LA PRIMERA INFANCIA | B85: AGS.20.1 | C85: Porcentaje de alumnos que logran los aprendizajes de 2º en comprensión lectora | D85: Departamental | E85: Ucayali | F85: Porcentaje | G85: Estadística de la Calidad Educativa (ESCALE) - Ministerio de Educación (MINEDU) | L85: 21.8 | M85: 29 | N85: 25.6 | O85: 0 | P85: 0 | Q85: 17.9 | Y85: 40.6 | Z85: 40.6 | AA85: -29 | AB85: Rojo | AC85: Porcentaje de alumnos que logran los aprendizajes de 2º en comprensión lectora DepartamentalUcayali | AD85: 40.6 | AE85: 40.6 | AF85: -29 | AG85: Rojo | AH85: P
A86: CUARTO DERECHO: A LA EDUCACIÓN DESDE LA PRIMERA INFANCIA | B86: AGS.20.2 | C86: Porcentaje de alumnos que logran los aprendizajes de 2º en matemáticas | D86: Departamental | E86: Amazonas | F86: Porcentaje | G86: Estadística de la Calidad Educativa (ESCALE) - Ministerio de Educación (MINEDU) | L86: 35.1 | M86: 32 | N86: 38.7 | O86: 0 | P86: 0 | Q86: 18 | AA86: -42 | AB86: ¡Faltan datos! | AC86: Porcentaje de alumnos que logran los aprendizajes de 2º en matemáticas DepartamentalAmazonas | AF86: -42 | AG86: ¡Faltan datos! | AH86: P
A87: CUARTO DERECHO: A LA EDUCACIÓN DESDE LA PRIMERA INFANCIA | B87: AGS.20.2 | C87: Porcentaje de alumnos que logran los aprendizajes de 2º en matemáticas | D87: Departamental | E87: Áncash | F87: Porcentaje | G87: Estadística de la Calidad Educativa (ESCALE) - Ministerio de Educación (MINEDU) | L87: 17.8 | M87: 24.6 | N87: 26.2 | O87: 0 | P87: 0 | Q87: 15.7 | AA87: -26 | AB87: ¡Faltan datos! | AC87: Porcentaje de alumnos que logran los aprendizajes de 2º en matemáticas DepartamentalÁncash | AF87: -26 | AG87: ¡Faltan datos! | AH87: P
A88: CUARTO DERECHO: A LA EDUCACIÓN DESDE LA PRIMERA INFANCIA | B88: AGS.20.2 | C88: Porcentaje de alumnos que logran los aprendizajes de 2º en matemáticas | D88: Departamental | E88: Apurímac | F88: Porcentaje | G88: Estadística de la Calidad Educativa (ESCALE) - Ministerio de Educación (MINEDU) | L88: 20.8 | M88: 17.6 | N88: 35.1 | O88: 0 | P88: 0 | Q88: 21.7 | AA88: -9 | AB88: ¡Faltan datos! | AC88: Porcentaje de alumnos que logran los aprendizajes de 2º en matemáticas DepartamentalApurímac | AF88: -9 | AG88: ¡Faltan datos! | AH88: P
A89: CUARTO DERECHO: A LA EDUCACIÓN DESDE LA PRIMERA INFANCIA | B89: AGS.20.2 | C89: Porcentaje de alumnos que logran los aprendizajes de 2º en matemáticas | D89: Departamental | E89: Arequipa | F89: Porcentaje | G89: Estadística de la Calidad Educativa (ESCALE) - Ministerio de Educación (MINEDU) | L89: 32.9 | M89: 31.8 | N89: 38 | O89: 0 | P89: 0 | Q89: 24.7 | Y89: 58 | Z89: 58 | AA89: -28 | AB89: Rojo | AC89: Porcentaje de alumnos que logran los aprendizajes de 2º en matemáticas DepartamentalArequipa | AD89: 58 | AE89: 58 | AF89: -28 | AG89: Rojo | AH89: P
A90: CUARTO DERECHO: A LA EDUCACIÓN DESDE LA PRIMERA INFANCIA | B90: AGS.20.2 | C90: Porcentaje de alumnos que logran los aprendizajes de 2º en matemáticas | D90: Departamental | E90: Ayacucho | F90: Porcentaje | G90: Estadística de la Calidad Educativa (ESCALE) - Ministerio de Educación (MINEDU) | L90: 25.6 | M90: 30.1 | N90: 48.6 | O90: 0 | P90: 0 | Q90: 17.2 | Y90: 68 | Z90: 68 | AA90: -48 | AB90: Rojo | AC90: Porcentaje de alumnos que logran los aprendizajes de 2º en matemáticas DepartamentalAyacucho | AD90: 68 | AE90: 68 | AF90: -48 | AG90: Rojo | AH90: P
A91: CUARTO DERECHO: A LA EDUCACIÓN DESDE LA PRIMERA INFANCIA | B91: AGS.20.2 | C91: Porcentaje de alumnos que logran los aprendizajes de 2º en matemáticas | D91: Departamental | E91: Cajamarca | F91: Porcentaje | G91: Estadística de la Calidad Educativa (ESCALE) - Ministerio de Educación (MINEDU) | L91: 23.4 | M91: 26 | N91: 31.9 | O91: 0 | P91: 0 | Q91: 19.2 | AA91: -26 | AB91: ¡Faltan datos! | AC91: Porcentaje de alumnos que logran los aprendizajes de 2º en matemáticas DepartamentalCajamarca | AF91: -26 | AG91: ¡Faltan datos! | AH91: P
A92: CUARTO DERECHO: A LA EDUCACIÓN DESDE LA PRIMERA INFANCIA | B92: AGS.20.2 | C92: Porcentaje de alumnos que logran los aprendizajes de 2º en matemáticas | D92: Departamental | E92: Callao | F92: Porcentaje | G92: Estadística de la Calidad Educativa (ESCALE) - Ministerio de Educación (MINEDU) | L92: 31.9 | M92: 35.1 | N92: 44.6 | O92: 0 | P92: 0 | Q92: 18.3 | AA92: -51 | AB92: ¡Faltan datos! | AC92: Porcentaje de alumnos que logran los aprendizajes de 2º en matemáticas DepartamentalCallao | AF92: -51 | AG92: ¡Faltan datos! | AH92: P
A93: CUARTO DERECHO: A LA EDUCACIÓN DESDE LA PRIMERA INFANCIA | B93: AGS.20.2 | C93: Porcentaje de alumnos que logran los aprendizajes de 2º en matemáticas | D93: Departamental | E93: Cusco | F93: Porcentaje | G93: Estadística de la Calidad Educativa (ESCALE) - Ministerio de Educación (MINEDU) | L93: 24.5 | M93: 27.7 | N93: 37 | O93: 0 | P93: 0 | Q93: 21.3 | AA93: -28 | AB93: ¡Faltan datos! | AC93: Porcentaje de alumnos que logran los aprendizajes de 2º en matemáticas DepartamentalCusco | AF93: -28 | AG93: ¡Faltan datos! | AH93: P
A94: CUARTO DERECHO: A LA EDUCACIÓN DESDE LA PRIMERA INFANCIA | B94: AGS.20.2 | C94: Porcentaje de alumnos que logran los aprendizajes de 2º en matemáticas | D94: Departamental | E94: Huancavelica | F94: Porcentaje | G94: Estadística de la Calidad Educativa (ESCALE) - Ministerio de Educación (MINEDU) | L94: 21 | M94: 22.9 | N94: 40.5 | O94: 0 | P94: 0 | Q94: 17.7 | Y94: 51 | Z94: 51 | AA94: -30 | AB94: Rojo | AC94: Porcentaje de alumnos que logran los aprendizajes de 2º en matemáticas DepartamentalHuancavelica | AD94: 51 | AE94: 51 | AF94: -30 | AG94: Rojo | AH94: P
A95: CUARTO DERECHO: A LA EDUCACIÓN DESDE LA PRIMERA INFANCIA | B95: AGS.20.2 | C95: Porcentaje de alumnos que logran los aprendizajes de 2º en matemáticas | D95: Departamental | E95: Huánuco | F95: Porcentaje | G95: Estadística de la Calidad Educativa (ESCALE) - Ministerio de Educación (MINEDU) | L95: 16 | M95: 17.2 | N95: 28.3 | O95: 0 | P95: 0 | Q95: 12.7 | Y95: 36.3 | Z95: 36.3 | AA95: -22 | AB95: Rojo | AC95: Porcentaje de alumnos que logran los aprendizajes de 2º en matemáticas DepartamentalHuánuco | AD95: 36.3 | AE95: 36.3 | AF95: -22 | AG95: Rojo | AH95: P
A96: CUARTO DERECHO: A LA EDUCACIÓN DESDE LA PRIMERA INFANCIA | B96: AGS.20.2 | C96: Porcentaje de alumnos que logran los aprendizajes de 2º en matemáticas | D96: Departamental | E96: Ica | F96: Porcentaje | G96: Estadística de la Calidad Educativa (ESCALE) - Ministerio de Educación (MINEDU) | L96: 32.2 | M96: 34.6 | N96: 39.7 | O96: 0 | P96: 0 | Q96: 22.8 | AA96: -38 | AB96: ¡Faltan datos! | AC96: Porcentaje de alumnos que logran los aprendizajes de 2º en matemáticas DepartamentalIca | AF96: -38 | AG96: ¡Faltan datos! | AH96: P
A97: CUARTO DERECHO: A LA EDUCACIÓN DESDE LA PRIMERA INFANCIA | B97: AGS.20.2 | C97: Porcentaje de alumnos que logran los aprendizajes de 2º en matemáticas | D97: Departamental | E97: Junín | F97: Porcentaje | G97: Estadística de la Calidad Educativa (ESCALE) - Ministerio de Educación (MINEDU) | L97: 30.1 | M97: 32.2 | N97: 40.3 | O97: 0 | P97: 0 | Q97: 22 | AA97: -36 | AB97: ¡Faltan datos! | AC97: Porcentaje de alumnos que logran los aprendizajes de 2º en matemáticas DepartamentalJunín | AF97: -36 | AG97: ¡Faltan datos! | AH97: P
A98: CUARTO DERECHO: A LA EDUCACIÓN DESDE LA PRIMERA INFANCIA | B98: AGS.20.2 | C98: Porcentaje de alumnos que logran los aprendizajes de 2º en matemáticas | D98: Departamental | E98: La Libertad | F98: Porcentaje | G98: Estadística de la Calidad Educativa (ESCALE) - Ministerio de Educación (MINEDU) | L98: 21.8 | M98: 23.2 | N98: 30.5 | O98: 0 | P98: 0 | Q98: 13.3 | AA98: -32 | AB98: ¡Faltan datos! | AC98: Porcentaje de alumnos que logran los aprendizajes de 2º en matemáticas DepartamentalLa Libertad | AF98: -32 | AG98: ¡Faltan datos! | AH98: P
A99: CUARTO DERECHO: A LA EDUCACIÓN DESDE LA PRIMERA INFANCIA | B99: AGS.20.2 | C99: Porcentaje de alumnos que logran los aprendizajes de 2º en matemáticas | D99: Departamental | E99: Lambayeque | F99: Porcentaje | G99: Estadística de la Calidad Educativa (ESCALE) - Ministerio de Educación (MINEDU) | L99: 22.7 | M99: 21.9 | N99: 35.8 | O99: 0 | P99: 0 | Q99: 14.6 | Y99: 43 | Z99: 43 | AA99: -31 | AB99: Rojo | AC99: Porcentaje de alumnos que logran los aprendizajes de 2º en matemáticas DepartamentalLambayeque | AD99: 43 | AE99: 43 | AF99: -31 | AG99: Rojo | AH99: P
A100: CUARTO DERECHO: A LA EDUCACIÓN DESDE LA PRIMERA INFANCIA | B100: AGS.20.2 | C100: Porcentaje de alumnos que logran los aprendizajes de 2º en matemáticas | D100: Departamental | E100: Lima | F100: Porcentaje | G100: Estadística de la Calidad Educativa (ESCALE) - Ministerio de Educación (MINEDU) | L100: 31.3 | M100: 29 | N100: 34.5 | O100: 0 | P100: 0 | Q100: 17 | AA100: -37 | AB100: ¡Faltan datos! | AC100: Porcentaje de alumnos que logran los aprendizajes de 2º en matemáticas DepartamentalLima | AF100: -37 | AG100: ¡Faltan datos! | AH100: P
A101: CUARTO DERECHO: A LA EDUCACIÓN DESDE LA PRIMERA INFANCIA | B101: AGS.20.2 | C101: Porcentaje de alumnos que logran los aprendizajes de 2º en matemáticas | D101: Departamental | E101: Loreto | F101: Porcentaje | G101: Estadística de la Calidad Educativa (ESCALE) - Ministerio de Educación (MINEDU) | L101: 4.8 | M101: 5.8 | N101: 12.4 | O101: 0 | P101: 0 | Q101: 3.8 | AA101: -10 | AB101: ¡Faltan datos! | AC101: Porcentaje de alumnos que logran los aprendizajes de 2º en matemáticas DepartamentalLoreto | AF101: -10 | AG101: ¡Faltan datos! | AH101: P
A102: CUARTO DERECHO: A LA EDUCACIÓN DESDE LA PRIMERA INFANCIA | B102: AGS.20.2 | C102: Porcentaje de alumnos que logran los aprendizajes de 2º en matemáticas | D102: Departamental | E102: Madre de Dios | F102: Porcentaje | G102: Estadística de la Calidad Educativa (ESCALE) - Ministerio de Educación (MINEDU) | L102: 17.1 | M102: 17.6 | N102: 26.6 | O102: 0 | P102: 0 | Q102: 8.3 | Y102: 50 | Z102: 50 | AA102: -30 | AB102: Rojo | AC102: Porcentaje de alumnos que logran los aprendizajes de 2º en matemáticas DepartamentalMadre de Dios | AD102: 50 | AE102: 50 | AF102: -30 | AG102: Rojo | AH102: P
A103: CUARTO DERECHO: A LA EDUCACIÓN DESDE LA PRIMERA INFANCIA | B103: AGS.20.2 | C103: Porcentaje de alumnos que logran los aprendizajes de 2º en matemáticas | D103: Departamental | E103: Moquegua | F103: Porcentaje | G103: Estadística de la Calidad Educativa (ESCALE) - Ministerio de Educación (MINEDU) | L103: 52.7 | M103: 45 | N103: 53.7 | O103: 0 | P103: 0 | Q103: 26.2 | AA103: -57 | AB103: ¡Faltan datos! | AC103: Porcentaje de alumnos que logran los aprendizajes de 2º en matemáticas DepartamentalMoquegua | AF103: -57 | AG103: ¡Faltan datos! | AH103: P
A104: CUARTO DERECHO: A LA EDUCACIÓN DESDE LA PRIMERA INFANCIA | B104: AGS.20.2 | C104: Porcentaje de alumnos que logran los aprendizajes de 2º en matemáticas | D104: Departamental | E104: Pasco | F104: Porcentaje | G104: Estadística de la Calidad Educativa (ESCALE) - Ministerio de Educación (MINEDU) | L104: 32 | M104: 29.7 | N104: 35.5 | O104: 0 | P104: 0 | Q104: 17.3 | AA104: -38 | AB104: ¡Faltan datos! | AC104: Porcentaje de alumnos que logran los aprendizajes de 2º en matemáticas DepartamentalPasco | AF104: -38 | AG104: ¡Faltan datos! | AH104: P
A105: CUARTO DERECHO: A LA EDUCACIÓN DESDE LA PRIMERA INFANCIA | B105: AGS.20.2 | C105: Porcentaje de alumnos que logran los aprendizajes de 2º en matemáticas | D105: Departamental | E105: Piura | F105: Porcentaje | G105: Estadística de la Calidad Educativa (ESCALE) - Ministerio de Educación (MINEDU) | L105: 29.7 | M105: 31.8 | N105: 37.8 | O105: 0 | P105: 0 | Q105: 16.2 | AA105: -45 | AB105: ¡Faltan datos! | AC105: Porcentaje de alumnos que logran los aprendizajes de 2º en matemáticas DepartamentalPiura | AF105: -45 | AG105: ¡Faltan datos! | AH105: P
A106: CUARTO DERECHO: A LA EDUCACIÓN DESDE LA PRIMERA INFANCIA | B106: AGS.20.2 | C106: Porcentaje de alumnos que logran los aprendizajes de 2º en matemáticas | D106: Departamental | E106: Provincia Lima | F106: Porcentaje | G106: Estadística de la Calidad Educativa (ESCALE) - Ministerio de Educación (MINEDU) | L106: 24.6 | M106: 27.8 | N106: 37.1 | O106: 0 | P106: 0 | Q106: 18 | AA106: -34 | AB106: ¡Faltan datos! | AC106: Porcentaje de alumnos que logran los aprendizajes de 2º en matemáticas DepartamentalProvincia Lima | AF106: -34 | AG106: ¡Faltan datos! | AH106: P
A107: CUARTO DERECHO: A LA EDUCACIÓN DESDE LA PRIMERA INFANCIA | B107: AGS.20.2 | C107: Porcentaje de alumnos que logran los aprendizajes de 2º en matemáticas | D107: Departamental | E107: Puno | F107: Porcentaje | G107: Estadística de la Calidad Educativa (ESCALE) - Ministerio de Educación (MINEDU) | L107: 30.2 | M107: 32.8 | N107: 38.8 | O107: 0 | P107: 0 | Q107: 19.9 | Y107: 60 | Z107: 60 | AA107: -40 | AB107: Rojo | AC107: Porcentaje de alumnos que logran los aprendizajes de 2º en matemáticas DepartamentalPuno | AD107: 60 | AE107: 60 | AF107: -40 | AG107: Rojo | AH107: P
A108: CUARTO DERECHO: A LA EDUCACIÓN DESDE LA PRIMERA INFANCIA | B108: AGS.20.2 | C108: Porcentaje de alumnos que logran los aprendizajes de 2º en matemáticas | D108: Departamental | E108: Región Lima | F108: Porcentaje | G108: Estadística de la Calidad Educativa (ESCALE) - Ministerio de Educación (MINEDU) | L108: 0 | M108: 0 | N108: 0 | O108: 0 | P108: 0 | Y108: 65 | Z108: 65 | AA108: 0 | AB108: Rojo | AC108: Porcentaje de alumnos que logran los aprendizajes de 2º en matemáticas DepartamentalRegión Lima | AD108: 65 | AE108: 65 | AF108: 0 | AG108: Rojo | AH108: P
A109: CUARTO DERECHO: A LA EDUCACIÓN DESDE LA PRIMERA INFANCIA | B109: AGS.20.2 | C109: Porcentaje de alumnos que logran los aprendizajes de 2º en matemáticas | D109: Departamental | E109: San Martín | F109: Porcentaje | G109: Estadística de la Calidad Educativa (ESCALE) - Ministerio de Educación (MINEDU) | L109: 22.1 | M109: 19.8 | N109: 30.9 | O109: 0 | P109: 0 | Q109: 13.1 | AA109: -27 | AB109: ¡Faltan datos! | AC109: Porcentaje de alumnos que logran los aprendizajes de 2º en matemáticas DepartamentalSan Martín | AF109: -27 | AG109: ¡Faltan datos! | AH109: P
A110: CUARTO DERECHO: A LA EDUCACIÓN DESDE LA PRIMERA INFANCIA | B110: AGS.20.2 | C110: Porcentaje de alumnos que logran los aprendizajes de 2º en matemáticas | D110: Departamental | E110: Tacna | F110: Porcentaje | G110: Estadística de la Calidad Educativa (ESCALE) - Ministerio de Educación (MINEDU) | L110: 51 | M110: 53.5 | N110: 64.3 | O110: 0 | P110: 0 | Q110: 36.6 | AA110: -57 | AB110: ¡Faltan datos! | AC110: Porcentaje de alumnos que logran los aprendizajes de 2º en matemáticas DepartamentalTacna | AF110: -57 | AG110: ¡Faltan datos! | AH110: P
A111: CUARTO DERECHO: A LA EDUCACIÓN DESDE LA PRIMERA INFANCIA | B111: AGS.20.2 | C111: Porcentaje de alumnos que logran los aprendizajes de 2º en matemáticas | D111: Departamental | E111: Tumbes | F111: Porcentaje | G111: Estadística de la Calidad Educativa (ESCALE) - Ministerio de Educación (MINEDU) | L111: 17.4 | M111: 21.9 | N111: 21.4 | O111: 0 | P111: 0 | Q111: 10.1 | Y111: 50 | Z111: 50 | AA111: -30 | AB111: Rojo | AC111: Porcentaje de alumnos que logran los aprendizajes de 2º en matemáticas DepartamentalTumbes | AD111: 50 | AE111: 50 | AF111: -30 | AG111: Rojo | AH111: P
A112: CUARTO DERECHO: A LA EDUCACIÓN DESDE LA PRIMERA INFANCIA | B112: AGS.20.2 | C112: Porcentaje de alumnos que logran los aprendizajes de 2º en matemáticas | D112: Departamental | E112: Ucayali | F112: Porcentaje | G112: Estadística de la Calidad Educativa (ESCALE) - Ministerio de Educación (MINEDU) | L112: 7.8 | M112: 10.3 | N112: 15.9 | O112: 0 | P112: 0 | Q112: 6.8 | Y112: 30.9 | Z112: 30.9 | AA112: -14 | AB112: Rojo | AC112: Porcentaje de alumnos que logran los aprendizajes de 2º en matemáticas DepartamentalUcayali | AD112: 30.9 | AE112: 30.9 | AF112: -14 | AG112: Rojo | AH112: P
A113: CUARTO DERECHO: A LA EDUCACIÓN DESDE LA PRIMERA INFANCIA | B113: AGS.23.3 | C113: Porcentaje de escuelas que cuentan con acceso a Internet, primaria (% del total) | D113: Departamental | E113: Amazonas | F113: Porcentaje | G113: Estadística de la Calidad Educativa (ESCALE) - Ministerio de Educación (MINEDU) | L113: 8.2 | M113: 9.7 | N113: 11.1 | O113: 10.1 | P113: 11.5 | Q113: 21.1 | R113: 10.2 | S113: 35.7 | AA113: 41 | AB113: ¡Faltan datos! | AC113: Porcentaje de escuelas que cuentan con acceso a Internet, primaria (% del total)DepartamentalAmazonas | AF113: 41 | AG113: ¡Faltan datos! | AH113: P
A114: CUARTO DERECHO: A LA EDUCACIÓN DESDE LA PRIMERA INFANCIA | B114: AGS.23.3 | C114: Porcentaje de escuelas que cuentan con acceso a Internet, primaria (% del total) | D114: Departamental | E114: Áncash | F114: Porcentaje | G114: Estadística de la Calidad Educativa (ESCALE) - Ministerio de Educación (MINEDU) | L114: 21.5 | M114: 28.2 | N114: 35.8 | O114: 34.4 | P114: 37.4 | Q114: 49.9 | R114: 37.3 | S114: 57.3 | AA114: 70 | AB114: ¡Faltan datos! | AC114: Porcentaje de escuelas que cuentan con acceso a Internet, primaria (% del total)DepartamentalÁncash | AF114: 70 | AG114: ¡Faltan datos! | AH114: P
A115: CUARTO DERECHO: A LA EDUCACIÓN DESDE LA PRIMERA INFANCIA | B115: AGS.23.3 | C115: Porcentaje de escuelas que cuentan con acceso a Internet, primaria (% del total) | D115: Departamental | E115: Apurímac | F115: Porcentaje | G115: Estadística de la Calidad Educativa (ESCALE) - Ministerio de Educación (MINEDU) | L115: 14.7 | M115: 19.6 | N115: 23.3 | O115: 23.3 | P115: 27.1 | Q115: 48.2 | R115: 34.6 | S115: 50.7 | AA115: 73 | AB115: ¡Faltan datos! | AC115: Porcentaje de escuelas que cuentan con acceso a Internet, primaria (% del total)DepartamentalApurímac | AF115: 73 | AG115: ¡Faltan datos! | AH115: P
A116: CUARTO DERECHO: A LA EDUCACIÓN DESDE LA PRIMERA INFANCIA | B116: AGS.23.3 | C116: Porcentaje de escuelas que cuentan con acceso a Internet, primaria (% del total) | D116: Departamental | E116: Arequipa | F116: Porcentaje | G116: Estadística de la Calidad Educativa (ESCALE) - Ministerio de Educación (MINEDU) | L116: 48.4 | M116: 54.5 | N116: 57.5 | O116: 57.7 | P116: 63 | Q116: 66.1 | R116: 61.9 | S116: 60.8 | AA116: 71 | AB116: ¡Faltan datos! | AC116: Porcentaje de escuelas que cuentan con acceso a Internet, primaria (% del total)DepartamentalArequipa | AF116: 71 | AG116: ¡Faltan datos! | AH116: P
A117: CUARTO DERECHO: A LA EDUCACIÓN DESDE LA PRIMERA INFANCIA | B117: AGS.23.3 | C117: Porcentaje de escuelas que cuentan con acceso a Internet, primaria (% del total) | D117: Departamental | E117: Ayacucho | F117: Porcentaje | G117: Estadística de la Calidad Educativa (ESCALE) - Ministerio de Educación (MINEDU) | L117: 16 | M117: 23.1 | N117: 24.7 | O117: 21.6 | P117: 27.3 | Q117: 47 | R117: 36.1 | S117: 55.4 | AA117: 75 | AB117: ¡Faltan datos! | AC117: Porcentaje de escuelas que cuentan con acceso a Internet, primaria (% del total)DepartamentalAyacucho | AF117: 75 | AG117: ¡Faltan datos! | AH117: P
A118: CUARTO DERECHO: A LA EDUCACIÓN DESDE LA PRIMERA INFANCIA | B118: AGS.23.3 | C118: Porcentaje de escuelas que cuentan con acceso a Internet, primaria (% del total) | D118: Departamental | E118: Cajamarca | F118: Porcentaje | G118: Estadística de la Calidad Educativa (ESCALE) - Ministerio de Educación (MINEDU) | L118: 9.6 | M118: 12.4 | N118: 23 | O118: 21.6 | P118: 21.6 | Q118: 37.1 | R118: 18.8 | S118: 50 | AA118: 61 | AB118: ¡Faltan datos! | AC118: Porcentaje de escuelas que cuentan con acceso a Internet, primaria (% del total)DepartamentalCajamarca | AF118: 61 | AG118: ¡Faltan datos! | AH118: P
A119: CUARTO DERECHO: A LA EDUCACIÓN DESDE LA PRIMERA INFANCIA | B119: AGS.23.3 | C119: Porcentaje de escuelas que cuentan con acceso a Internet, primaria (% del total) | D119: Departamental | E119: Callao | F119: Porcentaje | G119: Estadística de la Calidad Educativa (ESCALE) - Ministerio de Educación (MINEDU) | L119: 76 | M119: 76.4 | N119: 77.6 | O119: 80.8 | P119: 83.1 | Q119: 79.7 | R119: 79.9 | S119: 61.5 | AA119: 65 | AB119: ¡Faltan datos! | AC119: Porcentaje de escuelas que cuentan con acceso a Internet, primaria (% del total)DepartamentalCallao | AF119: 65 | AG119: ¡Faltan datos! | AH119: P
A120: CUARTO DERECHO: A LA EDUCACIÓN DESDE LA PRIMERA INFANCIA | B120: AGS.23.3 | C120: Porcentaje de escuelas que cuentan con acceso a Internet, primaria (% del total) | D120: Departamental | E120: Cusco | F120: Porcentaje | G120: Estadística de la Calidad Educativa (ESCALE) - Ministerio de Educación (MINEDU) | L120: 21.8 | M120: 31.7 | N120: 35.8 | O120: 34.4 | P120: 35.1 | Q120: 49.2 | R120: 35.5 | S120: 54.2 | AA120: 63 | AB120: ¡Faltan datos! | AC120: Porcentaje de escuelas que cuentan con acceso a Internet, primaria (% del total)DepartamentalCusco | AF120: 63 | AG120: ¡Faltan datos! | AH120: P
A121: CUARTO DERECHO: A LA EDUCACIÓN DESDE LA PRIMERA INFANCIA | B121: AGS.23.3 | C121: Porcentaje de escuelas que cuentan con acceso a Internet, primaria (% del total) | D121: Departamental | E121: Huancavelica | F121: Porcentaje | G121: Estadística de la Calidad Educativa (ESCALE) - Ministerio de Educación (MINEDU) | L121: 15.1 | M121: 19.1 | N121: 21 | O121: 19.3 | P121: 20.8 | Q121: 41.4 | R121: 26.6 | S121: 48.3 | AA121: 63 | AB121: ¡Faltan datos! | AC121: Porcentaje de escuelas que cuentan con acceso a Internet, primaria (% del total)DepartamentalHuancavelica | AF121: 63 | AG121: ¡Faltan datos! | AH121: P
A122: CUARTO DERECHO: A LA EDUCACIÓN DESDE LA PRIMERA INFANCIA | B122: AGS.23.3 | C122: Porcentaje de escuelas que cuentan con acceso a Internet, primaria (% del total) | D122: Departamental | E122: Huánuco | F122: Porcentaje | G122: Estadística de la Calidad Educativa (ESCALE) - Ministerio de Educación (MINEDU) | L122: 12.4 | M122: 20.4 | N122: 23.1 | O122: 23.3 | P122: 23.2 | Q122: 38.1 | R122: 22.8 | S122: 49.7 | AA122: 58 | AB122: ¡Faltan datos! | AC122: Porcentaje de escuelas que cuentan con acceso a Internet, primaria (% del total)DepartamentalHuánuco | AF122: 58 | AG122: ¡Faltan datos! | AH122: P
A123: CUARTO DERECHO: A LA EDUCACIÓN DESDE LA PRIMERA INFANCIA | B123: AGS.23.3 | C123: Porcentaje de escuelas que cuentan con acceso a Internet, primaria (% del total) | D123: Departamental | E123: Ica | F123: Porcentaje | G123: Estadística de la Calidad Educativa (ESCALE) - Ministerio de Educación (MINEDU) | L123: 62.4 | M123: 66 | N123: 69.5 | O123: 71 | P123: 75.3 | Q123: 74.5 | R123: 76.4 | S123: 73.1 | AA123: 83 | AB123: ¡Faltan datos! | AC123: Porcentaje de escuelas que cuentan con acceso a Internet, primaria (% del total)DepartamentalIca | AF123: 83 | AG123: ¡Faltan datos! | AH123: P
A124: CUARTO DERECHO: A LA EDUCACIÓN DESDE LA PRIMERA INFANCIA | B124: AGS.23.3 | C124: Porcentaje de escuelas que cuentan con acceso a Internet, primaria (% del total) | D124: Departamental | E124: Junín | F124: Porcentaje | G124: Estadística de la Calidad Educativa (ESCALE) - Ministerio de Educación (MINEDU) | L124: 21.9 | M124: 24.5 | N124: 30.7 | O124: 30.2 | P124: 32.4 | Q124: 41.7 | R124: 36.5 | S124: 49.4 | AA124: 63 | AB124: ¡Faltan datos! | AC124: Porcentaje de escuelas que cuentan con acceso a Internet, primaria (% del total)DepartamentalJunín | AF124: 63 | AG124: ¡Faltan datos! | AH124: P
A125: CUARTO DERECHO: A LA EDUCACIÓN DESDE LA PRIMERA INFANCIA | B125: AGS.23.3 | C125: Porcentaje de escuelas que cuentan con acceso a Internet, primaria (% del total) | D125: Departamental | E125: La Libertad | F125: Porcentaje | G125: Estadística de la Calidad Educativa (ESCALE) - Ministerio de Educación (MINEDU) | L125: 33.7 | M125: 42.4 | N125: 44.5 | O125: 43.1 | P125: 46.6 | Q125: 56.1 | R125: 45.9 | S125: 58.5 | AA125: 66 | AB125: ¡Faltan datos! | AC125: Porcentaje de escuelas que cuentan con acceso a Internet, primaria (% del total)DepartamentalLa Libertad | AF125: 66 | AG125: ¡Faltan datos! | AH125: P
A126: CUARTO DERECHO: A LA EDUCACIÓN DESDE LA PRIMERA INFANCIA | B126: AGS.23.3 | C126: Porcentaje de escuelas que cuentan con acceso a Internet, primaria (% del total) | D126: Departamental | E126: Lambayeque | F126: Porcentaje | G126: Estadística de la Calidad Educativa (ESCALE) - Ministerio de Educación (MINEDU) | L126: 37.1 | M126: 41.1 | N126: 64.9 | O126: 65.7 | P126: 67.1 | Q126: 66.3 | R126: 65.8 | S126: 63 | AA126: 81 | AB126: ¡Faltan datos! | AC126: Porcentaje de escuelas que cuentan con acceso a Internet, primaria (% del total)DepartamentalLambayeque | AF126: 81 | AG126: ¡Faltan datos! | AH126: P
A127: CUARTO DERECHO: A LA EDUCACIÓN DESDE LA PRIMERA INFANCIA | B127: AGS.23.3 | C127: Porcentaje de escuelas que cuentan con acceso a Internet, primaria (% del total) | D127: Departamental | E127: Lima Metropolitana | F127: Porcentaje | G127: Estadística de la Calidad Educativa (ESCALE) - Ministerio de Educación (MINEDU) | L127: 74.3 | M127: 75.4 | N127: 80.8 | O127: 81.6 | P127: 88.3 | Q127: 85.2 | R127: 86.5 | S127: 73.1 | AA127: 84 | AB127: ¡Faltan datos! | AC127: Porcentaje de escuelas que cuentan con acceso a Internet, primaria (% del total)DepartamentalLima Metropolitana | AF127: 84 | AG127: ¡Faltan datos! | AH127: P
A128: CUARTO DERECHO: A LA EDUCACIÓN DESDE LA PRIMERA INFANCIA | B128: AGS.23.3 | C128: Porcentaje de escuelas que cuentan con acceso a Internet, primaria (% del total) | D128: Departamental | E128: Loreto | F128: Porcentaje | G128: Estadística de la Calidad Educativa (ESCALE) - Ministerio de Educación (MINEDU) | L128: 4.2 | M128: 7 | N128: 14.4 | O128: 15.3 | P128: 15 | Q128: 18 | R128: 14.3 | S128: 20.8 | Y128: 20 | Z128: 20 | AA128: 28 | AB128: Verde | AC128: Porcentaje de escuelas que cuentan con acceso a Internet, primaria (% del total)DepartamentalLoreto | AD128: 20 | AE128: 20 | AF128: 28 | AG128: Verde | AH128: P
A129: CUARTO DERECHO: A LA EDUCACIÓN DESDE LA PRIMERA INFANCIA | B129: AGS.23.3 | C129: Porcentaje de escuelas que cuentan con acceso a Internet, primaria (% del total) | D129: Departamental | E129: Madre de Dios | F129: Porcentaje | G129: Estadística de la Calidad Educativa (ESCALE) - Ministerio de Educación (MINEDU) | L129: 17.8 | M129: 23.5 | N129: 27 | O129: 25.2 | P129: 32.4 | Q129: 34.5 | R129: 27.3 | S129: 49.8 | AA129: 57 | AB129: ¡Faltan datos! | AC129: Porcentaje de escuelas que cuentan con acceso a Internet, primaria (% del total)DepartamentalMadre de Dios | AF129: 57 | AG129: ¡Faltan datos! | AH129: P
A130: CUARTO DERECHO: A LA EDUCACIÓN DESDE LA PRIMERA INFANCIA | B130: AGS.23.3 | C130: Porcentaje de escuelas que cuentan con acceso a Internet, primaria (% del total) | D130: Departamental | E130: Moquegua | F130: Porcentaje | G130: Estadística de la Calidad Educativa (ESCALE) - Ministerio de Educación (MINEDU) | L130: 33.7 | M130: 36.9 | N130: 40.2 | O130: 44 | P130: 41.8 | Q130: 55.3 | R130: 40.4 | S130: 57.6 | AA130: 66 | AB130: ¡Faltan datos! | AC130: Porcentaje de escuelas que cuentan con acceso a Internet, primaria (% del total)DepartamentalMoquegua | AF130: 66 | AG130: ¡Faltan datos! | AH130: P
